Workbook

Sheet INICIO

Sheet 0006-01 TUNJUELITO
A1: PLAN DE AUSTERIDAD EN EL GASTO 2025-2027
A2: Entidad
A3: Valores en Pesos Corrientes
A4: CONCEPTO (Decreto 062 de 2024) | B4: Posiciones Presupuestales Asociadas (Funcionamiento e Inversión) | C4: LÍNEA BASE | F4: PLAN DE AUSTERIDAD EN EL GASTO 2025-2027 | K4: SEGUIMIENTO RESULTADOS PLAN DE AUSTERIDAD 2025-2027
F5: ESTRATEGIAS 2025-2027 | G5: ACCIONES 2025-2027 | H5: META INDICADOR DE AUSTERIDAD
C6: AÑO 2023 | D6: AÑO 2024 | K6: AÑO 2025 | M6: AÑO 2026 | O6: AÑO 2027
C7: Valor EJECUTADO a 31/12/2023 | D7: Valor EJECUTADO a 31/12/2024 | E7: Resultado Indicador Austeridad | H7: AÑO 2025 | I7: AÑO 2026 | J7: AÑO 2027 | K7: Valor EJECUTADO a 31/12/2025 | L7: Resultado Indicador Austeridad | M7: Valor EJECUTADO a 31/12/2026 | N7: Resultado Indicador Austeridad | O7: Valor EJECUTADO a 31/12/2027 | P7: Resultado Indicador Austeridad
A8: Servicios de personal
A9: Artículo 6°.- Reducción del gasto en CPS profesionales y de apoyo a la gestión. | B9: N.A. Se registran totales. Corresponde con lo reportado en SIDEAP y SIVICOF | E9: =1-(D9/C9) ->  | H9: -0.01 | L9: =1-(K9/D9) ->  | N9: =1-(M9/K9) ->  | P9: =1-(O9/M9) -> 
A10: Artículo 7°.- Horas extras, dominicales y festivos. | L10: =1-(K10/D10) ->  | N10: =1-(M10/K10) -> 
A11: Artículo 8°.- Viáticos y gastos de viaje.
A12: Artículo 9°.- Compensación por vacaciones.
A13: Artículo 10°.- Bono navideño.
A14: Artículo 11 -. Capacitación.
A15: Artículo 12 -. Bienestar.
A16: Artículo 13 -. Eventos y conmemoraciones.
A17: Artículo 14 -. Fondos educativos.
A18: Servicios Administrativos
A19: Artículo 15. Telefonía. | E19: =1-(D19/C19) -> 
A20: Artículo 16 -. Vehículos oficiales.
A21: Artículo 17 -. Adquisición de vehículos y maquinaria.
A22: Artículo 18 -. Fotocopiado, multicopiado e impresión.
A23: Artículo 19 -. Publicidad distrital.
A24: Artículo 20 -. Cajas menores.
A25: Artículo 21 -. Mantenimiento o reparación de bienes inmuebles o muebles.
A26: Artículo 22 -. Suscripciones.
A27: Artículo 23 -. Servicios públicos.

Sheet 0001-01 USAQUEN
A1: PLAN DE AUSTERIDAD EN EL GASTO 2025-2027
A2: Entidad
A3: Valores en Pesos Corrientes
A4: CONCEPTO (Decreto 062 de 2024) | B4: Posiciones Presupuestales Asociadas (Funcionamiento e Inversión) | C4: LÍNEA BASE | F4: PLAN DE AUSTERIDAD EN EL GASTO 2025-2027 | K4: SEGUIMIENTO RESULTADOS PLAN DE AUSTERIDAD 2025-2027
F5: ESTRATEGIAS 2025-2027 | G5: ACCIONES 2025-2027 | H5: META INDICADOR DE AUSTERIDAD
C6: AÑO 2023 | D6: AÑO 2024 | K6: AÑO 2025 | M6: AÑO 2026 | O6: AÑO 2027
C7: Valor EJECUTADO a 31/12/2023 | D7: Valor EJECUTADO a 31/12/2024 | E7: Resultado Indicador Austeridad | H7: AÑO 2025 | I7: AÑO 2026 | J7: AÑO 2027 | K7: Valor EJECUTADO a 31/12/2025 | L7: Resultado Indicador Austeridad | M7: Valor EJECUTADO a 31/12/2026 | N7: Resultado Indicador Austeridad | O7: Valor EJECUTADO a 31/12/2027 | P7: Resultado Indicador Austeridad
A8: Servicios de personal
A9: Artículo 6°.- Reducción del gasto en CPS profesionales y de apoyo a la gestión. | B9: N.A. Se registran totales. Corresponde con lo reportado en SIDEAP y SIVICOF | C9: 18643428675 | D9: 15985847639 | E9: =1-(D9/C9) -> 0.1425478694 | F9: El Fondo de Desarrollo Local de Usaquén realizara un control extricto a las CPS profesionales y de apoyo a la gestión con el fin de cumplir con la meta cumplida | G9: N/A | H9: -0.052 | I9: -0.03 | J9: -0.03 | K9: 16817111716 | L9: =1-(K9/D9) -> -0.05199999999 | M9: 17321625068 | N9: =1-(M9/K9) -> -0.03000000003 | O9: 17841273820 | P9: =1-(O9/M9) -> -0.03
A10: Artículo 7°.- Horas extras, dominicales y festivos. | C10: 0 | D10: 0 | F10: El Fondo de Desarrollo Local de Usaquén no cuenta con este rubrio en su presupuesto debido a que este concepto esta centralizado en Gobierno | G10: N/A | H10: N/A | I10: N/A | J10: N/A | L10: =1-(K10/D10) ->  | N10: =1-(M10/K10) -> 
A11: Artículo 8°.- Viáticos y gastos de viaje. | C11: 0 | D11: 0 | F11: El Fondo de Desarrollo Local de Usaquén no cuenta con este rubrio en su presupuesto debido a que este concepto esta centralizado en Gobierno | G11: N/A | H11: N/A | I11: N/A | J11: N/A
A12: Artículo 9°.- Compensación por vacaciones. | C12: 0 | D12: 0 | F12: El Fondo de Desarrollo Local de Usaquén no cuenta con este rubrio en su presupuesto debido a que este concepto esta centralizado en Gobierno | G12: N/A | H12: N/A | I12: N/A | J12: N/A
A13: Artículo 10°.- Bono navideño. | C13: 0 | D13: 0 | F13: El Fondo de Desarrollo Local de Usaquén no cuenta con este rubrio en su presupuesto debido a que este concepto esta centralizado en Gobierno | G13: N/A | H13: N/A | I13: N/A | J13: N/A
A14: Artículo 11 -. Capacitación. | C14: 0 | D14: 0 | F14: El Fondo de Desarrollo Local de Usaquén no cuenta con este rubrio en su presupuesto debido a que este concepto esta centralizado en Gobierno | G14: N/A | H14: N/A | I14: N/A | J14: N/A
A15: Artículo 12 -. Bienestar. | C15: 0 | D15: 0 | F15: El Fondo de Desarrollo Local de Usaquén no cuenta con este rubrio en su presupuesto debido a que este concepto esta centralizado en Gobierno | G15: N/A | H15: N/A | I15: N/A | J15: N/A
A16: Artículo 13 -. Eventos y conmemoraciones. | C16: 0 | D16: 0 | F16: El Fondo de Desarrollo Local de Usaquén no cuenta con este rubrio en su presupuesto debido a que este concepto esta centralizado en Gobierno | G16: N/A | H16: N/A | I16: N/A | J16: N/A
A17: Artículo 14 -. Fondos educativos. | C17: 0 | D17: 0 | F17: El Fondo de Desarrollo Local de Usaquén no cuenta con este rubrio en su presupuesto debido a que este concepto esta centralizado en Gobierno | G17: N/A | H17: N/A | I17: N/A | J17: N/A
A18: Servicios Administrativos
A19: Artículo 15. Telefonía. | B19: FUNCIONAMIENTO | C19: 76476412 | D19: 92325930 | E19: =1-(D19/C19) -> -0.2072471444 | F19: 1. Comparación de Proveedores: Realizar un estudio y comparativo de las ofertas de proveedores del mercado y garantizar el mejor servicio al mejor costo | G19: Mensualmente se realizará un control a este rubro cuantificando las variaciones y controlando estrictamente este gasto. | H19: -0.0415 | I19: -0.03 | J19: -0.03 | K19: 96155610 | L19: -0.04148000459 | M19: 99040278 | N19: -0.02999999688 | O19: 102011486 | P19: -0.02999999657
A20: Artículo 16 -. Vehículos oficiales. | B20: FUNCIONAMIENTO | C20: 56879878 | D20: 72321392 | E20: -0.2714758636 | F20: 1. Mantenimiento preventivo : Asegurarse de que los mantenimientos programados se realicen para garantizar el funcionamiento optimo de los vehículos garantizando el rendimiento de combustible. 2. Monitoreo y Seguimiento al consumo de combustibles: Establecer una matriz que permita un control mensual a los km recorridos y galones de combustible consumidos para hacer para el uso eficiente de los recursos. | G20: Controlar el consumo y uso mensual de los insumos para los vehículos de uso exclusivo para actividades oficiales del nivel directivo. | H20: -0.0415 | I20: -0.03 | J20: -0.03 | K20: 75321283 | L20: -0.0414799953 | M20: 77580922 | N20: -0.03000000677 | O20: 79908349 | P20: -0.02999999149
A21: Artículo 17 -. Adquisición de vehículos y maquinaria. | C21: 0 | D21: 0 | F21: El Fondo de Desarrollo Local de Usaquén no tiene presupuestado la adquisición de vehiculos y maquinaria | G21: N/A | K21: 0
A22: Artículo 18 -. Fotocopiado, multicopiado e impresión. | B22: FUNCIONAMIENTO | C22: 43750905 | D22: 49783607 | E22: -0.1378874791 | F22: 1. Digitalización de Documentos : Fomentar la digitalización de documentos en el aplicativo de gestión documental y se prioriza el uso de medios electrónicos para reducir la imprecisión. 2. Revisión de Documentos: Fomentar la revisión digital de documentos antes de imprimir, asegurando que solo se imprima lo que realmente es necesario. 3. Uso de Tecnología de información: Priorizar al máximo las herramientas tecnológicas contribuyendo al uso eficiente de los recursos y cumplir las estrategias distritales de papel cero. | G22: Desarrollar un control exhaustivo y consciente del uso de fotocopiado e impresión para lo que se imprima estrictamente lo necesario. Realizar trimestralmente campañas de concientización en el uso adecuado de papelería con el equipo de trabajo para dinamizar el correcto uso de los recursos | H22: -0.0415 | I22: -0.03 | J22: -0.03 | K22: 51848631 | L22: -0.04147999963 | M22: 53404090 | N22: -0.03000000135 | O22: 55006213 | P22: -0.03000000562
A23: Artículo 19 -. Publicidad distrital. | B23: FUNCIONAMIENTO | C23: 28000000 | D23: 0 | E23: 1 | F23: Uso de medios digitales | G23: Mantener actualizada la pagina Web de la Alcaldía, lo que permitira tener informada a la comunidad de las gestiones y eventos realizados o programados | K23: 0
A24: Artículo 20 -. Cajas menores. | C24: 0 | D24: 0 | F24: El Fondo de Desarrollo Local de Usaquén no cuenta con este rubrio en su presupuesto debido a que este concepto esta centralizado en Gobierno | G24: N/A | K24: 0
A25: Artículo 21 -. Mantenimiento o reparación de bienes inmuebles o muebles. | B25: FUNCIONAMIENTO | C25: 122408485 | D25: 180000000 | E25: -0.4704862984 | F25: 1. Mantenimiento Preventivo: Establecer un programa de mantenimiento preventivo regular para identificar y solucionar problemas . Esto puede prolongar la vida útil de los equipos y reducir costos a largo plazo. 2. Priorización de Necesidades: Evaluar y clasificar las necesidades de mantenimiento y reparaciones según su urgencia e impacto. Enfocandose en las tareas más críticas primero lo que permitirá una optimización de recursos. | G25: Garantizar la optimización de recursos y el cumplimiento de la meta presupuesta realizando un análisis exahustibo del este rubro. Realizar el mantenimiento o reparación de bienes inmuebles o muebles cuando sea estrictamente necesario | H25: -0.0415 | I25: -0.03 | J25: -0.03 | K25: 187466400 | L25: -0.04148 | M25: 193090392 | N25: -0.03 | O25: 198883104 | P25: -0.03000000124
A26: Artículo 22 -. Suscripciones. | C26: 0 | D26: 0 | F26: El Fondo de Desarrollo Local de Usaquén no cuenta con suscripciones por ningun concepto | G26: N/A | K26: 0 | M26: 0
A27: Artículo 23 -. Servicios públicos. | B27: FUNCIONAMIENTO | C27: 83661896 | D27: 108462000 | E27: -0.2964324882 | F27: 1.Educación y Conciencia: Implementar campañas de concienciación para educar a los funcionarios, contratistas y usuarios sobre el uso responsable de los servicios públicos, fomentando hábitos que ayuden a reducir el consumo. 2. Monitoreo y Evaluación: Establecer monitoreos y mediciones para identificar variaciones significativas y sus causas con esto evaluar el uso de recursos y la efectividad de las medidas implementadas, permitiendo ajustes en tiempo real. | G27: Realizar un control mensual y medición al consumo de servicios públicos lo que permitirá verificar la racionalización de los recursos; Adicionalmente se concientizara a los funcionarios, contratistas y comunidad en general de la importancia del uso eficiente de los recursos. | H27: -0.0415 | I27: -0.03 | J27: -0.03 | K27: 112961004 | L27: -0.04148000221 | M27: 116349834 | N27: -0.02999999894 | O27: 119840329 | P27: -0.02999999983
A28: Arriendo, Operador Logistico, Piga, Inventarios, Licencia e Inventarios * | B28: FORTALECIMIENTO | C28: 663359492 | D28: 420356990 | E28: =1-(D28/C28) -> 0.3663209842 | F28: 1. Optimización del uso de servicios y suministros: Establecer estrategias para reducción de costos en la adquisición de bienes que permitan cumplir las metas propuestas. 2. Revisión y optimización de Arrendamientos: Crear estrategias de trabajo en casa lo que permitirá que diferentes equipos de trabajo compartan espacios y se garantice el uso. 3. Evaluación de Proveedores: Realizar un análisis de los servicios prestados por el operador logístico lo que permitirá verificar de que se está obteniendo el mejor servicio con el menor costo posible. | G28: Concientizar a los funcionarios y contratistas del uso adecuado de los suministros de aseo y cafetería para la racionalización en su consumo. Garantizar que los proveedores presten sus servicios a la mejor tarifa disponible sin disminuir el servicio requerido | H28: 0.0006 | I28: -0.03 | J28: -0.03 | K28: 662961476 | L28: =1-(K28/C28) -> 0.0006000004595 | M28: 682850321 | N28: =1-(M28/K28) -> -0.03000000109 | O28: 703335830 | P28: =1-(O28/M28) -> -0.02999999908
A29: *Para estos rubros se tendra en cuenta la linea base del 2023 dado que el año 2024 fue atipico; dado que el gobierno central se encontraba en proceso de empalme, esto genero retrasos en las poseciónes y empalmes de los nuevos alcaldes locales, por ello se presento una variación significativa en la ejecución de los rubros de fortalecimiento, de la vigencia 2023 vs la vigencia 2024.

Sheet 0002-01 CHAPINERO
A1: PLAN DE AUSTERIDAD EN EL GASTO 2025-2027
A2: Entidad
A3: Valores en Pesos Corrientes
A4: CONCEPTO (Decreto 062 de 2024) | B4: Posiciones Presupuestales Asociadas (Funcionamiento e Inversión) | C4: LÍNEA BASE | F4: PLAN DE AUSTERIDAD EN EL GASTO 2025-2027 | K4: SEGUIMIENTO RESULTADOS PLAN DE AUSTERIDAD 2025-2027
F5: ESTRATEGIAS 2025-2027 | G5: ACCIONES 2025-2027 | H5: META INDICADOR DE AUSTERIDAD
C6: AÑO 2023 | D6: AÑO 2024 | K6: AÑO 2025 | M6: AÑO 2026 | O6: AÑO 2027
C7: Valor EJECUTADO a 31/12/2023 | D7: Valor EJECUTADO a 31/12/2024 | E7: Resultado Indicador Austeridad | H7: AÑO 2025 | I7: AÑO 2026 | J7: AÑO 2027 | K7: Valor EJECUTADO a 31/12/2025 | L7: Resultado Indicador Austeridad | M7: Valor EJECUTADO a 31/12/2026 | N7: Resultado Indicador Austeridad | O7: Valor EJECUTADO a 31/12/2027 | P7: Resultado Indicador Austeridad
A8: Servicios de personal
A9: Artículo 6°.- Reducción del gasto en CPS profesionales y de apoyo a la gestión. | B9: N.A. Se registran totales. Corresponde con lo reportado en SIDEAP y SIVICOF | C9: 8793484134 | D9: 6054492000 | E9: =1-(D9/C9) -> 0.311479738 | L9: =1-(K9/D9) -> 1 | N9: =1-(M9/K9) ->  | P9: =1-(O9/M9) -> 
A10: Artículo 7°.- Horas extras, dominicales y festivos. | B10: N/A | C10: 0 | D10: 0 | F10: N/A | G10: N/A | H10: N/A | I10: N/A | J10: N/A | L10: =1-(K10/D10) ->  | N10: =1-(M10/K10) -> 
A11: Artículo 8°.- Viáticos y gastos de viaje. | B11: N/A | C11: 0 | D11: 0 | F11: N/A | G11: N/A | H11: N/A | I11: N/A | J11: N/A
A12: Artículo 9°.- Compensación por vacaciones. | B12: N/A | C12: 0 | D12: 0 | F12: N/A | G12: N/A | H12: N/A | I12: N/A | J12: N/A
A13: Artículo 10°.- Bono navideño. | B13: N/A | C13: 0 | D13: 0 | F13: N/A | G13: N/A | H13: N/A | I13: N/A | J13: N/A
A14: Artículo 11 -. Capacitación. | B14: N/A | C14: 0 | D14: 0 | F14: N/A | G14: N/A | H14: N/A | I14: N/A | J14: N/A
A15: Artículo 12 -. Bienestar. | B15: N/A | C15: 0 | D15: 0 | F15: N/A | G15: N/A | H15: N/A | I15: N/A | J15: N/A
A16: Artículo 13 -. Eventos y conmemoraciones. | B16: N/A | C16: 0 | D16: 0 | F16: N/A | G16: N/A | H16: N/A | I16: N/A | J16: N/A
A17: Artículo 14 -. Fondos educativos. | B17: N/A | C17: 0 | D17: 0 | F17: N/A | G17: N/A | H17: N/A | I17: N/A | J17: N/A
A18: Servicios Administrativos
A19: Artículo 15. Telefonía. | B19: O21202020080484120 - Servicios de telefonía fija (acceso) - O21202020080484222 - Servicios de acceso a Internet de banda ancha | C19: 61400730 | D19: 61563920 | E19: =1-(D19/C19) -> -0.00265778599 | F19: Implementación de medidas de control y optimización del uso de la telefonía fija en todas las dependencias. Fortalecimiento de mecanismos de monitoreo y supervisión del consumo de telefonía fija para garantizar el uso eficiente del servicio. Negociación y optimización de tarifas con los proveedores del servicio de telefonía fija. | G19: Gestionar con el proveedor la renegociación de tarifas y planes, priorizando el uso de servicios con menor costo. Evaluar la efectividad de las medidas implementadas y realizar ajustes según los resultados obtenidos. | H19: 0 | I19: 0 | J19: 0 | L19: 1
A20: Artículo 16 -. Vehículos oficiales. | B20: O2120202008078714102 - Servicio de mantenimiento y reparación de vehículos automóvile | C20: 48720000 | D20: 55000000 | E20: -0.1288998358 | F20: Fortalecer las actividades de mantenimiento preventivo en cada uno de los vehículos propendiendo por la disminución de actividades de caracater correctivo. Identificar el(los) vehículo(s) que más presupuesto demandan con el objetivo de presentar posible propuesta de renovación vehícular. Fortalecer la actividad de prueba de ruta en el momento de recepción de vehículos posterior a una actividad de mantenimiento en aras de optimizar tanto el servicio como el estado integro de los vehículos. Implementar las estrategias contempladas dentro del plan de seguridad vial de la SDG | G20: Diseñar y formular junto con el proveedor de mantenimiento de vehículos, planes de mantenimiento preventivo sistemático. Realizar la identificación de vehículos objeto de renovación Garantizar que en toda recepción de vehículos posterior a actividades de mantenimiento vehicular, la prueba de ruta sea liderada por ingeniero mecánico del FDLCH y taller | H20: 0.001 | I20: 0.0015 | J20: 0.0017 | L20: 1
A21: Artículo 17 -. Adquisición de vehículos y maquinaria. | B21: N/A | C21: 0 | D21: 0 | F21: N/A | G21: N/A | H21: N/A | I21: N/A | J21: N/A
A22: Artículo 18 -. Fotocopiado, multicopiado e impresión. | B22: Se registra información de contrato de impresión de 2023 | C22: 22500000 | D22: 1 | E22: 0.9999999556 | F22: Mantener priorización de la divulgación digital sobre los impresos | G22: Usar en la medida de lo posible menos impresos y más piezas en digital, a menos que sean obligatorios o de un uso altamente justificado. | H22: 0.01 | I22: 0.01 | J22: 0.01 | L22: 1
A23: Artículo 19 -. Publicidad distrital. | B23: N/A | C23: 0 | D23: 0 | F23: N/A | G23: N/A | H23: N/A | I23: N/A | J23: N/A
A24: Artículo 20 -. Cajas menores. | B24: N/A | C24: 0 | D24: 0 | F24: N/A | G24: N/A | H24: N/A | I24: N/A | J24: N/A
A25: Artículo 21 -. Mantenimiento o reparación de bienes inmuebles o muebles. | B25: Se registra informacion de contratos del año 2022 y 2023. en el año 2024 no se contrato mantenimiento para la sede | C25: 193999990 | D25: 23124083 | E25: 0.8808036897 | F25: Realizar las actividades de mantenimiento esenciales. | G25: Adquirir herramientas e insumos que permitan adelantar las actividades de mantenimiento basicas | H25: 0.005 | I25: 0.001 | J25: 0.015 | L25: 1
A26: Artículo 22 -. Suscripciones. | C26: 0 | D26: 0 | F26: No se tiene previsto adquirir suscripciones a medios de comunicación | G26: Mantener el gasto en cero | H26: 0 | I26: 0 | J26: 0
A27: Artículo 23 -. Servicios públicos. | B27: O21202020080686312 - Servicios de distribución de electricidad (a comisión o por contrato) O21202020080686330 - Servicios de distribución de agua por tubería (a comisión o por contrato) O21202020090494239 - Servicios generales de recolección de otros desechos. | C27: 94434736 | D27: 49642590 | E27: 0.4743185389 | F27: Implementación de campañas permanentes de sensibilización para el uso eficiente de agua, energía y gestión de residuos. Monitoreo y control periódico del consumo de los servicios públicos para identificar oportunidades de reducción. Optimización de los sistemas e infraestructura para minimizar el desperdicio de recursos. Fortalecimiento de la cultura organizacional en torno a la sostenibilidad y la eficiencia en el uso de los servicios públicos. | G27: Realizar campañas comunicativas y capacitaciones para funcionarios, contratistas y personal de servicios generales sobre buenas prácticas en el uso eficiente del agua, energía y gestión de residuos. Fortalecer el monitoreo de consumo mensual para identificar patrones y oportunidades de mejora. Implementar controles automatizados para el apagado de luces y equipos en horarios no laborales. Evaluar la viabilidad de implementar tecnologías de eficiencia energética, como bombillas LED y sensores de movimient | H27: 0.005 | I27: 0.01 | J27: 0.015 | L27: 1

Sheet 0003-01 SANTAFE
A1: PLAN DE AUSTERIDAD EN EL GASTO 2025-2027
A2: Entidad | B2: ALCALDIA LOCAL DE SANTA FE
A3: Valores en Pesos Corrientes
A4: CONCEPTO (Decreto 062 de 2024) | B4: Posiciones Presupuestales Asociadas (Funcionamiento e Inversión) | C4: LÍNEA BASE | F4: PLAN DE AUSTERIDAD EN EL GASTO 2025-2027 | K4: SEGUIMIENTO RESULTADOS PLAN DE AUSTERIDAD 2025-2027
F5: ESTRATEGIAS 2025-2027 | G5: ACCIONES 2025-2027 | H5: META INDICADOR DE AUSTERIDAD
C6: AÑO 2023 | D6: AÑO 2024 | K6: AÑO 2025 | M6: AÑO 2026 | O6: AÑO 2027
C7: Valor EJECUTADO a 31/12/2023 | D7: Valor EJECUTADO a 31/12/2024 | E7: Resultado Indicador Austeridad | H7: AÑO 2025 | I7: AÑO 2026 | J7: AÑO 2027 | K7: Valor EJECUTADO a 31/12/2025 | L7: Resultado Indicador Austeridad | M7: Valor EJECUTADO a 31/12/2026 | N7: Resultado Indicador Austeridad | O7: Valor EJECUTADO a 31/12/2027 | P7: Resultado Indicador Austeridad
A8: Servicios de personal
A9: Artículo 6°.- Reducción del gasto en CPS profesionales y de apoyo a la gestión. | B9: Inversión | C9: 12725160659 | D9: 12755568154 | E9: =1-(D9/C9) -> -0.002389556864 | F9: Realizar un analisis de las obligaciones de los contratistas con los diferentes apoyos a la supervisión para que sean ajustados acorde a las metas establecidas en el plan de gestión y plan de desarrollo local. Capacitar y sensibilizar a los contratistas sobre los diferentes procesos y procedimientos establecidos en MATIZ, con el fin de reducir tiempos y optimizar los diferentes procesos. Determinar con los apoyos a la supervisión el número de contratistas necesarios para cada equipo con el cual se puedan desarrollar de forma eficiente las diferentes actividades en la Alcaldia. | G9: * Realizar mesas de trabajo con los apoyos a la supervisión para definir las obligaciones y objetos a contratar. *Generar un plan de capacitaciones, con las tematicas a desarrollar en la Alcaldia Local de Santa Fe, con el apayo del equipo de Nivel Central de la Secretaría Distrital de Gobierno. | H9: 0.01 | I9: 0.1% | J9: 0.1% | L9: =1-(K9/D9) -> 1 | N9: =1-(M9/K9) ->  | P9: =1-(O9/M9) -> 
A10: Artículo 7°.- Horas extras, dominicales y festivos. | B10: N/A | C10: 0 | D10: 0 | F10: N/A | G10: N/A | H10: 0 | I10: 0 | J10: 0 | L10: =1-(K10/D10) ->  | N10: =1-(M10/K10) -> 
A11: Artículo 8°.- Viáticos y gastos de viaje. | B11: N/A | C11: 0 | D11: 0 | F11: N/A | G11: N/A | H11: 0 | I11: 0 | J11: 0
A12: Artículo 9°.- Compensación por vacaciones. | B12: N/A | C12: 0 | D12: 0 | F12: N/A | G12: N/A | H12: 0 | I12: 0 | J12: 0
A13: Artículo 10°.- Bono navideño. | B13: N/A | C13: 0 | D13: 0 | F13: N/A | G13: N/A | H13: 0 | I13: 0 | J13: 0
A14: Artículo 11 -. Capacitación. | B14: N/A | C14: 0 | D14: 0 | F14: N/A | G14: N/A | H14: 0 | I14: 0 | J14: 0
A15: Artículo 12 -. Bienestar. | B15: N/A | C15: 0 | D15: 0 | F15: N/A | G15: N/A | H15: 0 | I15: 0 | J15: 0
A16: Artículo 13 -. Eventos y conmemoraciones. | B16: N/A | C16: 0 | D16: 0 | F16: N/A | G16: N/A | H16: 0 | I16: 0 | J16: 0
A17: Artículo 14 -. Fondos educativos. | B17: N/A | C17: 0 | D17: 0 | F17: N/A | G17: N/A | H17: 0 | I17: 0 | J17: 0
A18: Servicios Administrativos
A19: Artículo 15. Telefonía. | B19: Funcionamiento | C19: 10306100 | D19: 5961600 | E19: =1-(D19/C19) -> 0.4215464628 | F19: Mantener las lineas telefónicas actuales en la Alcaldia Local de Santa Fe y en la sede de inspecciones de policía. | G19: Realizar el mantenimiento semestral de la planta telefónica de la entidad. Identificar el número de extensión de cada area para sumistrar los respectivos telefónos, permitiendo una comunicación mas eficiente con la comunidad. | H19: 0.1% | I19: 0.1% | J19: 0.1% | L19: 1
A20: Artículo 16 -. Vehículos oficiales. | B20: Funcionamiento | C20: 57424802 | D20: 40004066 | E20: 0.3033660612 | F20: Coordinar y conservar de manera apropiada el equipo automotor, optimizando su vida util y correcto funcionamiento. Dar cumplimiento a los lineamientos establecidos para el prestamo de vehiculos. | G20: *Control diario por personal autorizado. *Realizar los procesos de reencauche de llantas para todos los vehiculos. | H20: 0.01 | I20: 0.01 | J20: 0.01 | L20: 1
A21: Artículo 17 -. Adquisición de vehículos y maquinaria. | B21: Inversión | C21: 474389434 | D21: 0 | E21: 1 | F21: Renovar en un 25% el parque automotor haciendo enfasis en el cuidado del medio ambiente e implementando vehiculos eléctricos. | G21: Adquisición de un vehiculo eléctrico para uso de la Alcaldía Local de Santa Fe. | H21: 0.01 | I21: 0.01 | J21: 0.01
A22: Artículo 18 -. Fotocopiado, multicopiado e impresión. | B22: Funcionamiento | C22: 26732160 | D22: 28377450 | E22: -0.06154721504 | F22: Reducir el número de impresoras en la Alcaldia Local de Santa Fe. Realizar proceso de sensibilización en temas de cero papel, reciclaje y buenas practicas ambientales. Adquirir impresoras de mayor tecnologia, con impresiones de 1.5 milisegundos con impresion a doble cara, incluyendo el scaner. Disminuir el consumo de toner. | G22: *Realizar la distribución de las impresoras por cada piso de la Alcaldia. *Generar un plan de capacitaciones, con las tematicas a desarrollar en la Alcaldia Local de Santa Fe, por parte del equipo PIGA. *Realizar un control mensual frente al consumo de papel por cada impresora. *Reducir el contraste o nivel de tinta para las impresiones. | H22: 0.01 | I22: 0.01 | J22: 0.01 | L22: 1
A23: Artículo 19 -. Publicidad distrital. | B23: N/A | C23: 0 | D23: 0 | F23: N/A | G23: N/A | H23: 0 | I23: 0 | J23: 0
A24: Artículo 20 -. Cajas menores. | B24: N/A | C24: 0 | D24: 0 | F24: N/A | G24: N/A | H24: 0 | I24: 0 | J24: 0
A25: Artículo 21 -. Mantenimiento o reparación de bienes inmuebles o muebles. | B25: Funcionamiento | C25: 71471159 | D25: 41066667 | E25: 0.4254092479 | F25: Realizar una matriz que permita identificar las problemáticas, deficits y daños en los bienes inmuebles de las sedes del Fondo de desarrollo Local de Santa Fe. | G25: Evaluar la matriz para determinar que acciones de mantenimiento / reparación se ejecutarán en el punto critico informado. | H25: 0.01 | I25: 0.01 | J25: 0.01 | L25: 1
A26: Artículo 22 -. Suscripciones. | B26: N/A | C26: 0 | D26: 0 | F26: N/A | G26: N/A | H26: 0 | I26: 0 | J26: 0
A27: Artículo 23 -. Servicios públicos. | B27: Funcionamiento | C27: 151040430 | D27: 105633364 | E27: 0.3006285536 | F27: Realizar un seguimiento continuo al consumo de los servicios publicos de la alcaldia. Realizar un proceso de sensibilización en temas de consumo de recursos naturales, separación en la fuente, reciclaje y buenas practicas ambientales. Implementar sistemas de ahorro de energia electrica y agua en la Alcaldia Local de Santa Fe. | G27: *Realizar un control de indicadores mensual de consumo por cada servicio público. *Generar un plan de capacitaciones, con las tematicas a desarrollar en la Alcaldia Local de Santa Fe, por parte del equipo PIGA. *Realizar la compra e instalación de elementos ahorradores tales como: llaves para lavamanos, sensores, sanitarios, luminarias entre otras. Adicionalmente realizar el mantenimiento y revisión de los elementos ahorradores existentes. | H27: 0.01 | I27: 0.01 | J27: 0.01 | L27: 1

Sheet 0004-01 SAN CRISTOBAL
A1: PLAN DE AUSTERIDAD EN EL GASTO 2025-2027
A2: Entidad
A3: Valores en Pesos Corrientes
A4: CONCEPTO (Decreto 062 de 2024) | B4: Posiciones Presupuestales Asociadas (Funcionamiento e Inversión) | C4: LÍNEA BASE | F4: PLAN DE AUSTERIDAD EN EL GASTO 2025-2027 | K4: SEGUIMIENTO RESULTADOS PLAN DE AUSTERIDAD 2025-2027
F5: ESTRATEGIAS 2025-2027 | G5: ACCIONES 2025-2027 | H5: META INDICADOR DE AUSTERIDAD
C6: AÑO 2023 | D6: AÑO 2024 | K6: AÑO 2025 | M6: AÑO 2026 | O6: AÑO 2027
C7: Valor EJECUTADO a 31/12/2023 | D7: Valor EJECUTADO a 31/12/2024 | E7: Resultado Indicador Austeridad | H7: AÑO 2025 | I7: AÑO 2026 | J7: AÑO 2027 | K7: Valor EJECUTADO a 31/12/2025 | L7: Resultado Indicador Austeridad | M7: Valor EJECUTADO a 31/12/2026 | N7: Resultado Indicador Austeridad | O7: Valor EJECUTADO a 31/12/2027 | P7: Resultado Indicador Austeridad
A8: Servicios de personal
A9: Artículo 6°.- Reducción del gasto en CPS profesionales y de apoyo a la gestión. | B9: N.A. Se registran totales. Corresponde con lo reportado en SIDEAP y SIVICOF | C9: 15040600693 | D9: 14836563787 | E9: =1-(D9/C9) -> 0.01356574183 | F9: PARA EL 2025-2027 SE PRETENDE MANTENER EL PORCENTAJE | G9: IMPLEMENTAR HERRAMIENTAS TECNOLÓGICAS QUE PERMITAN DISMINUIR LOS TRAMITES MANUALES EQUIVALENTES A LA REVISIÓN DE CPS NATURALES Y JURÍDICOS | H9: 0.01 | I9: 0.01 | J9: 0.01 | L9: =1-(K9/D9) -> 1 | N9: =1-(M9/K9) ->  | P9: =1-(O9/M9) -> 
A10: Artículo 7°.- Horas extras, dominicales y festivos. | B10: N.A. Valor se establece en cero debido a que no se generan valores proyectados u ejectuados para el item en el FDLSC | C10: 0 | D10: 0 | F10: N.A. | G10: N.A. | H10: N.A. | I10: N.A. | J10: N.A. | L10: =1-(K10/D10) ->  | N10: =1-(M10/K10) -> 
A11: Artículo 8°.- Viáticos y gastos de viaje. | B11: N.A. Valor se establece en cero debido a que no se generan valores proyectados u ejectuados para el item en el FDLSC | C11: 0 | D11: 0 | F11: N.A. | G11: N.A. | H11: N.A. | I11: N.A. | J11: N.A.
A12: Artículo 9°.- Compensación por vacaciones. | B12: N.A. Valor se establece en cero debido a que no se generan valores proyectados u ejectuados para el item en el FDLSC | C12: 0 | D12: 0 | F12: N.A. | G12: N.A. | H12: N.A. | I12: N.A. | J12: N.A.
A13: Artículo 10°.- Bono navideño. | B13: N.A. Valor se establece en cero debido a que no se generan valores proyectados u ejectuados para el item en el FDLSC | C13: 0 | D13: 0 | F13: N.A. | G13: N.A. | H13: N.A. | I13: N.A. | J13: N.A.
A14: Artículo 11 -. Capacitación. | B14: N.A. Valor se establece en cero debido a que no se generan valores proyectados u ejectuados para el item en el FDLSC | C14: 0 | D14: 0 | F14: N.A. | G14: N.A. | H14: N.A. | I14: N.A. | J14: N.A.
A15: Artículo 12 -. Bienestar. | B15: N.A. Valor se establece en cero debido a que no se generan valores proyectados u ejectuados para el item en el FDLSC | C15: 0 | D15: 0 | F15: N.A. | G15: N.A. | H15: N.A. | I15: N.A. | J15: N.A.
A16: Artículo 13 -. Eventos y conmemoraciones. | B16: N.A. Valor se establece en cero debido a que no se generan valores proyectados u ejectuados para el item en el FDLSC | C16: 0 | D16: 0 | F16: N.A. | G16: N.A. | H16: N.A. | I16: N.A. | J16: N.A.
A17: Artículo 14 -. Fondos educativos. | B17: N.A. Valor se establece en cero debido a que no se generan valores proyectados u ejectuados para el item en el FDLSC | C17: 0 | D17: 0 | F17: N.A. | G17: N.A. | H17: N.A. | I17: N.A. | J17: N.A.
A18: Servicios Administrativos
A19: Artículo 15. Telefonía. | B19: Funcionamiento | C19: 17293195 | D19: 19187379 | E19: =1-(D19/C19) -> -0.1095334899 | F19: 1. Mantener la cantidad de extensiones telefónicas | G19: 1. Realizar una buena distrbucion de las extensiones en las instalaciones de FDLSC | H19: 0.01 | I19: 0.01 | J19: 0.01 | L19: 1
A20: Artículo 16 -. Vehículos oficiales. | B20: Funcionamiento, inversión | C20: 62896828 | D20: 42657964 | E20: 0.3217787708 | F20: 1. Optimizacion logistica de recorridos y rutas asignadas a los vehiculos 2. Gestion de cronogramas de mantenimientos preventivos 3. Capacitacion al personal operativo en manejo del parque automotor | G20: 1. Implementacion de Sistemas de GPS controlando recorridos y distancias de los vehiculos segun programacion previa 2.Realizar los mantenimiento preventivos requerido a fin de mantener el vehiculo en optimas condiciones 3. Generar planes de accion logisticos que permitan evitar duplicidad en recorridos 4. Ejecutar capacitacion en buenas practicas de manejo y conduccion. | H20: 0.01 | I20: 0.01 | J20: 0.01 | L20: 1 | Q20: Combustible
A21: Artículo 17 -. Adquisición de vehículos y maquinaria. | B21: N.A. Valor se establece en cero debido a que no se generan valores proyectados u ejectuados para el item en el FDLSC | C21: 0 | D21: 0 | F21: N.A. | G21: N.A. | H21: N.A. | I21: N.A. | J21: N.A.
A22: Artículo 18 -. Fotocopiado, multicopiado e impresión. | B22: Funcionamiento | C22: 23927930 | D22: 13043829 | E22: 0.4548701455 | F22: 1. La informacion borrador no se imprima, sino se realice manejo de forma electronica 2. Realizar control rigoroso en la entrega de papeleria a la disferentes areas 3. Incrementar el uso de papel reciclable | G22: 1. ENviar archivos a traves de correo electronico evitando impresiones 2. Realizar impresiones a doble cara 3. Reutilizacion de hojas impresas a 1 cara 4. Racionalizacion de entrega de resmas 5. Focalizar impresiones en pocos usuarios con el objetivo de ejercer mayor control | H22: 0.01 | I22: 0.01 | J22: 0.01 | L22: 1 | Q22: Papeleria (resmas)
A23: Artículo 19 -. Publicidad distrital. | B23: N.A. Valor se establece en cero debido a que no se generan valores proyectados u ejectuados para el item en el FDLSC | C23: 0 | D23: 0 | F23: N.A. | G23: N.A. | H23: N.A. | I23: N.A. | J23: N.A.
A24: Artículo 20 -. Cajas menores. | B24: N.A. Valor se establece en cero debido a que no se generan valores proyectados u ejectuados para el item en el FDLSC | C24: 0 | D24: 0 | F24: N.A. | G24: N.A. | H24: N.A. | I24: N.A. | J24: N.A.
A25: Artículo 21 -. Mantenimiento o reparación de bienes inmuebles o muebles. | B25: Funcionamiento, inversión | C25: 91394333 | D25: 120321667 | E25: -0.3165112436 | F25: Reducir gastos mayores en mantenimiento de los bienes inmuebles | G25: 1. Mantenimiento programado (mantenimiento preventivo) 2. Verificación periódica (inspección) de buen uso de mobiliario y equipos tecnológico 3. Aprobación de compras exclusivamente necesarias por parte de la supervisión de contrato | H25: 0.01 | I25: 0.01 | J25: 0.01 | L25: 1
A26: Artículo 22 -. Suscripciones. | B26: N.A. Valor se establece en cero debido a que no se generan valores proyectados u ejectuados para el item en el FDLSC | C26: 0 | D26: 0 | F26: N.A. | G26: N.A. | H26: N.A. | I26: N.A. | J26: N.A.
A27: Artículo 23 -. Servicios públicos. | B27: Funcionamiento | C27: 92052871 | D27: 84415392 | E27: 0.08296839541 | F27: Las estrategias a desarrollar se enmarcan en las actividades concertadas en el Plan de Acción del PIGA para la vigencia 2024-2028, para los programas de Uso eficiente de Agua y uso eficiente de energia | G27: Las estrategias a desarrollar se enmarcan en las actividades concertadas en el Plan de Acción del PIGA para la vigencia 2024-2028, para los programas de Uso eficiente de Agua y uso eficiente de energia | H27: 0.0375 | I27: 0.0375 | J27: 0.0375 | L27: 1 | Q27: Agua y luz

Sheet 0005-01 USME
A1: PLAN DE AUSTERIDAD EN EL GASTO 2025-2027
A2: Entidad
A3: Valores en Pesos Corrientes
A4: CONCEPTO (Decreto 062 de 2024) | B4: Posiciones Presupuestales Asociadas (Funcionamiento e Inversión) | C4: LÍNEA BASE | F4: PLAN DE AUSTERIDAD EN EL GASTO 2025-2027 | K4: SEGUIMIENTO RESULTADOS PLAN DE AUSTERIDAD 2025-2027
F5: ESTRATEGIAS 2025-2027 | G5: ACCIONES 2025-2027 | H5: META INDICADOR DE AUSTERIDAD
C6: AÑO 2023 | D6: AÑO 2024 | K6: AÑO 2025 | M6: AÑO 2026 | O6: AÑO 2027
C7: Valor EJECUTADO a 31/12/2023 | D7: Valor EJECUTADO a 31/12/2024 | E7: Resultado Indicador Austeridad | H7: AÑO 2025 | I7: AÑO 2026 | J7: AÑO 2027 | K7: Valor EJECUTADO a 31/12/2025 | L7: Resultado Indicador Austeridad | M7: Valor EJECUTADO a 31/12/2026 | N7: Resultado Indicador Austeridad | O7: Valor EJECUTADO a 31/12/2027 | P7: Resultado Indicador Austeridad
A8: Servicios de personal
A9: Artículo 6°.- Reducción del gasto en CPS profesionales y de apoyo a la gestión. | B9: N.A. Se registran totales. Corresponde con lo reportado en SIDEAP y SIVICOF | C9: 24695147733 | D9: 22964663999 | E9: =1-(D9/C9) -> 0.07007383607 | F9: De conformidad a los lineamientos del sector Gobierno se realizara una reducción del 10% en los recursos destinados a CPS, ajustando las necesidades de personal de las áreas a fin de dar cabal cumplimiento a las funciones y responsabilidades del FDLU | G9: 1. Ajuste de necesidades de personal de las áreas 2. Solicitud de No Hay a la SDG con carga de necesidades por área | H9: 0.1 | I9: 0.1 | J9: 0.1 | L9: =1-(K9/D9) -> 1 | N9: =1-(M9/K9) ->  | P9: =1-(O9/M9) -> 
A10: Artículo 7°.- Horas extras, dominicales y festivos. | C10: 0 | D10: 0 | F10: N/A | G10: N/A | L10: =1-(K10/D10) ->  | N10: =1-(M10/K10) -> 
A11: Artículo 8°.- Viáticos y gastos de viaje. | C11: 0 | D11: 0 | F11: N/A | G11: N/A
A12: Artículo 9°.- Compensación por vacaciones. | C12: 0 | D12: 0 | F12: N/A | G12: N/A
A13: Artículo 10°.- Bono navideño. | C13: 0 | D13: 0 | F13: N/A | G13: N/A
A14: Artículo 11 -. Capacitación. | C14: 0 | D14: 0 | F14: N/A | G14: N/A
A15: Artículo 12 -. Bienestar. | C15: 0 | D15: 0 | F15: N/A | G15: N/A
A16: Artículo 13 -. Eventos y conmemoraciones. | C16: 0 | D16: 0 | F16: N/A | G16: N/A
A17: Artículo 14 -. Fondos educativos. | C17: 0 | D17: 0 | F17: N/A | G17: N/A
A18: Servicios Administrativos
A19: Artículo 15. Telefonía. | E19: =1-(D19/C19) -> 
A20: Artículo 16 -. Vehículos oficiales. | B20: O2120202008078714102 Servicio de mantenimiento y reparación de vehículo | C20: 55300000 | D20: 62000000 | E20: -0.1211573237 | F20: Adelantar un proceso de evaluación del estado de los Vehiculos de propiedad del FDLU a fin de establecer su vida útil, presentarlo al comité de inventarios para dar de baja y requerir cambio o reposición | G20: 1. Reposición del parque automotor para disminur el costo de los mantenimentos por daños frecuentes | H20: 0.05 | I20: 0.05 | J20: 0.05 | L20: 1
A21: Artículo 17 -. Adquisición de vehículos y maquinaria.
A22: Artículo 18 -. Fotocopiado, multicopiado e impresión. | B22: O2120201003063699060 Cartuchos plásticos para impresora de computador | C22: 22478803 | D22: 41082024 | E22: -0.8275894851 | F22: De conformidad a los lineamientos del sector Gobierno con respecto a la politica de Cero papel, se fundamentara el proceso de tramites en línea, mediante las plataformas establecidas para tal fin SECOP II y SIPSE | G22: 1. Tramites en línea 2. Uso de plataformas 3. Politica cero papel | H22: 0.1 | I22: 0.1 | J22: 0.1 | L22: 1
A23: Artículo 19 -. Publicidad distrital.
A24: Artículo 20 -. Cajas menores.
A25: Artículo 21 -. Mantenimiento o reparación de bienes inmuebles o muebles. | B25: O2120202008078715701 Servicio de mantenimiento y reparación de ascensor. | C25: 192300000 | D25: 97792250 | E25: 0.4914599584 | F25: Mantenimiento periodico de la sede a fin de reducir los daños estructurales en las sedes propias y/o de responsabilidad del FDLU | G25: 1. Mantenimiento preventivo anual | H25: 0.05 | I25: 0.05 | J25: 0.05 | L25: 1
A26: Artículo 22 -. Suscripciones.
A27: Artículo 23 -. Servicios públicos. | B27: O21202020080686312 Servicios de distribución de electricidad (a comis O21202020080686320 Servicios de distribución de gas por tuberías (a c O21202020080686330 Servicios de distribución de agua por tubería (a c O21202020090494110 Servicios de alcantarillado y tratamiento de aguas O21202020090494239 Servicios generales de recolección de otros desech | C27: 152746435 | D27: 154040533 | E27: -0.008472197731 | F27: Realizar acciones de formación y toma de conciencia sobre Uso Eficiente de Agua. Recolectar y sistematizar la información de los consumos de agua de las sedes concertadas de la Alcaldía Local de Usme. Verificar la implementación de buenas prácticas ambientales de ahorro y uso eficiente del agua. Realizar acciones de formación y toma de conciencia sobre Ahorro y Uso Eficiente de Energía, en las sedes concertadas. Recolectar la información de los consumos de energía de las sedes concertadas de la Alcaldía Local de Usme. Implementar sistemas de energía renovable. Realizar acciones de formación y toma de conciencia sobre gestión integral de residuos rovechables y no aprovechables. Realizar el seguimiento a la Generación de residuos Ordinarios, Aprovechables y RESPEL. Gestionar adecuadamente el 100% de los residuos que se generados en la Alcaldía Local de Usme. | G27: Desde el Plan Institucional de Gestion Ambiental de la Alcaldia Local de Usme se realiará actividades enfocadas a las practivas sostenibles tales como capacitaciones, campañas y actividades ludico-pedagogicas en caminadas a la reduccion de los recursos naturales en las labores instituconales a traves del plan istitucional interno el cual esta en caminado/formulado a reaizar austeridad del gasto en los rubros presuetados por el FDLU. | H27: 0.01 | I27: 0.01 | J27: 0.01 | L27: 1

Sheet 0007-01 BOSA
A1: PLAN DE AUSTERIDAD EN EL GASTO 2025-2027
A2: Entidad
A3: Valores en Pesos Corrientes
A4: CONCEPTO (Decreto 062 de 2024) | B4: Posiciones Presupuestales Asociadas (Funcionamiento e Inversión) | C4: LÍNEA BASE | F4: PLAN DE AUSTERIDAD EN EL GASTO 2025-2027 | K4: SEGUIMIENTO RESULTADOS PLAN DE AUSTERIDAD 2025-2027
F5: ESTRATEGIAS 2025-2027 | G5: ACCIONES 2025-2027 | H5: META INDICADOR DE AUSTERIDAD
C6: AÑO 2023 | D6: AÑO 2024 | K6: AÑO 2025 | M6: AÑO 2026 | O6: AÑO 2027
C7: Valor EJECUTADO a 31/12/2023 | D7: Valor EJECUTADO a 31/12/2024 | E7: Resultado Indicador Austeridad | H7: AÑO 2025 | I7: AÑO 2026 | J7: AÑO 2027 | K7: Valor EJECUTADO a 31/12/2025 | L7: Resultado Indicador Austeridad | M7: Valor EJECUTADO a 31/12/2026 | N7: Resultado Indicador Austeridad | O7: Valor EJECUTADO a 31/12/2027 | P7: Resultado Indicador Austeridad
A8: Servicios de personal
A9: Artículo 6°.- Reducción del gasto en CPS profesionales y de apoyo a la gestión. | B9: N.A. Se registran totales. Corresponde con lo reportado en SIDEAP y SIVICOF | C9: 24874653642 | D9: 19877696643 | E9: =1-(D9/C9) -> 0.2008854905 | F9: Evaluar las necesidades de la Alcaldía Local de Bosa, asegurándose de que sean exclusivamente para el cumplimiento de las funciones institucionales y misionales, y que faciliten el cumplimiento de los compromisos derivados de su operatividad. | G9: Evaluar las necesidades de la Alcaldía Local de Bosa, asegurándose de que sean exclusivamente para el cumplimiento de las funciones institucionales y misionales, y que faciliten el cumplimiento de los compromisos derivados de su operatividad. | H9: -0.052 | I9: -0.03 | J9: Incremento se hará según IPC | K9: =+D9*1.052 -> 2.091133687e+10 | L9: =1-(K9/D9) -> -0.052 | M9: =+K9*1.03 -> 2.153867697e+10 | N9: =1-(M9/K9) -> -0.03 | P9: =1-(O9/M9) -> 1
A10: Artículo 7°.- Horas extras, dominicales y festivos. | B10: La entidad no registra gastos asociados a este concepto. | C10: N.A | D10: N.A | F10: N.A | G10: N.A | H10: N.A | L10: =1-(K10/D10) ->  | N10: =1-(M10/K10) -> 
A11: Artículo 8°.- Viáticos y gastos de viaje. | B11: La entidad no registra gastos asociados a este concepto. | C11: N.A | D11: N.A | F11: N.A | G11: N.A | H11: N.A
A12: Artículo 9°.- Compensación por vacaciones. | B12: La entidad no registra gastos asociados a este concepto. | C12: N.A | D12: N.A | F12: N.A | G12: N.A | H12: N.A
A13: Artículo 10°.- Bono navideño. | B13: La entidad no registra gastos asociados a este concepto. | C13: N.A | D13: N.A | F13: N.A | G13: N.A | H13: N.A
A14: Artículo 11 -. Capacitación. | B14: La entidad no registra gastos asociados a este concepto. | C14: N.A | D14: N.A | F14: N.A | G14: N.A | H14: N.A
A15: Artículo 12 -. Bienestar. | B15: La entidad no registra gastos asociados a este concepto. | C15: N.A | D15: N.A | F15: N.A | G15: N.A | H15: N.A
A16: Artículo 13 -. Eventos y conmemoraciones. | B16: La entidad no registra gastos asociados a este concepto. | C16: N.A | D16: N.A | F16: N.A | G16: N.A | H16: N.A
A17: Artículo 14 -. Fondos educativos. | B17: La entidad no registra gastos asociados a este concepto. | C17: N.A | D17: N.A | F17: N.A | G17: N.A | H17: N.A
A18: Servicios Administrativos
A19: Artículo 15. Telefonía. | C19: 34773285 | D19: 29874936 | E19: =1-(D19/C19) -> 0.1408652936 | F19: 1. La Alcaldía Local de Bosa se compromete a no adquirir telefonia celular. 2. Como medida de control se tienen restricciones para la realización de las lamadas nacionales e internacionales, a través de programación en la planta telefónica solo permite llamadas locales. | G19: 1. Mantener la medida de no comprar telefonia celular. 2. Mantener las medidas de control y el consumo con respecto la vigencia anterior, sin desconocer el aumento anual de precios. | H19: -0.052 | I19: -0.03 | J19: Incremento se hará según IPC | L19: 1
A20: Artículo 16 -. Vehículos oficiales. | B20: O2120201003033331101 O2120201003033336103 | C20: 22474795 | D20: 20692481 | E20: 0.07930279231 | F20: Aunque no sea un gasto elegible para esta vigencia, se continuará llevando un control eficiente y efectivo del suministro de combustible a los vehículos de propiedad de la Alcaldía Local de Bosa, los cuales están destinados a realizar actividades dentro de su misiónalidad. | G20: 1. Implementar mecanismos de control a través de un chip o tecnología similar en los vehículos oficiales que registre el consumo combustible. 2. El mantenimiento del parque automotor se adelantará de acuerdo con el plan programado para el año buscando economía en su ejecución. | H20: -0.052 | I20: -0.03 | J20: Incremento se hará según IPC | L20: 1
A21: Artículo 17 -. Adquisición de vehículos y maquinaria.
A22: Artículo 18 -. Fotocopiado, multicopiado e impresión. | B22: La entidad no registra gastos asociados a este concepto. | C22: N.A | D22: N.A | F22: Este concepto no es elegible, sin embargo se continuara implementando la politica de cero papel en la entidad, dando alcance a las directrices de la Directiva Presidencial No. 04 del 2012, la circular 026 de 2024 y demas actos administrativos concordantes de carácter distrital en la estrategia eficiencia administrativa y lineamientos de la política cero papel en la administración pública. | G22: 1. Uso racional de los procesos de fotocopiado o multicopiado, es con fines exclusivos de la gestión administrativa, y en todo caso quedaran restringidas las copias de carácter personal. 2. Desestimular la expedición de copias, privilegiando el proceso de digitalización y remisión por medios electrónicos, sin embargo, solamente se deben solicitar fotocopias para actos probatorios o donde la norma aplicable en cada caso concreto así lo exija. 3. Se debe privilegiar la revisión en línea o por medios electrónicos como los documentos de gestión, así mismo para el caso de los informes de ejecución contractual, estos podrán ser enviados al supervisor y/o apoyo a la supervisión, con el fin de que se revise y de visto bueno por este medio, para su posterior impresión y radicación oficial de acuerdo con los lineamientos del Sistema Integrado de Gestión, hoy MATIZ. 4. Se debe privilegiar la revisión en línea o por medios electrónicos como los documentos de gestión, así mismo para el caso de los informes de ejecución contractual, estos podrán ser enviados al supervisor y/o apoyo a la supervisión, con el fin de que se revise y de visto bueno por este medio, para su posterior impresión y radicación oficial de acuerdo con los lineamientos del Sistema Integrado de Gestión, hoy MATIZ. 5. Desde el area de almacen y PIGA se hara el seguimiento mensual del consumo de resmas de papel para realizar medidas de control de consumo. 6. Desde el Plan Institucional de Gestión Ambiental, se realizaran las campañas y sensibilizaciones correspondientes para promover la disminucion de papel y el uso del papel reciclado.
A23: Artículo 19 -. Publicidad distrital. | B23: O23011601200000001804 O23011605570000001839 O23011603450000001840 O23011605550000001814 | C23: 414054240 | D23: 824594000 | E23: -0.9915120299 | F23: A pesar de no estar dentro de los criterios de eligibilidad, se sigue el procedimiento establecido para la edición, impresión y reproducción de piezas de comunicación, tales como avisos, folletos, cuadernillos, entre otros; en caso de que la Imprenta Distrital no tenga disponibilidad, se acogen las opciones legalmente permitidas, de igual forma al contrato de plan de medios, se realiza la respectiva inclusión de criterios ambientales para que sean cumplidos y con ello reducir el impacto ambiental significativo, generado por estas actividades. | G23: 1. Continuar con los procesos tecnicos establecidos para la reproducción de piezas. 2. Incluir clasulas ambientales en los procesos de contratación que permiatan el ahorro y disminucion de impactos en el ambiente debido a estas actividades. | H23: -0.052 | I23: -0.03 | J23: Incremento se hará según IPC | L23: 1
A24: Artículo 20 -. Cajas menores. | B24: La entidad no registra gastos asociados a este concepto. | C24: N.A | D24: N.A | F24: N.A | G24: N.A
A25: Artículo 21 -. Mantenimiento o reparación de bienes inmuebles o muebles. | B25: O23011605570000001839: Cuentas claras en Bosa: fortalecimiento de la capacidad institucional con una gestión pública eficiente y transparente. O23011602270000001729: Bosa reverdece haciéndole frente al cambio climático. O2120201003053511001 O2120201003053511003 O2120201003053511004 O2120201003053511018 O2120201003053511030 O2120201003053511035 O2120201003053511038 O2120201003053542007 O2120201003053549918 O2120201003053549943 O2120201003053549955 O2120201003053549996 O2120201003053549999 O2120201003083899310 O2120201003083899311 O2120201003083899918 O2120201003083899997 O2120201003083899998 O2120201004014121201 O2120201004014121302 O2120201004024212002 O2120201004024212009 O2120201004024291101 O2120201004024292114 O2120201004024292115 O2120201004024292118 O2120201004024292119 O2120201004024292120 O2120201004024292122 O2120201004024292123 O2120201004024292199 O2120201004024292299 O2120201004024294201 O2120201004024294401 O2120201004024294403 O2120201004024294406 O2120201004024294408 O2120201004024299205 O2120201004024299908 O2120201004024299910 O2120201004024299915 O2120201004024299920 | C25: 134892000 | D25: 139350000 | E25: -0.03304866115 | F25: Este criterio no está incluido en la lista de elegibles, ya que es necesario realizar mantenimientos preventivos y correctivos a los bienes inmuebles donde funcionan las dependencias de la Alcaldía Local de Bosa. Sin embargo, se implementarán estrategias que promuevan el sentido de pertenencia entre los usuarios y empleados de las instalaciones, fomentando el cuidado y respeto por los espacios comunes y de trabajo. | G25: Realizar campañas de uso adecuado de las areas de trabajo y areas comunes, que contribuyan a la preservación del los espacios de la ALB. | H25: -0.052 | I25: -0.03 | J25: Incremento se hará según IPC | L25: 1
A26: Artículo 22 -. Suscripciones. | B26: La entidad no registra gastos asociados a este concepto. | C26: N.A | D26: N.A | F26: La Alcaldía Local de Bosa no incurrira en costos asociados a la suscripción de periódicos, revistas, publicaciones o bases de datos electrónicas y, en su lugar ha optado por hacer uso de las herramientas tecnológicas que le permitan obtener información relevante para la misionalidad de la entidad. | G26: Mantener al 100% de la no suscripción.
A27: Artículo 23 -. Servicios públicos. | B27: O23011745992024284101000 O23011745992024285301000 O21202020090494239 O21202020080484120 O21202020080686312 O21202020080686330 O23011745992024281001000 O3011745992024281001000 | C27: 87263120 | D27: 59793788.71 | E27: 0.3147874072 | F27: Este rubro no se encuentra priorizado para la vigencia 2025, sin embargo, se continuarán realizando acciones enmarcadas dentro del Plan de Acción PIGA . | G27: 1. Implementar el programa de uso eficiente del agua. 2. Continuar Implementando el programa de uso eficiente de la energia. 3. Continuar implementando las acciones contempladas dentro del PIGA para reducir el consumo y los impactos ambientales. | H27: -0.052 | I27: -0.03 | J27: Incremento se hará según IPC | L27: 1

Sheet 0008-01 KENNEDY
A1: PLAN DE AUSTERIDAD EN EL GASTO 2025-2027
A2: Entidad
A3: Valores en Pesos Corrientes
A4: CONCEPTO (Decreto 062 de 2024) | B4: Posiciones Presupuestales Asociadas (Funcionamiento e Inversión) | C4: LÍNEA BASE | F4: PLAN DE AUSTERIDAD EN EL GASTO 2025-2027 | K4: SEGUIMIENTO RESULTADOS PLAN DE AUSTERIDAD 2025-2027
F5: ESTRATEGIAS 2025-2027 | G5: ACCIONES 2025-2027 | H5: META INDICADOR DE AUSTERIDAD
C6: AÑO 2023 | D6: AÑO 2024 | K6: AÑO 2025 | M6: AÑO 2026 | O6: AÑO 2027
C7: Valor EJECUTADO a 31/12/2023 | D7: Valor EJECUTADO a 31/12/2024 | E7: Resultado Indicador Austeridad | H7: AÑO 2025 | I7: AÑO 2026 | J7: AÑO 2027 | K7: Valor EJECUTADO a 31/12/2025 | L7: Resultado Indicador Austeridad | M7: Valor EJECUTADO a 31/12/2026 | N7: Resultado Indicador Austeridad | O7: Valor EJECUTADO a 31/12/2027 | P7: Resultado Indicador Austeridad
A8: Servicios de personal
A9: Artículo 6°.- Reducción del gasto en CPS profesionales y de apoyo a la gestión. | B9: N.A. | C9: N.A. | D9: N.A. | E9: =1-(D9/C9) ->  | F9: N.A. | G9: N.A. | L9: =1-(K9/D9) ->  | N9: =1-(M9/K9) ->  | P9: =1-(O9/M9) -> 
A10: Artículo 7°.- Horas extras, dominicales y festivos. | B10: N.A. | C10: N.A. | D10: N.A. | F10: N.A. | G10: N.A. | L10: =1-(K10/D10) ->  | N10: =1-(M10/K10) -> 
A11: Artículo 8°.- Viáticos y gastos de viaje. | B11: N.A. | C11: N.A. | D11: N.A. | F11: N.A. | G11: N.A.
A12: Artículo 9°.- Compensación por vacaciones. | B12: N.A. | C12: N.A. | D12: N.A. | F12: N.A. | G12: N.A.
A13: Artículo 10°.- Bono navideño. | B13: N.A. | C13: N.A. | D13: N.A. | F13: N.A. | G13: N.A.
A14: Artículo 11 -. Capacitación. | B14: N.A. | C14: N.A. | D14: N.A. | F14: N.A. | G14: N.A.
A15: Artículo 12 -. Bienestar. | B15: N.A. | C15: N.A. | D15: N.A. | F15: N.A. | G15: N.A.
A16: Artículo 13 -. Eventos y conmemoraciones. | B16: N.A. | C16: N.A. | D16: N.A. | F16: N.A. | G16: N.A.
A17: Artículo 14 -. Fondos educativos. | B17: N.A. | C17: N.A. | D17: N.A. | F17: N.A. | G17: N.A.
A18: Servicios Administrativos
A19: Artículo 15. Telefonía. | B19: N.A. | C19: N.A. | D19: N.A. | E19: =1-(D19/C19) ->  | F19: N.A. | G19: N.A.
A20: Artículo 16 -. Vehículos oficiales. | B20: N.A. | C20: N.A. | D20: N.A. | F20: N.A. | G20: N.A.
A21: Artículo 17 -. Adquisición de vehículos y maquinaria. | B21: N.A. | C21: N.A. | D21: N.A. | F21: N.A. | G21: N.A.
A22: Artículo 18 -. Fotocopiado, multicopiado e impresión. | B22: Consumo de hojas en fotocopiado, multicopiado e Impresión. | C22: 81734732 | D22: 191035388 | E22: -1.337260835 | F22: * Disminuir el uso de hojas en diferentes procesos de la Alcaldía. * Realizar capacitaciones a los funcionarios para aprovechar los medios digitales en miras de la politica de cero papel. | G22: * Incentivar al uso de medios digitales y evitar la impresión de documentos innecesarios. * Sensibilizar y concientizar por medio de campañas que permitar disminuir el consumo de papel | H22: 0.05 | I22: 0.04 | J22: 0.03 | L22: 1
A23: Artículo 19 -. Publicidad distrital. | B23: Contratar el suministro de impresos, publicaciones, material litográfico y elementos de publicidad institucional a monto agotable, que requiera la Alcaldía Local de Kennedy, de conformidad con las condiciones, cantidades y especificaciones técnicas establecidas a precios fijos. | C23: 67500000 | D23: 42000000 | E23: 0.3777777778 | F23: *Implementar el uso constante de la página web de la alcaldía local de Kennedy. *Incentivar al uso de las redes sociales de la alcaldía. *Promover uso de medios tecnológicos. | G23: *Disminuir suministro de impresos, publicaciones, material litográfico, y elementos de publicidad institucional. *Reducir los insumos de impresos a un 50% | H23: 0.03 | I23: 0.02 | J23: 0.02 | L23: 1
A24: Artículo 20 -. Cajas menores. | B24: N.A. | C24: N.A. | D24: N.A. | F24: N.A. | G24: N.A.
A25: Artículo 21 -. Mantenimiento o reparación de bienes inmuebles o muebles. | B25: N.A. | C25: N.A. | D25: N.A. | F25: N.A. | G25: N.A.
A26: Artículo 22 -. Suscripciones. | B26: N.A. | C26: N.A. | D26: N.A. | F26: N.A. | G26: N.A.
A27: Artículo 23 -. Servicios públicos. | B27: N.A. | C27: N.A. | D27: N.A. | F27: N.A. | G27: N.A.

Sheet 0010-01 ENGATIVA
A1: PLAN DE AUSTERIDAD EN EL GASTO 2025-2027
A2: Entidad | B2: FONDO DE DESARROLLO LOCAL DE ENGATIVÁ
A3: Valores en Pesos Corrientes
A4: CONCEPTO (Decreto 062 de 2024) | B4: Posiciones Presupuestales Asociadas (Funcionamiento e Inversión) | C4: LÍNEA BASE | F4: PLAN DE AUSTERIDAD EN EL GASTO 2025-2027 | K4: SEGUIMIENTO RESULTADOS PLAN DE AUSTERIDAD 2025-2027
F5: ESTRATEGIAS 2025-2027 | G5: ACCIONES 2025-2027 | H5: META INDICADOR DE AUSTERIDAD
C6: AÑO 2023 | D6: AÑO 2024 | K6: AÑO 2025 | M6: AÑO 2026 | O6: AÑO 2027
C7: Valor EJECUTADO a 31/12/2023 | D7: Valor EJECUTADO a 31/12/2024 | E7: Resultado Indicador Austeridad | H7: AÑO 2025 | I7: AÑO 2026 | J7: AÑO 2027 | K7: Valor EJECUTADO a 31/12/2025 | L7: Resultado Indicador Austeridad | M7: Valor EJECUTADO a 31/12/2026 | N7: Resultado Indicador Austeridad | O7: Valor EJECUTADO a 31/12/2027 | P7: Resultado Indicador Austeridad
A8: Servicios de personal
A9: Artículo 6°.- Reducción del gasto en CPS profesionales y de apoyo a la gestión. | B9: N.A. Se registran totales. Corresponde con lo reportado en SIDEAP y SIVICOF | C9: 18676706005 | D9: 13049302337 | E9: =1-(D9/C9) -> 0.3013060047 | F9: Revisar las necesidades de la alcdía local, procurando que estas sean estrictamente para el cumplimiento de las funciones institucionales y misionales; que permitan atender los compromisos derivados del funcionamiento. | G9: Con relación a la línea base y de acuerdo a los lineamientos dados se propenderá por solo incrementar el IPC de cada vigencia | H9: Incremento IPC | I9: Incremento IPC | J9: Incremento IPC | L9: =1-(K9/D9) -> 1 | N9: =1-(M9/K9) ->  | P9: =1-(O9/M9) -> 
A10: Artículo 7°.- Horas extras, dominicales y festivos. | C10: 0 | D10: 0 | F10: N/A | G10: N/A | L10: =1-(K10/D10) ->  | N10: =1-(M10/K10) -> 
A11: Artículo 8°.- Viáticos y gastos de viaje. | C11: 0 | D11: 0 | F11: N/A | G11: N/A
A12: Artículo 9°.- Compensación por vacaciones. | C12: 0 | D12: 0 | F12: N/A | G12: N/A
A13: Artículo 10°.- Bono navideño. | C13: 0 | D13: 0 | F13: N/A | G13: N/A
A14: Artículo 11 -. Capacitación. | C14: 0 | D14: 0 | F14: N/A | G14: N/A
A15: Artículo 12 -. Bienestar. | C15: 0 | D15: 0 | F15: N/A | G15: N/A
A16: Artículo 13 -. Eventos y conmemoraciones. | C16: 0 | D16: 0 | F16: N/A | G16: N/A
A17: Artículo 14 -. Fondos educativos. | C17: 0 | D17: 0 | F17: N/A | G17: N/A
A18: Servicios Administrativos
A19: Artículo 15. Telefonía. | C19: 48397200 | D19: 44364100 | E19: =1-(D19/C19) -> 0.08333333333 | F19: La Alcaldía Local, se compromete a la no adquisición de líneas de celular y a la no adquisición de líneas de teléfono adicionales. | G19: Continuar con el ahorro en telefonía y no adquirir líneas y teléfonos adicionales. | H19: 10.00% | I19: 10.00% | J19: 10.00% | L19: 1
A20: Artículo 16 -. Vehículos oficiales. | C20: 0 | D20: 0 | F20: N/A | G20: N/A
A21: Artículo 17 -. Adquisición de vehículos y maquinaria. | C21: 172366099 | D21: 1541203600 | E21: -7.941454317 | F21: Solo se asignan vehículos de uso oficial con cargo a recursos de la entidad para el Despacho y las áreas que necesiten su uso para el cumplimiento de los objetivos y actividades que se requieren la localidad. | G21: Se efectuarán controles periódicos de consumo de combustible, mantenimientos preventivos y correctivos a cada vehículo que conforman el parque automotor de la entidad. | H21: 1.00% | I21: 1.00% | J21: 1.00% | L21: 1
A22: Artículo 18 -. Fotocopiado, multicopiado e impresión. | C22: 15720574 | D22: 24444323 | E22: -0.5549256026 | F22: Se continuará implementación de la “política de Cero Papel”, con el fin de dar prioridad al uso de los medios digitales y evitar impresiones, reducir el consumo de papel, reutilizar y reciclar implementos de oficina. | G22: Disminución del consumo de papel con respecto a la vigencia anterior. Se Promoverá una cultura de responsabilidad ambiental y eficiencia operativa mediante la una estrategia de sensibilización de los usuarios de la entidad en relación con la racionalización del uso de papel en pro de la reducción del gasto público y preservación del medio ambiente. | H22: 5.00% | I22: 5.00% | J22: 5.00% | L22: 1
A23: Artículo 19 -. Publicidad distrital. | C23: 0 | D23: 0 | F23: N/A | G23: N/A
A24: Artículo 20 -. Cajas menores. | C24: 0 | D24: 0 | F24: La Alcaldía Local se compromete a no realizar la habilitación de cajas menores. | G24: Mantener al 100% la no creación de cajas menores | H24: 100.00% | I24: 100.00% | J24: 100.00%
A25: Artículo 21 -. Mantenimiento o reparación de bienes inmuebles o muebles. | C25: 0 | D25: 0 | F25: N/A | G25: N/A
A26: Artículo 22 -. Suscripciones. | C26: 0 | D26: 0 | F26: La Alcaldía Local ha decidido no incurrir en costos asociados a la suscripción a periódicos, revistas, publicaciones o bases de datos electrónicas y, en su lugar ha optado por hacer uso de las herramientas tecnológicas que le permitan obtener información relevante para la misionalidad de la entidad. | G26: Mantener al 100% de la no suscripción a revistas, periódicos, entre otros. | H26: 100.00% | I26: 100.00% | J26: 100.00%
A27: Artículo 23 -. Servicios públicos. | C27: 260197361 | D27: 264.55898 | E27: 0.9999989832 | F27: Se realizará seguimiento al consumo de agua en m3 y de energía en kW. | G27: Mantener o disminuir el consumo de agua y se habilitaran orinales sin agua para propiciar el ahorro. Energía, se colocarán sensores para reducir el consumo. Tanto para agua como energía, se realizarán sensibilizaciones por los medios disponibles en la alcaldía local | H27: 1.00% | I27: 1.00% | J27: 1.00% | L27: 1

Sheet 0009-01 FONTIBON
A1: PLAN DE AUSTERIDAD EN EL GASTO 2025-2027
A2: Entidad
A3: Valores en Pesos Corrientes
A4: CONCEPTO (Decreto 062 de 2024) | B4: Posiciones Presupuestales Asociadas (Funcionamiento e Inversión) | C4: LÍNEA BASE | F4: PLAN DE AUSTERIDAD EN EL GASTO 2025-2027 | K4: SEGUIMIENTO RESULTADOS PLAN DE AUSTERIDAD 2025-2027
F5: ESTRATEGIAS 2025-2027 | G5: ACCIONES 2025-2027 | H5: META INDICADOR DE AUSTERIDAD
C6: AÑO 2023 | D6: AÑO 2024 | K6: AÑO 2025 | M6: AÑO 2026 | O6: AÑO 2027
C7: Valor EJECUTADO a 31/12/2023 | D7: Valor EJECUTADO a 31/12/2024 | E7: Resultado Indicador Austeridad | H7: AÑO 2025 | I7: AÑO 2026 | J7: AÑO 2027 | K7: Valor EJECUTADO a 31/12/2025 | L7: Resultado Indicador Austeridad | M7: Valor EJECUTADO a 31/12/2026 | N7: Resultado Indicador Austeridad | O7: Valor EJECUTADO a 31/12/2027 | P7: Resultado Indicador Austeridad
A8: Servicios de personal
A9: Artículo 6°.- Reducción del gasto en CPS profesionales y de apoyo a la gestión. | B9: N.A. Se registran totales. Corresponde con lo reportado en SIDEAP y SIVICOF | C9: 14706483383 | D9: 13265459500 | E9: =1-(D9/C9) -> 0.09798561937 | H9: 0.05 | I9: Según el IPC | J9: Según el IPC | L9: =1-(K9/D9) -> 1 | N9: =1-(M9/K9) ->  | P9: =1-(O9/M9) -> 
A10: Artículo 7°.- Horas extras, dominicales y festivos. | B10: N/A | C10: N/A | D10: N/A | F10: N/A | G10: N/A | H10: N/A | I10: N/A | J10: N/A | L10: =1-(K10/D10) ->  | N10: =1-(M10/K10) -> 
A11: Artículo 8°.- Viáticos y gastos de viaje. | B11: N/A | C11: N/A | D11: N/A | F11: N/A | G11: N/A | H11: N/A | I11: N/A | J11: N/A
A12: Artículo 9°.- Compensación por vacaciones. | B12: N/A | C12: N/A | D12: N/A | F12: N/A | G12: N/A | H12: N/A | I12: N/A | J12: N/A
A13: Artículo 10°.- Bono navideño. | B13: N/A | C13: N/A | D13: N/A | F13: N/A | G13: N/A | H13: N/A | I13: N/A | J13: N/A
A14: Artículo 11 -. Capacitación. | B14: N/A | C14: N/A | D14: N/A | F14: N/A | G14: N/A | H14: N/A | I14: N/A | J14: N/A
A15: Artículo 12 -. Bienestar. | B15: N/A | C15: N/A | D15: N/A | F15: N/A | G15: N/A | H15: N/A | I15: N/A | J15: N/A
A16: Artículo 13 -. Eventos y conmemoraciones. | B16: N/A | C16: N/A | D16: N/A | F16: N/A | G16: N/A | H16: N/A | I16: N/A | J16: N/A
A17: Artículo 14 -. Fondos educativos. | B17: N/A | C17: N/A | D17: N/A | F17: N/A | G17: N/A | H17: N/A | I17: N/A | J17: N/A
A18: Servicios Administrativos
A19: Artículo 15. Telefonía. | B19: Funcionamiento O21202020080484110 Servicios de operadores (conexión) O21202020080484120 Servicios de telefonía fija (acceso) | C19: 100112227 | D19: 74305018 | E19: =1-(D19/C19) -> 0.2577827881 | F19: Solicitar un inventario y tráfico de líneas telefónicas registradas a nombre del FDLF a la empresa prestadora | G19: Analizar el inventrio que en su momento entregue la empresa prestadora del servicio de telefonía y establecer un contacto continuo con el fin de obtener un informe detallado de los consumos mensuales. Además, estudiar la posibilidad de cancelar líneas que se determinen que no se estén utilizando | H19: 0.01 | I19: Se ajusta según el IPC | J19: Se ajusta según el IPC | L19: 1
A20: Artículo 16 -. Vehículos oficiales. | B20: O23011604490000001780 Un nuevo contrato para movilidad en Fontibón O2120202008078714102 Servicio de mantenimiento y reparación de vehículos automóviles O23011604490000001780 Un nuevo contrato para movilidad en Fontibón O2120201003033331101 Gasolina motor corriente O2120201003033336103 Diésel oil ACPM (fuel gas gasoil marine gas) | C20: 103250736 | D20: 99829984 | E20: 0.03313053381 | F20: 1) Adelantar el proceso administrativo para dar de baja a una parte del parque automotor. 2) Revisar la viabilidad de reemplazar los vehículos livianos que se den de baja, por vehículos sostenibles y amigables con el medio ambiente 3) Diseñar un RFI o un tablero de control para el consumo razonable de combustible 4) Monitoreo, control y uso razonable (eficiente y eficaz) del consumo de combustible | G20: Propender por el buen uso del parque automotor con el fin de garantizar la durabilidad de los mantenimientos preventivos y correctivos que se adelantan a cada uno de los vehiculos livianos que están disponibles para el cumplimiento de la misionalidad del Fondo de Desarrollo Local. Seguimiento al consumo mensual por vehículo a través del control y monitoreo por medio del localizador satelital | H20: 0.05 | I20: Se ajusta según el IPC | J20: Se ajusta según el IPC | L20: 1
A21: Artículo 17 -. Adquisición de vehículos y maquinaria. | B21: N/A | C21: N/A | D21: N/A | F21: N/A | G21: N/A | H21: N/A | I21: N/A | J21: N/A
A22: Artículo 18 -. Fotocopiado, multicopiado e impresión. | B22: O21202020080585951 Servicios de copia y reproducción | C22: 23698832 | D22: 28843018 | E22: -0.2170649592 | F22: Implementar procesos de digitalización de las cuentas de personas naturales y juridicas; además de los procesos de contratación con el fin de alcanzar una reducción significativa en el uso de papel | G22: Utilizar herramientas colaborativas con el fin de optimizar los procesos y reducir el consumo de papel al máximo posible. | H22: 0.01 | I22: Se ajusta según el IPC | J22: Se ajusta según el IPC | L22: 1
A23: Artículo 19 -. Publicidad distrital. | B23: N/A | C23: N/A | D23: N/A | F23: N/A | G23: N/A | H23: N/A | I23: N/A | J23: N/A
A24: Artículo 20 -. Cajas menores. | B24: N/A | C24: N/A | D24: N/A | F24: N/A | G24: N/A | H24: N/A | I24: N/A | J24: N/A
A25: Artículo 21 -. Mantenimiento o reparación de bienes inmuebles o muebles. | B25: O2120202008078715701 Servicio de mantenimiento y reparación de ascensores O23011601210000001758 Un nuevo contrato para la cultura en Fontibón | C25: =58616427 -> 58616427 | D25: 309090944 | E25: -4.273111307 | F25: Implementar mantenimientos preventivos con regularidad con el fin de evitar el deterioro de los componentes eléctricos y electrónicos del sistema integral de ascesores. | G25: 1) Establecer contacto continuo con el proveedor con el fin de propender por acciones de mejora y evitar el deterioro. 2) Diseñar un plan de usabilidad, por medio de una senisibilización del uso racional del ascensor, según su capacidad y necesidad. 3) Realizar mantenimientos preventivos locativos en las sedes físicas del Fondo de Desarrrollo Local para evitar el deterioro por el uso continuo | H25: 0.05 | I25: Se ajusta según el IPC | J25: Se ajusta según el IPC | L25: 1
A26: Artículo 22 -. Suscripciones. | B26: N/A | C26: N/A | D26: N/A | F26: N/A | G26: N/A | H26: N/A | I26: N/A | J26: N/A
A27: Artículo 23 -. Servicios públicos. | B27: O21202020080686312 Servicios de distribución de electricidad (a comisión o por contrato) O21202020080686320 Servicios de distribución de gas por tuberías (a comisión o por contrato) O21202020080686330 Servicios de distribución de agua por tubería (a comisión o por contrato) O21202020090494110 Servicios de alcantarillado y tratamiento de aguas O21202020090494239 Servicios generales de recolección de otros desechos | C27: 135933988 | D27: 142457075 | E27: -0.04798716712 | F27: Realizar campañas de sensibilización con el PIGA del Fondo de Desarrollo Local de Fontibón con el fin de tener un uso razonable de los diferentes servicios públicos de la entidad en cada una de la sedes. | G27: 1) Implementar, fortalecer y impulsar campañas de sensibilización con el PIGA para fomentar el uso racional del consumo de agua y luz 2) Sensibilizar a funcionarios, contratistas, ciudadanía y comunidad en general, para los procesos de separación en la fuente con el objetivo de minimizar al máximo la producción de residuos. | H27: 0.01 | I27: Se ajusta según el IPC | J27: Se ajusta según el IPC | L27: 1

Sheet 0011-01 SUBA
A1: PLAN DE AUSTERIDAD EN EL GASTO 2025-2027
A2: Entidad
A3: Valores en Pesos Corrientes
A4: CONCEPTO (Decreto 062 de 2024) | B4: Posiciones Presupuestales Asociadas (Funcionamiento e Inversión) | C4: LÍNEA BASE | F4: PLAN DE AUSTERIDAD EN EL GASTO 2025-2027 | K4: SEGUIMIENTO RESULTADOS PLAN DE AUSTERIDAD 2025-2027
F5: ESTRATEGIAS 2025-2027 | G5: ACCIONES 2025-2027 | H5: META INDICADOR DE AUSTERIDAD
C6: AÑO 2023 | D6: AÑO 2024 | K6: AÑO 2025 | M6: AÑO 2026 | O6: AÑO 2027
C7: Valor EJECUTADO a 31/12/2023 | D7: Valor EJECUTADO a 31/12/2024 | E7: Resultado Indicador Austeridad | H7: AÑO 2025 | I7: AÑO 2026 | J7: AÑO 2027 | K7: Valor EJECUTADO a 31/12/2025 | L7: Resultado Indicador Austeridad | M7: Valor EJECUTADO a 31/12/2026 | N7: Resultado Indicador Austeridad | O7: Valor EJECUTADO a 31/12/2027 | P7: Resultado Indicador Austeridad
A8: Servicios de personal
A9: Artículo 6°.- Reducción del gasto en CPS profesionales y de apoyo a la gestión. | B9: N.A. Se registran totales. Corresponde con lo reportado en SIDEAP y SIVICOF | E9: =1-(D9/C9) ->  | L9: =1-(K9/D9) ->  | N9: =1-(M9/K9) ->  | P9: =1-(O9/M9) -> 
A10: Artículo 7°.- Horas extras, dominicales y festivos. | L10: =1-(K10/D10) ->  | N10: =1-(M10/K10) -> 
A11: Artículo 8°.- Viáticos y gastos de viaje.
A12: Artículo 9°.- Compensación por vacaciones.
A13: Artículo 10°.- Bono navideño.
A14: Artículo 11 -. Capacitación.
A15: Artículo 12 -. Bienestar.
A16: Artículo 13 -. Eventos y conmemoraciones.
A17: Artículo 14 -. Fondos educativos.
A18: Servicios Administrativos
A19: Artículo 15. Telefonía. | E19: =1-(D19/C19) -> 
A20: Artículo 16 -. Vehículos oficiales.
A21: Artículo 17 -. Adquisición de vehículos y maquinaria.
A22: Artículo 18 -. Fotocopiado, multicopiado e impresión.
A23: Artículo 19 -. Publicidad distrital.
A24: Artículo 20 -. Cajas menores.
A25: Artículo 21 -. Mantenimiento o reparación de bienes inmuebles o muebles.
A26: Artículo 22 -. Suscripciones.
A27: Artículo 23 -. Servicios públicos.

Sheet 0012-01 BARRIOS UNI
A1: PLAN DE AUSTERIDAD EN EL GASTO 2025-2027
A2: Entidad
A3: Valores en Pesos Corrientes
A4: CONCEPTO (Decreto 062 de 2024) | B4: Posiciones Presupuestales Asociadas (Funcionamiento e Inversión) | C4: LÍNEA BASE | F4: PLAN DE AUSTERIDAD EN EL GASTO 2025-2027 | K4: SEGUIMIENTO RESULTADOS PLAN DE AUSTERIDAD 2025-2027
F5: ESTRATEGIAS 2025-2027 | G5: ACCIONES 2025-2027 | H5: META INDICADOR DE AUSTERIDAD
C6: AÑO 2023 | D6: AÑO 2024 | K6: AÑO 2025 | M6: AÑO 2026 | O6: AÑO 2027
C7: Valor EJECUTADO a 31/12/2023 | D7: Valor EJECUTADO a 31/12/2024 | E7: Resultado Indicador Austeridad | H7: AÑO 2025 | I7: AÑO 2026 | J7: AÑO 2027 | K7: Valor EJECUTADO a 31/12/2025 | L7: Resultado Indicador Austeridad | M7: Valor EJECUTADO a 31/12/2026 | N7: Resultado Indicador Austeridad | O7: Valor EJECUTADO a 31/12/2027 | P7: Resultado Indicador Austeridad
A8: Servicios de personal
A9: Artículo 6°.- Reducción del gasto en CPS profesionales y de apoyo a la gestión. | B9: N.A. Se registran totales. Corresponde con lo reportado en SIDEAP y SIVICOF | E9: =1-(D9/C9) ->  | L9: =1-(K9/D9) ->  | N9: =1-(M9/K9) ->  | P9: =1-(O9/M9) -> 
A10: Artículo 7°.- Horas extras, dominicales y festivos. | L10: =1-(K10/D10) ->  | N10: =1-(M10/K10) -> 
A11: Artículo 8°.- Viáticos y gastos de viaje.
A12: Artículo 9°.- Compensación por vacaciones.
A13: Artículo 10°.- Bono navideño.
A14: Artículo 11 -. Capacitación.
A15: Artículo 12 -. Bienestar.
A16: Artículo 13 -. Eventos y conmemoraciones.
A17: Artículo 14 -. Fondos educativos.
A18: Servicios Administrativos
A19: Artículo 15. Telefonía. | E19: =1-(D19/C19) -> 
A20: Artículo 16 -. Vehículos oficiales.
A21: Artículo 17 -. Adquisición de vehículos y maquinaria.
A22: Artículo 18 -. Fotocopiado, multicopiado e impresión.
A23: Artículo 19 -. Publicidad distrital.
A24: Artículo 20 -. Cajas menores.
A25: Artículo 21 -. Mantenimiento o reparación de bienes inmuebles o muebles.
A26: Artículo 22 -. Suscripciones.
A27: Artículo 23 -. Servicios públicos.

Sheet 0013-01 TEUSAQUILLO
A1: PLAN DE AUSTERIDAD EN EL GASTO 2025-2027
A2: Entidad
A3: Valores en Pesos Corrientes
A4: CONCEPTO (Decreto 062 de 2024) | B4: Posiciones Presupuestales Asociadas (Funcionamiento e Inversión) | C4: LÍNEA BASE | F4: PLAN DE AUSTERIDAD EN EL GASTO 2025-2027 | K4: SEGUIMIENTO RESULTADOS PLAN DE AUSTERIDAD 2025-2027
F5: ESTRATEGIAS 2025-2027 | G5: ACCIONES 2025-2027 | H5: META INDICADOR DE AUSTERIDAD
C6: AÑO 2023 | D6: AÑO 2024 | K6: AÑO 2025 | M6: AÑO 2026 | O6: AÑO 2027
C7: Valor EJECUTADO a 31/12/2023 | D7: Valor EJECUTADO a 31/12/2024 | E7: Resultado Indicador Austeridad | H7: AÑO 2025 | I7: AÑO 2026 | J7: AÑO 2027 | K7: Valor EJECUTADO a 31/12/2025 | L7: Resultado Indicador Austeridad | M7: Valor EJECUTADO a 31/12/2026 | N7: Resultado Indicador Austeridad | O7: Valor EJECUTADO a 31/12/2027 | P7: Resultado Indicador Austeridad
A8: Servicios de personal
A9: Artículo 6°.- Reducción del gasto en CPS profesionales y de apoyo a la gestión. | B9: N.A. Se registran totales. Corresponde con lo reportado en SIDEAP y SIVICOF | E9: =1-(D9/C9) ->  | H9: -5.2% | I9: -3.23% | J9: -3.0% | K9: =D9*1.052 -> 0 | L9: =1-(K9/D9) ->  | N9: =1-(M9/K9) ->  | P9: =1-(O9/M9) -> 
A10: Artículo 7°.- Horas extras, dominicales y festivos. | L10: =1-(K10/D10) ->  | N10: =1-(M10/K10) -> 
A11: Artículo 8°.- Viáticos y gastos de viaje.
A12: Artículo 9°.- Compensación por vacaciones.
A13: Artículo 10°.- Bono navideño.
A14: Artículo 11 -. Capacitación.
A15: Artículo 12 -. Bienestar.
A16: Artículo 13 -. Eventos y conmemoraciones.
A17: Artículo 14 -. Fondos educativos.
A18: Servicios Administrativos
A19: Artículo 15. Telefonía. | E19: =1-(D19/C19) -> 
A20: Artículo 16 -. Vehículos oficiales. | B20: Funcionamiento no. rubro presupuestal | C20: 12000000 | D20: 15000000 | E20: -0.25 | H20: =1-(K20/D20) -> 0 | K20: 15000000 | L20: 0 | N20: 1
A21: Artículo 17 -. Adquisición de vehículos y maquinaria. | K21: 14000000 | N21: 1
A22: Artículo 18 -. Fotocopiado, multicopiado e impresión.
A23: Artículo 19 -. Publicidad distrital. | D23: 9000000 | H23: = | K23: 0 | L23: 1
A24: Artículo 20 -. Cajas menores.
A25: Artículo 21 -. Mantenimiento o reparación de bienes inmuebles o muebles.
A26: Artículo 22 -. Suscripciones.
A27: Artículo 23 -. Servicios públicos.

Sheet 0014-01 MARTIRES
A1: PLAN DE AUSTERIDAD EN EL GASTO 2025-2027
A2: Entidad | B2: Alcaldia Local de Los Martires
A3: Valores en Pesos Corrientes
A4: CONCEPTO (Decreto 062 de 2024) | B4: Posiciones Presupuestales Asociadas (Funcionamiento e Inversión) | C4: LÍNEA BASE | F4: PLAN DE AUSTERIDAD EN EL GASTO 2025-2027 | K4: SEGUIMIENTO RESULTADOS PLAN DE AUSTERIDAD 2025-2027
F5: ESTRATEGIAS 2025-2027 | G5: ACCIONES 2025-2027 | H5: META INDICADOR DE AUSTERIDAD
C6: AÑO 2023 | D6: AÑO 2024 | K6: AÑO 2025 | M6: AÑO 2026 | O6: AÑO 2027
C7: Valor EJECUTADO a 31/12/2023 | D7: Valor EJECUTADO a 31/12/2024 | E7: Resultado Indicador Austeridad | H7: AÑO 2025 | I7: AÑO 2026 | J7: AÑO 2027 | K7: Valor EJECUTADO a 31/12/2025 | L7: Resultado Indicador Austeridad | M7: Valor EJECUTADO a 31/12/2026 | N7: Resultado Indicador Austeridad | O7: Valor EJECUTADO a 31/12/2027 | P7: Resultado Indicador Austeridad
A8: Servicios de personal
A9: Artículo 6°.- Reducción del gasto en CPS profesionales y de apoyo a la gestión. | B9: N.A. Se registran totales. Corresponde con lo reportado en SIDEAP y SIVICOF | C9: 5838578884 | D9: 7657806132 | E9: =1-(D9/C9) -> -0.3115873373 | F9: Tomando como linea base la contratacion requerida para 2025, se caldula mantener el valor de la contratacion para 2025 en 7600 millones para el rubro de fortalecimiento (incluye transparencia e IVC) | G9: Realizar un diagnostico de necesidades de la Alcaldia Local. Proyectar los contratos de acuerdo a la necesidad del objeto. Revisar objetos contractuales y obligaciones para maximizar el uso de los contratos. | H9: 0.01 | I9: 3.26 | J9: 3 | L9: =1-(K9/D9) -> 1 | N9: =1-(M9/K9) ->  | P9: =1-(O9/M9) -> 
A10: Artículo 7°.- Horas extras, dominicales y festivos. | B10: N.A | C10: N.A | D10: N.A | F10: N.A | G10: N.A | H10: N/A | I10: N/A | J10: N/A | L10: =1-(K10/D10) ->  | N10: =1-(M10/K10) -> 
A11: Artículo 8°.- Viáticos y gastos de viaje. | B11: N.A | C11: N.A | D11: N.A | F11: N.A | G11: N.A | H11: N/A | I11: N/A | J11: N/A
A12: Artículo 9°.- Compensación por vacaciones. | B12: N.A | C12: N.A | D12: N.A | F12: N.A | G12: N.A | H12: N/A | I12: N/A | J12: N/A
A13: Artículo 10°.- Bono navideño. | B13: N.A | C13: N.A | D13: N.A | F13: N.A | G13: N.A | H13: N/A | I13: N/A | J13: N/A
A14: Artículo 11 -. Capacitación. | B14: N.A | C14: N.A | D14: N.A | F14: N.A | G14: N.A | H14: N/A | I14: N/A | J14: N/A
A15: Artículo 12 -. Bienestar. | B15: N.A | C15: N.A | D15: N.A | F15: N.A | G15: N.A | H15: N/A | I15: N/A | J15: N/A
A16: Artículo 13 -. Eventos y conmemoraciones. | B16: N.A | C16: N.A | D16: N.A | F16: N.A | G16: N.A | H16: N/A | I16: N/A | J16: N/A
A17: Artículo 14 -. Fondos educativos. | B17: N.A | C17: N.A | D17: N.A | F17: N.A | G17: N.A | H17: N/A | I17: N/A | J17: N/A
A18: Servicios Administrativos
A19: Artículo 15. Telefonía. | B19: O21202020080484222 Servicios de acceso a Internet de banda ancha O21202020080484120 Servicios de telefonía fija (acceso) | C19: 42182242 | D19: 38404940 | E19: =1-(D19/C19) -> 0.08954720804 | F19: Revisar las cuentas contrato a nombre del FDLM, realizar depuración en los casos que corresponda, que genere una reduccion en la facturacion de las cuentas contrato asociadas al funcionamiento y comunicacion de la ALM. No se adquirirán planes de telefonía móvil o celulares para el Directivo. | G19: Se plantea un cambio de operador del servicio de internet que ofrezca una reducción en la facturación mensual para así mantener el ahorro en el pago del servicio. | H19: 0 | I19: 0.0326 | J19: 0.03 | L19: 1
A20: Artículo 16 -. Vehículos oficiales. | B20: O2120201003033331101 Gasolina motor corriente O2120202008078714102 Servicio de mantenimiento y reparación de vehículo | C20: 45074308 | D20: 24979216 | E20: 0.44582142 | F20: Realizar el mantenimiento preventivo y correctivo al parque automotor, en los casos que corresponda. Es de aclarar que el parque automotor tiene más de 10 años de haber sido adquirido. | G20: Mantener el control de los recorridos de los vehículos a través de la adquisición de GPS Mantener el control del consumo de gasolina a través del CHIP | H20: 0 | I20: 0.0326 | J20: 0.03 | L20: 1
A21: Artículo 17 -. Adquisición de vehículos y maquinaria. | B21: N.A | C21: N.A | D21: N.A | F21: N.A | G21: N.A | H21: N.A | I21: N.A | J21: N.A
A22: Artículo 18 -. Fotocopiado, multicopiado e impresión. | B22: O21202020080585951 Servicios de copia y reproducción | C22: 7282800 | D22: 7500000 | E22: -0.02982369418 | F22: Generar una reduccion total en el uso de papel impreso y llegar a una aplicacion completa de papel cero en la ALM a traves de cambio de cultura y la concienciacion de todo el personal a traves de campañas activas permanentes y sensibilizaciones | G22: Continuar realizando las campañas de socialización de lineamientos de política cero papel a los funcionarios y contratistas de la ALM. Se continuará con la contratación del servicio de arrendamiento de fotocopiado, con el control de consumo de impresión, asignando una cantidad mínima de impresiones a cada usuario. | H22: 0 | I22: 0.0326 | J22: 0.03 | L22: 1
A23: Artículo 19 -. Publicidad distrital. | B23: N.A | C23: N.A | D23: N.A | F23: N.A | G23: N.A | H23: N.A | I23: N.A | J23: N.A
A24: Artículo 20 -. Cajas menores. | B24: N.A | C24: N.A | D24: N.A | F24: N.A | G24: N.A | H24: N.A | I24: N.A | J24: N.A
A25: Artículo 21 -. Mantenimiento o reparación de bienes inmuebles o muebles. | B25: O2120202008078715701 Servicio de mantenimiento y reparación de ascensor O2120201004024299991 Artículos n.c.p. de ferretería y cerrajería O23011605570000002099 Gestión pública eficiente y transparente | C25: 0.001 | D25: 34053333 | E25: -34053332999 | F25: Realizar acciones de mantenimiento preventivo de los inmuebles de propiedad del FDLM, con el fin de asegurar su preservación. | G25: Mantenimiento preventivo de los ascensores del Salón Comunal Santa fé y de la nueva sede administrativa. Mantenimiento preventivo de los equipos eléctricos, hidraúlicos de propiedad del FDLM, para el funcionamiento de los inmuebles. Mantenimiento de las sedes de propiedad del FDLM, que evite mayores consumos a largo plazo Campañas de uso responsable de la tomas eléctricas, de riesgo eléctrico | H25: 0 | I25: 0.0326 | J25: 0.03 | L25: 1
A26: Artículo 22 -. Suscripciones. | B26: N.A | C26: N.A | D26: N.A | F26: N.A | G26: N.A | H26: N.A | I26: N.A | J26: N.A
A27: Artículo 23 -. Servicios públicos. | B27: O21202020080686312 Servicios de distribución de electricidad (a comis O21202020080686330 Servicios de distribución de agua por tubería (a c O21202020090494239 Servicios generales de recolección de otros desech | C27: 16256110 | D27: 20166720 | E27: -0.2405624716 | F27: Implementar una reduccion progresiva en el consumo de los recursos naturales priorizando el mantenimiento preventivo de las instalaciones hidraulicas, asi como permeando en un cambio de conciencia a traves de campañas y sensibilizaciones a los colaboradores de la ALM | G27: Generar un mantenimiento preventivo en lugar de correctivo a las instalaciones de las sedes concertadas a fin de evitar las pérdidas del recurso hídrico la cual fue la razón del incremento de la facturación en el 2024, aunado a esto, el incremento de campañas activas, de comunicados, socializaciones, capacitaciones, correos masivos, piezas gráficas y demás que permitan continuar con la disminución del consumo en los servicios público Reutilización de aguas lluvias, iluminación LED con la nueva sede, equipos hidrosanitarios ahorradores en las instalaciones de la nueva sede administrativa | H27: 0 | I27: 0.0326 | J27: 0.03 | L27: 1

Sheet 0015-01 A. NARIÑO
A1: PLAN DE AUSTERIDAD EN EL GASTO 2025-2027
A2: Entidad
A3: Valores en Pesos Corrientes
A4: CONCEPTO (Decreto 062 de 2024) | B4: Posiciones Presupuestales Asociadas (Funcionamiento e Inversión) | C4: LÍNEA BASE | F4: PLAN DE AUSTERIDAD EN EL GASTO 2025-2027 | K4: SEGUIMIENTO RESULTADOS PLAN DE AUSTERIDAD 2025-2027
F5: ESTRATEGIAS 2025-2027 | G5: ACCIONES 2025-2027 | H5: META INDICADOR DE AUSTERIDAD
C6: AÑO 2023 | D6: AÑO 2024 | K6: AÑO 2025 | M6: AÑO 2026 | O6: AÑO 2027
C7: Valor EJECUTADO a 31/12/2023 | D7: Valor EJECUTADO a 31/12/2024 | E7: Resultado Indicador Austeridad | H7: AÑO 2025 | I7: AÑO 2026 | J7: AÑO 2027 | K7: Valor EJECUTADO a 31/12/2025 | L7: Resultado Indicador Austeridad | M7: Valor EJECUTADO a 31/12/2026 | N7: Resultado Indicador Austeridad | O7: Valor EJECUTADO a 31/12/2027 | P7: Resultado Indicador Austeridad
A8: Servicios de personal
A9: Artículo 6°.- Reducción del gasto en CPS profesionales y de apoyo a la gestión. | B9: N.A. Se registran totales. Corresponde con lo reportado en SIDEAP y SIVICOF | E9: =1-(D9/C9) ->  | L9: =1-(K9/D9) ->  | N9: =1-(M9/K9) ->  | P9: =1-(O9/M9) -> 
A10: Artículo 7°.- Horas extras, dominicales y festivos. | L10: =1-(K10/D10) ->  | N10: =1-(M10/K10) -> 
A11: Artículo 8°.- Viáticos y gastos de viaje.
A12: Artículo 9°.- Compensación por vacaciones.
A13: Artículo 10°.- Bono navideño.
A14: Artículo 11 -. Capacitación.
A15: Artículo 12 -. Bienestar.
A16: Artículo 13 -. Eventos y conmemoraciones.
A17: Artículo 14 -. Fondos educativos.
A18: Servicios Administrativos
A19: Artículo 15. Telefonía. | E19: =1-(D19/C19) -> 
A20: Artículo 16 -. Vehículos oficiales.
A21: Artículo 17 -. Adquisición de vehículos y maquinaria.
A22: Artículo 18 -. Fotocopiado, multicopiado e impresión.
A23: Artículo 19 -. Publicidad distrital.
A24: Artículo 20 -. Cajas menores.
A25: Artículo 21 -. Mantenimiento o reparación de bienes inmuebles o muebles.
A26: Artículo 22 -. Suscripciones.
A27: Artículo 23 -. Servicios públicos.

Sheet 0016-01 P. ARANDA
A1: PLAN DE AUSTERIDAD EN EL GASTO 2025-2027
A2: Entidad | B2: FONDO DE DESARROLLO LOCAL DE PUENTE ARANDA
A3: Valores en Pesos Corrientes
A4: CONCEPTO (Decreto 062 de 2024) | B4: Posiciones Presupuestales Asociadas (Funcionamiento e Inversión) | C4: LÍNEA BASE | F4: PLAN DE AUSTERIDAD EN EL GASTO 2025-2027 | K4: SEGUIMIENTO RESULTADOS PLAN DE AUSTERIDAD 2025-2027
F5: ESTRATEGIAS 2025-2027 | G5: ACCIONES 2025-2027 | H5: META INDICADOR DE AUSTERIDAD
C6: AÑO 2023 | D6: AÑO 2024 | K6: AÑO 2025 | M6: AÑO 2026 | O6: AÑO 2027
C7: Valor EJECUTADO a 31/12/2023 | D7: Valor EJECUTADO a 31/12/2024 | E7: Resultado Indicador Austeridad | H7: AÑO 2025 | I7: AÑO 2026 | J7: AÑO 2027 | K7: Valor EJECUTADO a 31/12/2025 | L7: Resultado Indicador Austeridad | M7: Valor EJECUTADO a 31/12/2026 | N7: Resultado Indicador Austeridad | O7: Valor EJECUTADO a 31/12/2027 | P7: Resultado Indicador Austeridad
A8: Servicios de personal
A9: Artículo 6°.- Reducción del gasto en CPS profesionales y de apoyo a la gestión. | B9: N.A. Se registran totales. Corresponde con lo reportado en SIDEAP y SIVICOF | C9: 7421254904 | D9: 7725173400 | E9: =1-(D9/C9) -> -0.04095243998 | F9: Solo celebrarán los contratos que sean estrictamente necesarios para coadyuvar al cumplimiento de las funciones y fines de la Entidad, cuando dichas actividades no puedan realizarse con personal de planta o requieran conocimiento especializados | G9: Se aplicará el crecimiento máximo equivalente al IPC causado en la vigencia anterior | H9: 0.0552 | I9: Incremento se hará según IPC | J9: Incremento se hará según IPC | L9: =1-(K9/D9) -> 1 | N9: =1-(M9/K9) ->  | P9: =1-(O9/M9) -> 
A10: Artículo 7°.- Horas extras, dominicales y festivos. | C10: 0 | D10: 0 | F10: N/A | G10: N/A | L10: =1-(K10/D10) ->  | N10: =1-(M10/K10) -> 
A11: Artículo 8°.- Viáticos y gastos de viaje. | C11: 0 | D11: 0 | F11: N/A | G11: N/A
A12: Artículo 9°.- Compensación por vacaciones. | C12: 0 | D12: 0 | F12: N/A | G12: N/A
A13: Artículo 10°.- Bono navideño. | C13: 0 | D13: 0 | F13: N/A | G13: N/A
A14: Artículo 11 -. Capacitación. | C14: 0 | D14: 0 | F14: N/A | G14: N/A
A15: Artículo 12 -. Bienestar. | C15: 0 | D15: 0 | F15: N/A | G15: N/A
A16: Artículo 13 -. Eventos y conmemoraciones. | C16: 0 | D16: 0 | F16: N/A | G16: N/A
A17: Artículo 14 -. Fondos educativos. | C17: 0 | D17: 0 | F17: N/A | G17: N/A
A18: Servicios Administrativos
A19: Artículo 15. Telefonía. | C19: 15003304 | D19: 12497710 | E19: =1-(D19/C19) -> 0.1670028148 | F19: La Alcaldía Local de puente Aranda se compromete a la no adquisición de líneas de celular y a la no adquisición de líneas de teléfono adicionales. | G19: Mantener al 100% la no adquisición de líneas de telefonía celular y telefonía fija adicional | H19: 0.05 | I19: 0.05 | J19: 0.05 | L19: 1
A20: Artículo 16 -. Vehículos oficiales. | C20: 45150000 | D20: 52485640 | E20: -0.1624726467 | F20: Solo se asignan vehículos de uso oficial con cargo a recursos de la entidad para el Despacho y las áreas que necesiten su uso para el cumplimiento de los objetivos y actividades que se requieren la localidad. El mantenimiento del parque automotor se lleva a cabo por medio de un proceso de selección de mínima cuantía. Se efectuarán controles periódicos de consumo de combustible, mantenimientos preventivos y correctivos a cada vehículo que conforman el parque automotor de la entidad. | H20: 0.01 | I20: 0.01 | J20: 0.01 | L20: 1
A21: Artículo 17 -. Adquisición de vehículos y maquinaria. | C21: 0 | D21: 0 | F21: N/A | G21: N/A
A22: Artículo 18 -. Fotocopiado, multicopiado e impresión. | C22: 0 | D22: 0 | F22: Se continuará implementación de la “política de Cero Papel”, con el fin de dar prioridad al uso de los medios digitales y evitar impresiones, reducir el consumo de papel, reutilizar y reciclar implementos de oficina. Dado que los equipos de fotocopiado, multicopiado e impresión no cuentan con el mecanismo para realizar la contabilidad de estas acciones, el seguimiento se realiza conforme al consumo de las resmas de papel entre una y otra vigencia. | G22: Disminución del consumo de papel (número de resmas) con respecto a la vigencia anterior. Mantener el 100% de la no inversión en servicios de fotocopiado, ,multicopiado e impresión
A23: Artículo 19 -. Publicidad distrital. | C23: 0 | D23: 0 | F23: N/A | G23: N/A
A24: Artículo 20 -. Cajas menores. | C24: 0 | D24: 0 | F24: N/A | G24: N/A
A25: Artículo 21 -. Mantenimiento o reparación de bienes inmuebles o muebles. | C25: 0 | D25: 0 | G25: N/A
A26: Artículo 22 -. Suscripciones. | C26: 0 | D26: 0 | F26: La Alcaldía Local de puente Aranda ha decidido no incurrir en costos asociados a la suscripción a periódicos, revistas, publicaciones o bases de datos electrónicas y, en su lugar ha optado por hacer uso de las herramientas tecnológicas que le permitan obtener información relevante para la misionalidad de la entidad. | G26: Mantener al 100% la no suscripción a revistas, periódicos, entre otros
A27: Artículo 23 -. Servicios públicos. | B27: AGUA | C27: 15638050 | D27: 16093600 | E27: -0.0291308699 | F27: Se realizará seguimiento y medición en la unidad m3. Es importante mencionar que en referencia alos costos estos pueden variar según los valores o precios del mercado o de la entidad que presta el servicio (EAB) | G27: Mantener o disminuir el consumo de agua en m3 | H27: 0.01 | I27: 0.01 | J27: 0.01 | L27: 1
A28: Artículo 23 -. Servicios públicos. | B28: ENERGIA | C28: 86661230 | D28: 75788168 | E28: =1-(D28/C28) -> 0.1254662783 | F28: Se realizará seguimiento y medición en la unidad m3. Es importante mencionar que en referencia alos costos estos pueden variar según los valores o precios del mercado o de la entidad que presta el servicio (ENEL) | G28: Mantener o disminuir el consumo de agua en Kw | H28: 0.01 | I28: 0.01 | J28: 0.01 | L28: =1-(K28/D28) -> 1 | N28: =1-(M28/K28) ->  | P28: =1-(O28/M28) -> 
A29: Artículo 23 -. Servicios públicos. | B29: GAS | C29: 1345380 | D29: 758890 | E29: =1-(D29/C29) -> 0.4359288825 | F29: Se realizará seguimiento y medición en la unidad Kw. Es importante mencionar que en referencia alos costos estos pueden variar según los valores o precios del mercado o de la entidad que presta el servicio (VANTI) | G29: Mantener o disminuir el consumo de agua en m3 | H29: 0.05 | I29: 0.05 | J29: 0.05 | L29: =1-(K29/D29) -> 1 | N29: =1-(M29/K29) ->  | P29: =1-(O29/M29) -> 

Sheet 0017-01 CANDELARIA
A1: PLAN DE AUSTERIDAD EN EL GASTO 2025-2027
A2: Entidad
A3: Valores en Pesos Corrientes
A4: CONCEPTO (Decreto 062 de 2024) | B4: Posiciones Presupuestales Asociadas (Funcionamiento e Inversión) | C4: LÍNEA BASE | F4: PLAN DE AUSTERIDAD EN EL GASTO 2025-2027 | K4: SEGUIMIENTO RESULTADOS PLAN DE AUSTERIDAD 2025-2027
F5: ESTRATEGIAS 2025-2027 | G5: ACCIONES 2025-2027 | H5: META INDICADOR DE AUSTERIDAD
C6: AÑO 2023 | D6: AÑO 2024 | K6: AÑO 2025 | M6: AÑO 2026 | O6: AÑO 2027
C7: Valor EJECUTADO a 31/12/2023 | D7: Valor EJECUTADO a 31/12/2024 | E7: Resultado Indicador Austeridad | H7: AÑO 2025 | I7: AÑO 2026 | J7: AÑO 2027 | K7: Valor EJECUTADO a 31/12/2025 | L7: Resultado Indicador Austeridad | M7: Valor EJECUTADO a 31/12/2026 | N7: Resultado Indicador Austeridad | O7: Valor EJECUTADO a 31/12/2027 | P7: Resultado Indicador Austeridad
A8: Servicios de personal
A9: Artículo 6°.- Reducción del gasto en CPS profesionales y de apoyo a la gestión. | B9: N.A. Se registran totales. Corresponde con lo reportado en SIDEAP y SIVICOF | E9: =1-(D9/C9) ->  | L9: =1-(K9/D9) ->  | N9: =1-(M9/K9) ->  | P9: =1-(O9/M9) -> 
A10: Artículo 7°.- Horas extras, dominicales y festivos. | L10: =1-(K10/D10) ->  | N10: =1-(M10/K10) -> 
A11: Artículo 8°.- Viáticos y gastos de viaje.
A12: Artículo 9°.- Compensación por vacaciones.
A13: Artículo 10°.- Bono navideño.
A14: Artículo 11 -. Capacitación.
A15: Artículo 12 -. Bienestar.
A16: Artículo 13 -. Eventos y conmemoraciones.
A17: Artículo 14 -. Fondos educativos.
A18: Servicios Administrativos
A19: Artículo 15. Telefonía. | E19: =1-(D19/C19) -> 
A20: Artículo 16 -. Vehículos oficiales.
A21: Artículo 17 -. Adquisición de vehículos y maquinaria.
A22: Artículo 18 -. Fotocopiado, multicopiado e impresión.
A23: Artículo 19 -. Publicidad distrital.
A24: Artículo 20 -. Cajas menores.
A25: Artículo 21 -. Mantenimiento o reparación de bienes inmuebles o muebles.
A26: Artículo 22 -. Suscripciones.
A27: Artículo 23 -. Servicios públicos.

Sheet 0018-01 R. URIBE
A1: PLAN DE AUSTERIDAD EN EL GASTO 2025-2027
A2: Entidad | B2: Fondo de Desarrollo Local Rafael Uribe Uribe
A3: Valores en Pesos Corrientes
A4: CONCEPTO (Decreto 062 de 2024) | B4: Posiciones Presupuestales Asociadas (Funcionamiento e Inversión) | C4: LÍNEA BASE | F4: PLAN DE AUSTERIDAD EN EL GASTO 2025-2027 | K4: SEGUIMIENTO RESULTADOS PLAN DE AUSTERIDAD 2025-2027
F5: ESTRATEGIAS 2025-2027 | G5: ACCIONES 2025-2027 | H5: META INDICADOR DE AUSTERIDAD
C6: AÑO 2023 | D6: AÑO 2024 | K6: AÑO 2025 | M6: AÑO 2026 | O6: AÑO 2027
C7: Valor EJECUTADO a 31/12/2023 | D7: Valor EJECUTADO a 31/12/2024 | E7: Resultado Indicador Austeridad | H7: AÑO 2025 | I7: AÑO 2026 | J7: AÑO 2027 | K7: Valor EJECUTADO a 31/12/2025 | L7: Resultado Indicador Austeridad | M7: Valor EJECUTADO a 31/12/2026 | N7: Resultado Indicador Austeridad | O7: Valor EJECUTADO a 31/12/2027 | P7: Resultado Indicador Austeridad
A8: Servicios de personal
A9: Artículo 6°.- Reducción del gasto en CPS profesionales y de apoyo a la gestión. | B9: N.A. Se registran totales. Corresponde con lo reportado en SIDEAP y SIVICOF | C9: 15078765246 | D9: 13178655331 | E9: =1-(D9/C9) -> 0.1260123017 | F9: Realizar un diagnostico exhaustivo de los recursos humanos, identificando el número de profesionales en cada área y su función especifica. Analizar qué funciones son estrictamente necesarias y cuales pueden optimizarse sin afectar los servicios. Es importante identificar áreas donde la reducción de personal sea menos perjudicial. | G9: Evaluar si hay procesos que se puedan automatizar o simplificar para reducir la necesidad de personal en áreas específicas. Esto podría incluir la digitalización de procesos o la implementación de software de gestión para hacer más eficientes ciertas funciones. | H9: 0.052 | I9: Se realiza actualización segun IPC | J9: Se realiza actualización segun IPC | L9: =1-(K9/D9) -> 1 | N9: =1-(M9/K9) ->  | P9: =1-(O9/M9) -> 
A10: Artículo 7°.- Horas extras, dominicales y festivos. | B10: La entidad no registra gastos asociados a este concepto. | C10: NA | D10: NA | F10: N.A | G10: N.A | H10: N.A | I10: N.A | J10: N.A | L10: =1-(K10/D10) ->  | N10: =1-(M10/K10) -> 
A11: Artículo 8°.- Viáticos y gastos de viaje. | B11: La entidad no registra gastos asociados a este concepto. | C11: NA | D11: NA | F11: N.A | G11: N.A | H11: N.A | I11: N.A | J11: N.A
A12: Artículo 9°.- Compensación por vacaciones. | B12: La entidad no registra gastos asociados a este concepto. | C12: NA | D12: NA | F12: N.A | G12: N.A | H12: N.A | I12: N.A | J12: N.A
A13: Artículo 10°.- Bono navideño. | B13: La entidad no registra gastos asociados a este concepto. | C13: NA | D13: NA | F13: N.A | G13: N.A | H13: N.A | I13: N.A | J13: N.A
A14: Artículo 11 -. Capacitación. | B14: La entidad no registra gastos asociados a este concepto. | C14: NA | D14: NA | F14: N.A | G14: N.A | H14: N.A | I14: N.A | J14: N.A
A15: Artículo 12 -. Bienestar. | B15: La entidad no registra gastos asociados a este concepto. | C15: NA | D15: NA | F15: N.A | G15: N.A | H15: N.A | I15: N.A | J15: N.A
A16: Artículo 13 -. Eventos y conmemoraciones. | B16: La entidad no registra gastos asociados a este concepto. | C16: NA | D16: NA | F16: N.A | G16: N.A | H16: N.A | I16: N.A | J16: N.A
A17: Artículo 14 -. Fondos educativos. | B17: La entidad no registra gastos asociados a este concepto. | C17: NA | D17: NA | F17: N.A | G17: N.A | H17: N.A | I17: N.A | J17: N.A
A18: Servicios Administrativos
A19: Artículo 15. Telefonía. | B19: O21202020080484120 Servicios de telefonía fija (acceso) | C19: 22378540 | D19: 36043000 | E19: =1-(D19/C19) -> -0.6106055176 | F19: No se realizara adquisicion de lineas de celulares; para las lineas fijas, se hara un seguimiento de las personas que realmente requiran dicho servicio. | G19: Contactar con los proveedores de servicios de telefonía para obtener informes detallados sobre el uso de llamadas, mensajes y datos por cada línea o número asignado en cada departamento. Estos informes deben incluir el consumo mensual de cada servicio (llamadas locales e internacionales, mensajes de texto, datos móviles, etc.). | H19: 0.052 | I19: Se realiza actualización segun IPC | J19: Se realiza actualización segun IPC | L19: 1
A20: Artículo 16 -. Vehículos oficiales. | B20: O2120202008078714199 Servicio de mantenimiento y reparación de vehículo | C20: 80000000 | D20: 30240690 | E20: 0.621991375 | F20: Enfoque en la optimización del buen uso y mantenimiento adecuado y a tiempo del parque automotor, esto con el fin de de incurrir en gastos adicionales, teniendo en cuenta que se tienen con mas de 10 años de ser adquiridos. | G20: Llevar el control de recorridos con un seguimiento adecuado, conforme a las necesidades para el cumplimiento de los objetivos de la localidad. Hacer el seguimiento correspondiente al consumo de gasolina de cada uno de los vehiculos, esto con el fin de no incurrir en gastos innecesarios. | H20: 0.052 | I20: Se realiza actualización segun IPC | J20: Se realiza actualización segun IPC | L20: 1
A21: Artículo 17 -. Adquisición de vehículos y maquinaria. | B21: La entidad no registra gastos asociados a este concepto. | C21: NA | D21: NA | F21: N.A | G21: N.A | H21: N.A | I21: N.A | J21: N.A
A22: Artículo 18 -. Fotocopiado, multicopiado e impresión. | B22: La entidad no registra gastos asociados a este concepto. | C22: NA | D22: NA | F22: N.A | G22: N.A | H22: N.A | I22: N.A | J22: N.A
A23: Artículo 19 -. Publicidad distrital. | B23: O2120202008098912197 Servicios de impresión litográfica n.c.p. | C23: 0 | D23: 5000000 | F23: Realizar una planeación efectiva para generar cada una de las piezas publicitarias, priorizando efectividad en cada una de las campañas y maximizando el alcance con presupuestos mas bajos. | G23: Analizar el éxito de las campañas ejecutadas mediante sus métricas (alcance, interacción, audiencias, etc) junto a las tendencias actuales en redes sociales y medios de comunicación. Optimizar los recursos actuales para la difusión de estas campañas, además de implementar piezas gráficas que permitan la atracción de más audiencias en los canales digitales de la alcaldía local, asegurando que el presupuesto se utilice de la manera más eficiente posible. | H23: 0.052 | I23: Se realiza actualización segun IPC | J23: Se realiza actualización segun IPC | L23: 1
A24: Artículo 20 -. Cajas menores. | B24: La entidad no registra gastos asociados a este concepto. | C24: NA | D24: NA | F24: N.A | G24: N.A | H24: N.A | I24: N.A | J24: N.A
A25: Artículo 21 -. Mantenimiento o reparación de bienes inmuebles o muebles. | B25: La entidad no registra gastos asociados a este concepto. | C25: NA | D25: NA | F25: N.A | G25: N.A | H25: N.A | I25: N.A | J25: N.A
A26: Artículo 22 -. Suscripciones. | B26: La entidad no registra gastos asociados a este concepto. | C26: NA | D26: NA | F26: N.A | G26: N.A | H26: N.A | I26: N.A | J26: N.A
A27: Artículo 23 -. Servicios públicos. | B27: O21202020080686312 Servicios de distribución de electricidad O21202020080686320 Servicios de distribución de gas por tuberías O21202020080686330 Servicios de distribución de agua por tubería | C27: 98296000 | D27: 100863000 | E27: -0.02611499959 | F27: Fomentar el uso responsable del agua, mediante campañas de concientización, implementar programas de reciclajes para reducir la cantidad de residuos generados Promover la optimización del uso de equipos eléctricos (computadoras, impresoras) apagándolos cuando no se utilicen. | G27: Mantener y disminuir el cosumo de agua de acuerdo a la estadistica mensual por m3 Mantener y disminuir el consumo de energia de acuerdo a la estadistica mensual po KW Mantener y disminuir el cosnumo de gas de acuerdo a la esatdistica mensaul por m3 | H27: 0.052 | I27: Se realiza actualización segun IPC | J27: Se realiza actualización segun IPC | L27: 1

Sheet 0019-01 C. BOLIVAR
A1: PLAN DE AUSTERIDAD EN EL GASTO 2025-2027
A2: Entidad
A3: Valores en Pesos Corrientes
A4: CONCEPTO (Decreto 062 de 2024) | B4: Posiciones Presupuestales Asociadas (Funcionamiento e Inversión) | C4: LÍNEA BASE | F4: PLAN DE AUSTERIDAD EN EL GASTO 2025-2027 | K4: SEGUIMIENTO RESULTADOS PLAN DE AUSTERIDAD 2025-2027
F5: ESTRATEGIAS 2025-2027 | G5: ACCIONES 2025-2027 | H5: META INDICADOR DE AUSTERIDAD
C6: AÑO 2023 | D6: AÑO 2024 | K6: AÑO 2025 | M6: AÑO 2026 | O6: AÑO 2027
C7: Valor EJECUTADO a 31/12/2023 | D7: Valor EJECUTADO a 31/12/2024 | E7: Resultado Indicador Austeridad | H7: AÑO 2025 | I7: AÑO 2026 | J7: AÑO 2027 | K7: Valor EJECUTADO a 31/12/2025 | L7: Resultado Indicador Austeridad | M7: Valor EJECUTADO a 31/12/2026 | N7: Resultado Indicador Austeridad | O7: Valor EJECUTADO a 31/12/2027 | P7: Resultado Indicador Austeridad
A8: Servicios de personal
A9: Artículo 6°.- Reducción del gasto en CPS profesionales y de apoyo a la gestión. | B9: N.A. Se registran totales. Corresponde con lo reportado en SIDEAP y SIVICOF | E9: =1-(D9/C9) ->  | L9: =1-(K9/D9) ->  | N9: =1-(M9/K9) ->  | P9: =1-(O9/M9) -> 
A10: Artículo 7°.- Horas extras, dominicales y festivos. | L10: =1-(K10/D10) ->  | N10: =1-(M10/K10) -> 
A11: Artículo 8°.- Viáticos y gastos de viaje.
A12: Artículo 9°.- Compensación por vacaciones.
A13: Artículo 10°.- Bono navideño.
A14: Artículo 11 -. Capacitación.
A15: Artículo 12 -. Bienestar.
A16: Artículo 13 -. Eventos y conmemoraciones.
A17: Artículo 14 -. Fondos educativos.
A18: Servicios Administrativos
A19: Artículo 15. Telefonía. | E19: =1-(D19/C19) -> 
A20: Artículo 16 -. Vehículos oficiales.
A21: Artículo 17 -. Adquisición de vehículos y maquinaria.
A22: Artículo 18 -. Fotocopiado, multicopiado e impresión.
A23: Artículo 19 -. Publicidad distrital.
A24: Artículo 20 -. Cajas menores.
A25: Artículo 21 -. Mantenimiento o reparación de bienes inmuebles o muebles.
A26: Artículo 22 -. Suscripciones.
A27: Artículo 23 -. Servicios públicos.

Sheet 0020-01 SUMAPAZ
A1: PLAN DE AUSTERIDAD EN EL GASTO 2025-2027
A2: Entidad
A3: Valores en Pesos Corrientes
A4: CONCEPTO (Decreto 062 de 2024) | B4: Posiciones Presupuestales Asociadas (Funcionamiento e Inversión) | C4: LÍNEA BASE | F4: PLAN DE AUSTERIDAD EN EL GASTO 2025-2027 | K4: SEGUIMIENTO RESULTADOS PLAN DE AUSTERIDAD 2025-2027
F5: ESTRATEGIAS 2025-2027 | G5: ACCIONES 2025-2027 | H5: META INDICADOR DE AUSTERIDAD
C6: AÑO 2023 | D6: AÑO 2024 | K6: AÑO 2025 | M6: AÑO 2026 | O6: AÑO 2027
C7: Valor EJECUTADO a 31/12/2023 | D7: Valor EJECUTADO a 31/12/2024 | E7: Resultado Indicador Austeridad | H7: AÑO 2025 | I7: AÑO 2026 | J7: AÑO 2027 | K7: Valor EJECUTADO a 31/12/2025 | L7: Resultado Indicador Austeridad | M7: Valor EJECUTADO a 31/12/2026 | N7: Resultado Indicador Austeridad | O7: Valor EJECUTADO a 31/12/2027 | P7: Resultado Indicador Austeridad
A8: Servicios de personal
A9: Artículo 6°.- Reducción del gasto en CPS profesionales y de apoyo a la gestión. | B9: N.A. Se registran totales. Corresponde con lo reportado en SIDEAP y SIVICOF | E9: =1-(D9/C9) ->  | L9: =1-(K9/D9) ->  | N9: =1-(M9/K9) ->  | P9: =1-(O9/M9) -> 
A10: Artículo 7°.- Horas extras, dominicales y festivos. | L10: =1-(K10/D10) ->  | N10: =1-(M10/K10) -> 
A11: Artículo 8°.- Viáticos y gastos de viaje.
A12: Artículo 9°.- Compensación por vacaciones.
A13: Artículo 10°.- Bono navideño.
A14: Artículo 11 -. Capacitación.
A15: Artículo 12 -. Bienestar.
A16: Artículo 13 -. Eventos y conmemoraciones.
A17: Artículo 14 -. Fondos educativos.
A18: Servicios Administrativos
A19: Artículo 15. Telefonía. | E19: =1-(D19/C19) -> 
A20: Artículo 16 -. Vehículos oficiales.
A21: Artículo 17 -. Adquisición de vehículos y maquinaria.
A22: Artículo 18 -. Fotocopiado, multicopiado e impresión.
A23: Artículo 19 -. Publicidad distrital.
A24: Artículo 20 -. Cajas menores.
A25: Artículo 21 -. Mantenimiento o reparación de bienes inmuebles o muebles.
A26: Artículo 22 -. Suscripciones.
A27: Artículo 23 -. Servicios públicos.

Sheet 0100-01 CONCEJO
A1: PLAN DE AUSTERIDAD EN EL GASTO 2025-2027
A2: Entidad
A3: Valores en Pesos Corrientes
A4: CONCEPTO (Decreto 062 de 2024) | B4: Posiciones Presupuestales Asociadas (Funcionamiento e Inversión) | C4: LÍNEA BASE | F4: PLAN DE AUSTERIDAD EN EL GASTO 2025-2027 | K4: SEGUIMIENTO RESULTADOS PLAN DE AUSTERIDAD 2025-2027
F5: ESTRATEGIAS 2025-2027 | G5: ACCIONES 2025-2027 | H5: META INDICADOR DE AUSTERIDAD
C6: AÑO 2023 | D6: AÑO 2024 | K6: AÑO 2025 | M6: AÑO 2026 | O6: AÑO 2027
C7: Valor EJECUTADO a 31/12/2023 | D7: Valor EJECUTADO a 31/12/2024 | E7: Resultado Indicador Austeridad | H7: AÑO 2025 | I7: AÑO 2026 | J7: AÑO 2027 | K7: Valor EJECUTADO a 31/12/2025 | L7: Resultado Indicador Austeridad | M7: Valor EJECUTADO a 31/12/2026 | N7: Resultado Indicador Austeridad | O7: Valor EJECUTADO a 31/12/2027 | P7: Resultado Indicador Austeridad
A8: Servicios de personal
A9: Artículo 6°.- Reducción del gasto en CPS profesionales y de apoyo a la gestión. | B9: N.A. Se registran totales. Corresponde con lo reportado en SIDEAP y SIVICOF | E9: =1-(D9/C9) ->  | L9: =1-(K9/D9) ->  | N9: =1-(M9/K9) ->  | P9: =1-(O9/M9) -> 
A10: Artículo 7°.- Horas extras, dominicales y festivos. | L10: =1-(K10/D10) ->  | N10: =1-(M10/K10) -> 
A11: Artículo 8°.- Viáticos y gastos de viaje.
A12: Artículo 9°.- Compensación por vacaciones.
A13: Artículo 10°.- Bono navideño.
A14: Artículo 11 -. Capacitación.
A15: Artículo 12 -. Bienestar.
A16: Artículo 13 -. Eventos y conmemoraciones.
A17: Artículo 14 -. Fondos educativos.
A18: Servicios Administrativos
A19: Artículo 15. Telefonía. | E19: =1-(D19/C19) -> 
A20: Artículo 16 -. Vehículos oficiales.
A21: Artículo 17 -. Adquisición de vehículos y maquinaria.
A22: Artículo 18 -. Fotocopiado, multicopiado e impresión.
A23: Artículo 19 -. Publicidad distrital.
A24: Artículo 20 -. Cajas menores.
A25: Artículo 21 -. Mantenimiento o reparación de bienes inmuebles o muebles.
A26: Artículo 22 -. Suscripciones.
A27: Artículo 23 -. Servicios públicos.

Sheet 0102-01 PERSONERIA
A1: PLAN DE AUSTERIDAD EN EL GASTO 2025-2027
A2: Entidad
A3: Valores en Pesos Corrientes
A4: CONCEPTO (Decreto 062 de 2024) | B4: Posiciones Presupuestales Asociadas (Funcionamiento e Inversión) | C4: LÍNEA BASE | F4: PLAN DE AUSTERIDAD EN EL GASTO 2025-2027 | K4: SEGUIMIENTO RESULTADOS PLAN DE AUSTERIDAD 2025-2027
F5: ESTRATEGIAS 2025-2027 | G5: ACCIONES 2025-2027 | H5: META INDICADOR DE AUSTERIDAD
C6: AÑO 2023 | D6: AÑO 2024 | K6: AÑO 2025 | M6: AÑO 2026 | O6: AÑO 2027
C7: Valor EJECUTADO a 31/12/2023 | D7: Valor EJECUTADO a 31/12/2024 | E7: Resultado Indicador Austeridad | H7: AÑO 2025 | I7: AÑO 2026 | J7: AÑO 2027 | K7: Valor EJECUTADO a 31/12/2025 | L7: Resultado Indicador Austeridad | M7: Valor EJECUTADO a 31/12/2026 | N7: Resultado Indicador Austeridad | O7: Valor EJECUTADO a 31/12/2027 | P7: Resultado Indicador Austeridad
A8: Servicios de personal
A9: Artículo 6°.- Reducción del gasto en CPS profesionales y de apoyo a la gestión. | B9: N.A. Se registran totales. Corresponde con lo reportado en SIDEAP y SIVICOF | E9: =1-(D9/C9) ->  | L9: =1-(K9/D9) ->  | N9: =1-(M9/K9) ->  | P9: =1-(O9/M9) -> 
A10: Artículo 7°.- Horas extras, dominicales y festivos. | L10: =1-(K10/D10) ->  | N10: =1-(M10/K10) -> 
A11: Artículo 8°.- Viáticos y gastos de viaje.
A12: Artículo 9°.- Compensación por vacaciones.
A13: Artículo 10°.- Bono navideño.
A14: Artículo 11 -. Capacitación.
A15: Artículo 12 -. Bienestar.
A16: Artículo 13 -. Eventos y conmemoraciones.
A17: Artículo 14 -. Fondos educativos.
A18: Servicios Administrativos
A19: Artículo 15. Telefonía. | E19: =1-(D19/C19) -> 
A20: Artículo 16 -. Vehículos oficiales.
A21: Artículo 17 -. Adquisición de vehículos y maquinaria.
A22: Artículo 18 -. Fotocopiado, multicopiado e impresión.
A23: Artículo 19 -. Publicidad distrital.
A24: Artículo 20 -. Cajas menores.
A25: Artículo 21 -. Mantenimiento o reparación de bienes inmuebles o muebles.
A26: Artículo 22 -. Suscripciones.
A27: Artículo 23 -. Servicios públicos.

Sheet 0104-01 SECRETARÍA GENERAL
A1: PLAN DE AUSTERIDAD EN EL GASTO 2025-2027
A2: Entidad | B2: 0104 - 01 Secretaría General
A3: Valores en Pesos Corrientes
A4: CONCEPTO (Decreto 062 de 2024) | B4: Posiciones Presupuestales Asociadas (Funcionamiento e Inversión) | C4: LÍNEA BASE | F4: PLAN DE AUSTERIDAD EN EL GASTO 2025-2027 | K4: SEGUIMIENTO RESULTADOS PLAN DE AUSTERIDAD 2025-2027
F5: ESTRATEGIAS 2025-2027 | G5: ACCIONES 2025-2027 | H5: META INDICADOR DE AUSTERIDAD
C6: AÑO 2023 | D6: AÑO 2024 | K6: AÑO 2025 | M6: AÑO 2026 | O6: AÑO 2027
C7: Valor EJECUTADO a 31/12/2023 | D7: Valor EJECUTADO a 31/12/2024 | E7: Resultado Indicador Austeridad | H7: AÑO 2025 | I7: AÑO 2026 | J7: AÑO 2027 | K7: Valor EJECUTADO a 31/12/2025 | L7: Resultado Indicador Austeridad | M7: Valor EJECUTADO a 31/12/2026 | N7: Resultado Indicador Austeridad | O7: Valor EJECUTADO a 31/12/2027 | P7: Resultado Indicador Austeridad
A8: Servicios de personal
A9: Artículo 6°.- Reducción del gasto en CPS profesionales y de apoyo a la gestión. | B9: N.A. Se registran totales. Corresponde con lo reportado en SIDEAP y SIVICOF | C9: =49037316367+5939207220 -> 54976523587 | D9: =36999301535+5534283069 -> 42533584604 | E9: =1-(D9/C9) -> 0.2263318626 | F9: Se ajustará la asignación de recursos en la contratación de servicios profesionales y de apoyo a la gestión de acuerdo a las metas de austeridad del gasto, enfocándose en optimizar la eficiencia operativa y de procesos y reducir costos, con especial atención en las dependencias que presentan mayor demanda bajo esta modalidad. | G9: La planificación priorizará la eficiencia en el uso de recursos, asegurando que la contratación de servicios profesionales y de apoyo a la gestión responda exclusivamente a las necesidades esenciales de cada área, mediante la optimización de actividades y procesos. | H9: 0.052 | I9: 0.03 | J9: 0.03 | L9: =1-(K9/D9) -> 1 | N9: =1-(M9/K9) ->  | P9: =1-(O9/M9) -> 
A10: Artículo 7°.- Horas extras, dominicales y festivos. | B10: O211010100102 | C10: 531380722 | D10: 385868697 | E10: 0.2738376064 | F10: La Secretaría General con apoyo de los directivos realizarán estrategias de reorganización de las cargas, tareas, turnos y flexibilidad en los horarios, procurando que las labores se adelanten durante la jornada laboral ordinaria | G10: La Dirección de Talento Humano continuará realizando un estricto control para el pago de las horas extras causadas, verificando que cuenten con la aprobación de la Subsecretaría Corporativa | H10: 0.0323 | I10: 0.03 | J10: 0.03 | L10: =1-(K10/D10) -> 1 | N10: =1-(M10/K10) -> 
A11: Artículo 8°.- Viáticos y gastos de viaje. | B11: O2120202010 | C11: 234930184 | D11: 133087865 | E11: 0.4335003586 | F11: La Secretaría General evaluará y propiciará porque se preferirán los eventos o reuniones virtuales sobre las actividades que impliquen desplazamiento físico de los servidores públicos. Proponeder que la comisión cuente con el respaldo economico por la entidad u organismo que efectua la invitación para la disminución de costos | G11: En caso de que sea necesaria la asistencia presencial de los servidores públicos, la Dirección de Talento Humano verificará en cumplimiento de la Circular 006 de 2024, la justificación para la comisión de servicios, así como los recursos y el tiempo que se destine sean los estrictamente necesarios, que el número de servidores comisionados sea el mínimo posible y evitar multiples comisiones con la misma finalidad | H11: 0.0323 | I11: 0.03 | J11: 0.03 | L11: 1
A12: Artículo 9°.- Compensación por vacaciones. | B12: O211010300102 O211020300102 | C12: 408298252 | D12: 1819179735 | E12: -3.455516834 | F12: La Secretaría General realizará seguimiento a las vacaciones pendientes de los servidores públicos para que puedan disfrutarlas en tiempo y no se acumulen las mismas. De igual manera, no se autorizará el pago de vacaciones en dinero y solo se podrán disfrutar en tiempo. Sin embargo, el valor del rubro indemnización de vacaciones entre vigencias, varía con ocasión a la rotación de personal. Se evidenció un aumento en el 2024 respecto al 2023 con ocasión del retiro de funcionarios por el cambio de administración, especialmente el nivel directivo y asesor, por ende, el incremento en los giros por indemnización de vacaciones es directamente proporcional al salario de los cargos liquidados | G12: La Secretaría General solo reconocerá en dinero las vacaciones causadas y no disfrutadas en caso de retiro definitivo del servidor público y se verificará el cumplimiento de la Circular 002 de 2025 del Subsecretarío Corporativo el cual establece lineamientos y directrices respecto el procedimiento de nómina | H12: 0.0323 | I12: 0.03 | J12: 0.03 | L12: 1
A13: Artículo 10°.- Bono navideño. | B13: O21202020090696990 | C13: 42640614 | D13: 51346000 | E13: -0.2041571446 | F13: La cantidad de los bonos que se entregan anualmente varian de acuerdo con los servidores públicos activos para cada vigencia. Lo cual dependerá de retiros, vacancias temporales o nombramientos. Sin embargo,siempre verificará el cumplimiento de los requisitos exigidos para otorgar el bono navideño a cada hijo de servidor | G13: En cumplimiento de la normativa vigente y del Decreto de Austeridad, se contemplará anualmente un bono navideño para los hijos que sean menores de 13 años y menos de 18 que se encuentren en condición de discapacidad y el valor de cada bono no será superior a 6 SMDLV | H13: 0.0323 | I13: 0.03 | J13: 0.03 | L13: 1
A14: Artículo 11 -. Capacitación. | B14: O21202020090292913 | C14: 361040969 | D14: 356307550 | E14: 0.01311047611 | F14: La Secretaría General considerará e integrará la oferta transversal de otros entes públicos del orden distrital o nacional, así como la del DASCD, buscando ahorrar costos y optimizar recursos. Así mismo, para la ejecución del PIC se propenderá para que los cursos se dirijan a un número mayoritario de servidores. | G14: La Dirección de Talento Humano continuará verificando que capacitaciones ofrecen otros entes públicos y a los cuales se pueden acceder, previo a la realización de las capacitaciones establecidas en el marco del PIC de cada vigencia. La Entidad solicitará a los participantes de las capacitaciones, la entrega de una autorización de descuento y un acta de compromiso, con el propósito de promover la participación activa y la asistencia efectiva, en caso contrario, el servidor deberá reembolsar el costo de la capacitación a la que se inscribio y no asistió | H14: 0.0323 | I14: 0.03 | J14: 0.03 | L14: 1
A15: Artículo 12 -. Bienestar. | B15: O21202020090696990 | C15: 457211139 | D15: 656521880 | E15: -0.435927133 | F15: La Secretaría General considerará e integrará la oferta transversal de otros entes públicos del orden distrital o nacional, así como la del DASCD, buscando ahorrar costos y optimizar recursos. Así mismo, para la ejecución del PIB se propenderá para que las actividades se dirijan a un número mayoritario de servidores. | G15: La Dirección de Talento Humano continuará verificando que actividades de bienestar ofrecen otros entes públicos y a los cuales se pueden acceder, previo a la realización de las actividades establecidas en el marco del Plan Institucional de Bienestar-PIB de cada vigencia. | H15: 0.0323 | I15: 0.03 | J15: 0.03 | L15: 1
A16: Artículo 13 -. Eventos y conmemoraciones. | B16: O21202020090696990 | C16: 226649683 | D16: 146154118 | E16: 0.3551541036 | F16: La Secretaría General proponederá por la disminución de costos para el cierre de gestión de cada vigencia. Verificando la necesidad y pertinencia de cada item que componga dicha actividad | G16: La Dirección de Talento Humano continuará buscando ahorros eficientes en cada actividad que se realice | H16: 0.0323 | I16: 0.03 | J16: 0.03 | L16: 1
A17: Artículo 14 -. Fondos educativos. | B17: O21202020090292920 | C17: 17270000 | D17: 0 | E17: 1 | F17: En cumplimiento del Decreto No. 062 de 2024, a partir de 2024 no se programan gastos por este concepto | G17: NA | H17: 0 | I17: 0 | J17: 0
A18: Servicios Administrativos
A19: Artículo 15. Telefonía. | B19: O21202020080484133 O21202020080484120 | C19: 80789709 | D19: 60190779 | E19: =1-(D19/C19) -> 0.2549697264 | F19: Telefonía móvil y fija: Cancelación de planes móviles que no sean necesarios, conservando únicamente las líneas que tengan relación con la articulación y prestación de servicios a la ciudadanía. Así mismo, se cancelarán las líneas fijas que no se requieran para el correcto funcionamiento de la entidad, atendiendo las medidas de Austeridad. | G19: Reducir dos planes de telefonía móvil y una línea de telefonía fija, manteniendo estrictamente las líneas necesarias para el correcto funcionamiento de la entidad y las requeridas para garantizar una buena comunicación de la administración Distrital con la ciudadanía. | H19: 0.0323 | I19: 0.03 | J19: 0.03 | L19: 1
A20: Artículo 16 -. Vehículos oficiales. | B20: O21202020060464114 | C20: 941070598 | D20: 1356860151 | E20: -0.4418261009 | F20: Disminuir la cantidad de vehiculos contratados, priorizando la prestación de los servicios que cumplen con la misionalidad de la entidad | G20: Reducir entre 5 y 7 vehiculos de los contratados durante la vigencia 2025 y quedar con el minimo de vehículos para garantizar la prestación de servicios de acuerdo a la misionalidad de cada una de las dependencias. | H20: 0.12 | I20: 0 | J20: 0 | L20: 1
A21: Artículo 17 -. Adquisición de vehículos y maquinaria. | B21: NA | C21: 0 | D21: 0 | F21: La adquisición de vehículos y maquinaria no afecta el presupuesto de funcionamiento | G21: NA
A22: Artículo 18 -. Fotocopiado, multicopiado e impresión. | B22: O21202020080585951 O2120202008098912199 O2120202008098912299 | C22: 0 | D22: 0 | F22: En aplicación a la política de austeridad en el gasto, desde el 2023 la Entidad no contrata estos servicios | G22: NA
A23: Artículo 19 -. Publicidad distrital. | B23: O2320201003023262002 | C23: 443111286 | D23: 684404853 | E23: -0.5445439433 | F23: Disminuir en los 3 años un 10%, en los contratos relacionados con impresión de piezas gráficas e identificación institucional, por lo cual, se prevé que en la vigencia 2025 se disminuya un 4% y en las vigencias 2026 y 2027 se disminuya un 3%. | G23: Fortalecer el uso de piezas gráficas por medios virtuales e ir disminuyendo paulatinamente la impresión para la divulgación de planes, programas y proyectos de la Administración Distrital, fomentando un cambio cultural y una diversificación en la forma de comunicar. | H23: 0.04 | I23: 0.03 | J23: 0.03 | L23: 1
A24: Artículo 20 -. Cajas menores. | B24: O21201010030302 O21201010030406 O2120201003023219999 O2120201003033339099 O2120201004024299994 O2120201004054517003 O2120201004064693999 O21202020060464115 O21202020060767430 O21202020060767990 O21202020080282130 O2120202008038363201 O2120202008078711099 O2120202008078714102 O2120202008078714999 O2120202008078715501 | C24: 7879698 | D24: 6836760 | E24: 0.1323576107 | F24: Los gastos por caja menor se ceñirán estrictamente a los gastos que se encuentren dentro de la resolución de constitución para cada una de las vigencias y que tengan carácter de imprevistos, urgentes, imprescindibles e inaplazables y enmarcados dentro de las políticas de racionalización del gasto. | G24: Se aprobarán únicamente las solicitudes con cargo a la caja menor que tengan el carácter de imprevistos, urgentes, imprescindibles e inaplazables y que no se puedan adquirir por medio de otros contratos de bienes y servicios suscritos por la entidad, limitando su uso a los rubros establecidos en la resolución de constitución de la CM, optimizando esta herramienta presupuestal. Así mismo, se monitoreará la ejecución para cumplir en cada vigencia con el indicador de austeridad. | H24: 0.0323 | I24: 0.03 | J24: 0.03 | L24: 1
A25: Artículo 21 -. Mantenimiento o reparación de bienes inmuebles o muebles. | B25: O2120202008078715202 O2120202008078715203 O2120202008078715601 O2120202008078715621 O2120202008078715701 O2120202008078715999 O21201010030106 O21201010030401 O2120201004064693999 O2320202005040254290 O2320202005040754710 O2320201004024219096 | C25: =1804307834+461433438 -> 2265741272 | D25: =803902900+645420927 -> 1449323827 | E25: 0.3603312766 | F25: *Para la vigencia 2025 se realizará el análisis de la viabilidad de realizar intervenciones de mantenimiento a las sede de la Secretaría General, principamente con el apoyo de la cuadrilla. *Durante el periodo 2026 - 2027 se priorizarán las obras de acuerdo la aprobación del presupuesto. *Mantener vigente el plan de mantenimiento predictivo, preventivo y/o correctivo a la maquinaria y equipos de la Secretaria General. *Anticiparse mediante la revisión predictiva de la maquinaria y equipo, así como, de la atención primaria de las fallas que se puedan presentar *Verificación de las solicitudes correctivas a los equipos, mediante la hoja de vida de mantenimiento, con el fin de establecer garantías y/o reparaciones puntuales. *Incentivar el uso eficiente de la energía, acogiendo el cambio de equipos y maquinarias de la Secretaria General, de tecnologías convencionales a tecnologías de energías renovables, los cuales a mediano plazo compensan en la facturación el gasto energético. | G25: * Intervención directa al mantenimiento con los maestros de cuadrilla. * Intervención con los insumos del contrato de ferretería. * Priorización de obras * Campaña de sensibilización sobre el buen uso de los equipos * Reposición de los equipos de bombeo y el cambio de tecnologia de los equipos de aire acondicionado. | H25: 0.0323 | I25: 0.03 | J25: 0.03 | L25: 1
A26: Artículo 22 -. Suscripciones. | B26: O2120201003023241001 O2120201003023241002 | C26: 6750400 | D26: 5250500 | E26: 0.2221942403 | F26: Cambio de la totalidad de tipo de suscripción de impresa a virtual | G26: Se coordinará con las dependencia el cambio definitivo a suscripciones digitales | H26: 0.0323 | I26: 0.03 | J26: 0.03 | L26: 1
A27: Artículo 23 -. Servicios públicos. | B27: O21202020080686330 O21202020090494110 O21202020090494231 O21202020080686320 O21202020080686312 | C27: 1981353297 | D27: 2037577022 | E27: -0.02837642589 | F27: Realizar campañas internas de concientización sobre el buen uso de los servicios públicos. Es importante mencionar que el consumo va directamente relacionado a la cantidad de servicios brindados a la ciudadanía en las diferentes sedes y a la cantidad de usuarios atendidos en cada una de las sedes. | G27: Se realizan campañas internas de concientización sobre el ahorro del agua y la energía. • Publicar en todos los medios de comunicación institucionales (portal institucional, intranet, protectores de pantalla, correos electrónicos, etc.) mensajes de ahorro de agua y energía. • Realizar semanalmente seguimiento al consumo de agua y energía, se diligencia formato por parte de los coordinadores de sedes, lo envían todos los viernes para consolidar la información por parte del grupo PIGA, para identificar fugas y/o otros problemas de manera temprana. • A través del GLPI, se priorizará el reporte y atención inmediata de fugas y daños en los sistemas hidrosanitarios y lumínicos de la Entidad. • Se realizarán mesas de trabajo con supervisores de aseo y cafetería de las sedes, para impartir instrucciones que permitan minimizar el uso de agua y energía en los servicios proporcionados. • Se realizarán visitas en las sedes que presentan cambios significativos en el consumo de agua y energía, para establecer estrategIas que permitan identificar las posibles causas y generar acciones que permitan el uso eficiente de los recursos. • Los enlaces ambientales realizarán recorridos al iniciar o al finalizar la jornada, al fin de detectar equipos que se dejen encendidos. • Para los digiturnos y las habladores digitales, se solicita indicar a las sedes que los tengan, apagar y de ser posible desconectarlos al finalizar la jornada laboral. • Aprovechar al máximo la iluminación natural en las oficinas y apagar las luces cuando no sea necesario mantenerlas encendidas. • Al finalizar la jornada de trabajo se deberán apagar equipos de cómputo, periféricos, interruptores de luz, entre otros, y a su vez, crear controles adicionales para el cumplimiento de esta indicación, está actividad quedará a cargo de los enlaces ambientales de cada sede con el apoyo del grupo de vigilancia y aseo. • Hacer uso de mecanismos para promover la utilización de aguas lluvias y su reúso, para tareas de riego, aseo, y uso en baterías sanitarias, están en buen estado los tanques de aguas lluvias. | H27: 0.0323 | I27: 0.03 | J27: 0.03 | L27: 1

Sheet 0105-01 VEEDURIA
A1: PLAN DE AUSTERIDAD EN EL GASTO 2025-2027
A2: Entidad
A3: Valores en Pesos Corrientes
A4: CONCEPTO (Decreto 062 de 2024) | B4: Posiciones Presupuestales Asociadas (Funcionamiento e Inversión) | C4: LÍNEA BASE | F4: PLAN DE AUSTERIDAD EN EL GASTO 2025-2027 | K4: SEGUIMIENTO RESULTADOS PLAN DE AUSTERIDAD 2025-2027
F5: ESTRATEGIAS 2025-2027 | G5: ACCIONES 2025-2027 | H5: META INDICADOR DE AUSTERIDAD
C6: AÑO 2023 | D6: AÑO 2024 | K6: AÑO 2025 | M6: AÑO 2026 | O6: AÑO 2027
C7: Valor EJECUTADO a 31/12/2023 | D7: Valor EJECUTADO a 31/12/2024 | E7: Resultado Indicador Austeridad | H7: AÑO 2025 | I7: AÑO 2026 | J7: AÑO 2027 | K7: Valor EJECUTADO a 31/12/2025 | L7: Resultado Indicador Austeridad | M7: Valor EJECUTADO a 31/12/2026 | N7: Resultado Indicador Austeridad | O7: Valor EJECUTADO a 31/12/2027 | P7: Resultado Indicador Austeridad
A8: Servicios de personal
A9: Artículo 6°.- Reducción del gasto en CPS profesionales y de apoyo a la gestión. | B9: N.A. Se registran totales. Corresponde con lo reportado en SIDEAP y SIVICOF | E9: =1-(D9/C9) ->  | L9: =1-(K9/D9) ->  | N9: =1-(M9/K9) ->  | P9: =1-(O9/M9) -> 
A10: Artículo 7°.- Horas extras, dominicales y festivos. | L10: =1-(K10/D10) ->  | N10: =1-(M10/K10) -> 
A11: Artículo 8°.- Viáticos y gastos de viaje.
A12: Artículo 9°.- Compensación por vacaciones.
A13: Artículo 10°.- Bono navideño.
A14: Artículo 11 -. Capacitación.
A15: Artículo 12 -. Bienestar.
A16: Artículo 13 -. Eventos y conmemoraciones.
A17: Artículo 14 -. Fondos educativos.
A18: Servicios Administrativos
A19: Artículo 15. Telefonía. | E19: =1-(D19/C19) -> 
A20: Artículo 16 -. Vehículos oficiales.
A21: Artículo 17 -. Adquisición de vehículos y maquinaria.
A22: Artículo 18 -. Fotocopiado, multicopiado e impresión.
A23: Artículo 19 -. Publicidad distrital.
A24: Artículo 20 -. Cajas menores.
A25: Artículo 21 -. Mantenimiento o reparación de bienes inmuebles o muebles.
A26: Artículo 22 -. Suscripciones.
A27: Artículo 23 -. Servicios públicos.

Sheet 0110-01 SDG
A1: PLAN DE AUSTERIDAD EN EL GASTO 2025-2027
A2: Entidad
A3: Valores en Pesos Corrientes
A4: CONCEPTO (Decreto 062 de 2024) | B4: Posiciones Presupuestales Asociadas (Funcionamiento e Inversión) | C4: LÍNEA BASE | F4: PLAN DE AUSTERIDAD EN EL GASTO 2025-2027 | K4: SEGUIMIENTO RESULTADOS PLAN DE AUSTERIDAD 2025-2027
F5: ESTRATEGIAS 2025-2027 | G5: ACCIONES 2025-2027 | H5: META INDICADOR DE AUSTERIDAD
C6: AÑO 2023 | D6: AÑO 2024 | K6: AÑO 2025 | M6: AÑO 2026 | O6: AÑO 2027
C7: Valor EJECUTADO a 31/12/2023 | D7: Valor EJECUTADO a 31/12/2024 | E7: Resultado Indicador Austeridad | H7: AÑO 2025 | I7: AÑO 2026 | J7: AÑO 2027 | K7: Valor EJECUTADO a 31/12/2025 | L7: Resultado Indicador Austeridad | M7: Valor EJECUTADO a 31/12/2026 | N7: Resultado Indicador Austeridad | O7: Valor EJECUTADO a 31/12/2027 | P7: Resultado Indicador Austeridad
A8: Servicios de personal
A9: Artículo 6°.- Reducción del gasto en CPS profesionales y de apoyo a la gestión. | B9: N.A. Se registran totales. Corresponde con lo reportado en SIDEAP y SIVICOF | E9: =1-(D9/C9) ->  | L9: =1-(K9/D9) ->  | N9: =1-(M9/K9) ->  | P9: =1-(O9/M9) -> 
A10: Artículo 7°.- Horas extras, dominicales y festivos. | L10: =1-(K10/D10) ->  | N10: =1-(M10/K10) -> 
A11: Artículo 8°.- Viáticos y gastos de viaje.
A12: Artículo 9°.- Compensación por vacaciones.
A13: Artículo 10°.- Bono navideño.
A14: Artículo 11 -. Capacitación.
A15: Artículo 12 -. Bienestar.
A16: Artículo 13 -. Eventos y conmemoraciones.
A17: Artículo 14 -. Fondos educativos.
A18: Servicios Administrativos
A19: Artículo 15. Telefonía. | E19: =1-(D19/C19) -> 
A20: Artículo 16 -. Vehículos oficiales.
A21: Artículo 17 -. Adquisición de vehículos y maquinaria.
A22: Artículo 18 -. Fotocopiado, multicopiado e impresión.
A23: Artículo 19 -. Publicidad distrital.
A24: Artículo 20 -. Cajas menores.
A25: Artículo 21 -. Mantenimiento o reparación de bienes inmuebles o muebles.
A26: Artículo 22 -. Suscripciones.
A27: Artículo 23 -. Servicios públicos.

Sheet 0111-03 SDH
A1: PLAN DE AUSTERIDAD EN EL GASTO 2025-2027
A2: Entidad
A3: Valores en Pesos Corrientes
A4: CONCEPTO (Decreto 062 de 2024) | B4: Posiciones Presupuestales Asociadas (Funcionamiento e Inversión) | C4: LÍNEA BASE | F4: PLAN DE AUSTERIDAD EN EL GASTO 2025-2027 | K4: SEGUIMIENTO RESULTADOS PLAN DE AUSTERIDAD 2025-2027
F5: ESTRATEGIAS 2025-2027 | G5: ACCIONES 2025-2027 | H5: META INDICADOR DE AUSTERIDAD
C6: AÑO 2023 | D6: AÑO 2024 | K6: AÑO 2025 | M6: AÑO 2026 | O6: AÑO 2027
C7: Valor EJECUTADO a 31/12/2023 | D7: Valor EJECUTADO a 31/12/2024 | E7: Resultado Indicador Austeridad | H7: AÑO 2025 | I7: AÑO 2026 | J7: AÑO 2027 | K7: Valor EJECUTADO a 31/12/2025 | L7: Resultado Indicador Austeridad | M7: Valor EJECUTADO a 31/12/2026 | N7: Resultado Indicador Austeridad | O7: Valor EJECUTADO a 31/12/2027 | P7: Resultado Indicador Austeridad
A8: Servicios de personal
A9: Artículo 6°.- Reducción del gasto en CPS profesionales y de apoyo a la gestión. | B9: N.A. Se registran totales. Corresponde con lo reportado en SIDEAP y SIVICOF | E9: =1-(D9/C9) ->  | L9: =1-(K9/D9) ->  | N9: =1-(M9/K9) ->  | P9: =1-(O9/M9) -> 
A10: Artículo 7°.- Horas extras, dominicales y festivos. | L10: =1-(K10/D10) ->  | N10: =1-(M10/K10) -> 
A11: Artículo 8°.- Viáticos y gastos de viaje.
A12: Artículo 9°.- Compensación por vacaciones.
A13: Artículo 10°.- Bono navideño.
A14: Artículo 11 -. Capacitación.
A15: Artículo 12 -. Bienestar.
A16: Artículo 13 -. Eventos y conmemoraciones.
A17: Artículo 14 -. Fondos educativos.
A18: Servicios Administrativos
A19: Artículo 15. Telefonía. | E19: =1-(D19/C19) -> 
A20: Artículo 16 -. Vehículos oficiales.
A21: Artículo 17 -. Adquisición de vehículos y maquinaria.
A22: Artículo 18 -. Fotocopiado, multicopiado e impresión.
A23: Artículo 19 -. Publicidad distrital.
A24: Artículo 20 -. Cajas menores.
A25: Artículo 21 -. Mantenimiento o reparación de bienes inmuebles o muebles.
A26: Artículo 22 -. Suscripciones.
A27: Artículo 23 -. Servicios públicos.

Sheet 0111-01 SDH
A1: PLAN DE AUSTERIDAD EN EL GASTO 2025-2027
A2: Entidad | B2: SECRETARÍA DISTRITAL DE HACIENDA 0111-01
A3: Valores en Pesos Corrientes
A4: CONCEPTO (Decreto 062 de 2024) | B4: Posiciones Presupuestales Asociadas (Funcionamiento e Inversión) | C4: LÍNEA BASE | F4: PLAN DE AUSTERIDAD EN EL GASTO 2025-2027 | K4: SEGUIMIENTO RESULTADOS PLAN DE AUSTERIDAD 2025-2027
F5: ESTRATEGIAS 2025-2027 | G5: ACCIONES 2025-2027 | H5: META INDICADOR DE AUSTERIDAD
C6: AÑO 2023 | D6: AÑO 2024 | K6: AÑO 2025 | M6: AÑO 2026 | O6: AÑO 2027
C7: Valor EJECUTADO a 31/12/2023 | D7: Valor EJECUTADO a 31/12/2024 | E7: Resultado Indicador Austeridad | H7: AÑO 2025 | I7: AÑO 2026 | J7: AÑO 2027 | K7: Valor EJECUTADO a 31/12/2025 | L7: Resultado Indicador Austeridad | M7: Valor EJECUTADO a 31/12/2026 | N7: Resultado Indicador Austeridad | O7: Valor EJECUTADO a 31/12/2027 | P7: Resultado Indicador Austeridad
A8: Servicios de personal
A9: Artículo 6°.- Reducción del gasto en CPS profesionales y de apoyo a la gestión. | B9: N.A. Se registran totales. Corresponde con lo reportado en SIDEAP y SIVICOF | C9: 25973933571 | D9: 22967979900 | E9: =1-(D9/C9) -> 0.115729628 | F9: Uso eficiente de los cupos de contratación definidos | G9: 1. Reformular los topes definidos para la contratación de Órdenes de Prestación de Servicio. 2. Contratar los servicios permanentes con personas jurídicas 3. Colocar las responsabilidades estratégicas en personal de planta, disminuyendo así la dependencia de contrataciones por prestación de servicios. | H9: -0.052 | I9: 0.01 | J9: 0.01 | L9: =1-(K9/D9) -> 1 | N9: =1-(M9/K9) ->  | P9: =1-(O9/M9) -> 
A10: Artículo 7°.- Horas extras, dominicales y festivos. | B10: O211010100102 Horas extras, dominicales, festivos y recargos | C10: 189750198 | D10: 301572969 | E10: -0.5893157013 | F10: Racionalización del consumo y autorización de horas extras, dominicales, festivos y recargos. | G10: 1. Restringir la autorización de horas extras cuando sea estrictamente necesario, con el fin de atender asuntos del servicio reales e imprescindibles. | H10: 0 | I10: 0 | J10: 0 | L10: =1-(K10/D10) -> 1 | N10: =1-(M10/K10) -> 
A11: Artículo 8°.- Viáticos y gastos de viaje. | B11: O2120202010 Viáticos de los funcionarios en comisión O2120201003023269005 Tiquetes para transporte aéreo | C11: 49276997 | D11: 4328115 | E11: 0.9121676388 | F11: Racionalización en la autorización de viáticos y gastos de viaje | G11: 1. Incentivar el uso de herramientas informáticas para la realización de eventos que puedan realizarse mediante conectividad sincrónica, formentando la disminución de desplazamientos. | H11: 0 | I11: 0 | J11: 0 | L11: 1
A12: Artículo 9°.- Compensación por vacaciones. | B12: O211020300102 Indemnización por vacaciones | C12: 1375203331 | D12: 2081302319 | E12: -0.5134506091 | F12: Control y gestión del pasivo vacacional de los funcionarios de la entidad. | G12: 1. Solicitar a las dependencias de la entidad la programación semestral de las vacaciones de los servidores públicos a su cargo, para permitir la planificación y continuidad del servicio, asegurando el disfrute de las vacaciones y reduciendo el pasivo vacacional. 2. Establecer lineamientos para el disfrute de los periodos de vacaciones al año siguiente de cumplido el derecho, evitando así la acumulación de periodos pendientes de disfrute. | H12: 0.07 | I12: 0 | J12: 0 | L12: 1
A13: Artículo 10°.- Bono navideño. | B13: O21202020090696511 Servicios de promoción de eventos deportivos y recreativos | C13: 104275000 | D13: 122194800 | E13: -0.1718513546 | F13: Realización de negociaciones conjuntas para la contratación. | G13: 1. Gestonar procesos de negociación conjunta para lograr eficiencia de costos en la contratación. | H13: 0 | I13: 0 | J13: 0 | L13: 1
A14: Artículo 11 -. Capacitación. | B14: O21202020090292913 Servicios de educación para la formación y el trabajo | C14: 260775823 | D14: 327640000 | E14: -0.2564048163 | F14: Realización de convenios de capacitación con entidades educativas públicas. | G14: 1. Gestionar convenios para capacitaciones gratuitas en modalidad presencial, sincrónica o virtual ofrecidas por entidades educativas públicas o por otras entidades distritales o a nivel nación. | H14: -0.052 | I14: 0 | J14: 0 | L14: 1
A15: Artículo 12 -. Bienestar. | B15: O21202020090696511 Servicios de promoción de eventos deportivos y recreativos | C15: 1830000000 | D15: 1678372273 | E15: 0.08285668142 | F15: Realización de negociaciones conjuntas para la contratación. | G15: 1. Gestonar procesos de negociación conjunta para lograr eficiencia de costos en la contratación. 2. Establecer cupos de asistencia a las actividades programadas en el plan de bienestar y priorizar la asignación a los servidores públicos que no han sido beneficiados. 3. Aplicar sanciones a los servidores que confirmen la participación en las actividades y no participen sin causa justificada. 4. Adherirse a las actividades que realiza el Departamento Administrativo del Servicio Civil Distrital- DASCD, que permite que se amplie la oferta de eventos sin incrementar el costo ni hacer uso de los recursos de la entidad. | H15: 0 | I15: 0 | J15: 0 | L15: 1
A16: Artículo 13 -. Eventos y conmemoraciones. | B16: O21202020060363391 Servicios de catering para eventos | C16: 187731213 | D16: 72704810 | E16: 0.612718584 | F16: Contro efectivo de las sesiones donde se requiera el uso del gasto. | G16: 1. Fomentar la realización de los eventos por medios informáticos en modalidad sincrónica. 2. Priorizar el uso de las salas de capacitación, comedor y sedes de la entidad como FONCEP, para evitar gastos por alquiler de salones. | H16: 0 | I16: 0 | J16: 0 | L16: 1
A17: Artículo 14 -. Fondos educativos. | B17: N.A. No existió causación de gasto por este concepto para ninguna de las 2 vigencias | C17: 0 | D17: 0 | F17: Fomento a la postulación de los funcionarios de la entidad a los Fondos Educativos Distritales tales como FRADEC y FEDHE. | G17: 1. Gestionar con el Departamento Administrativo del Servicio Civil Distrital - DASCD charlas sobre los Fondos educativos del Distrito FRADEC y FEDHE. | H17: 0 | I17: 0 | J17: 0
A18: Servicios Administrativos
A19: Artículo 15. Telefonía. | B19: O21202020080484131 Servicios móviles de voz O21202020080484120 Servicios de telefonía fija (acceso) | C19: 181970273 | D19: 153627228 | E19: =1-(D19/C19) -> 0.155756457 | F19: Establecer convenios comerciales con los operadores beneficiando costos y realizar seguimiento al consumo de los planes, limitándo su uso a frentes de gestión orientados a la atención de la ciudadanía. | G19: 1. Gestionar convenios comerciales donde se beneficien las tarifas. 2. Para telefonía celular gestionar planes cerrados a fin de asegurar un control en el consumo de voz y datos. 3. Asignación de líneas y teléfonos celulares previa validación de necesidades del servicio y para la atención a la ciudadanía. | H19: 0.01 | I19: 0.01 | J19: 0 | L19: 1
A20: Artículo 16 -. Vehículos oficiales. | B20: O2120201003033331101 Gasolina motor corriente | C20: 73000000 | D20: 80960000 | E20: -0.1090410959 | F20: Control al consumo de combustible de los vehículos del parque automotor de la entidad. | G20: 1. Definir un cupo máximo de consumo mensual de combustible en galones, con seguimiento a través del chip instalado en cada vehículo. 2. Verificar mensualmente los registros de tanqueo entregados por las estaciones de servicio EDS con el fin de establecer patrones de consumo y generar alertas tempranas. 3. Implementar control de rastreo satelital a los vehículos con el fin de asegurar que los recorridos programados se cumplan. 4. Establecer entre los criterios de contratación que la medida del suministro de combustible sea exacta, requiriendo al contratista contar el registro vigente en el SICOM. | H20: 0 | I20: 0 | J20: 0 | L20: 1
A21: Artículo 17 -. Adquisición de vehículos y maquinaria. | B21: N.A. No existió causación de gasto por este concepto para ninguna de las 2 vigencias | C21: 0 | D21: 0 | F21: Definición de la adquisición de vehículos y maquinaria sobre criterios de funcionalidad y eficiencia del equipamento actual. | G21: 1. Realizar seguimiento a costos derivados de mantenimientos correctivos por deterioro o desgaste de los vehículos, frente a la vida útil de los mismos. | H21: 0 | I21: 0 | J21: 0
A22: Artículo 18 -. Fotocopiado, multicopiado e impresión. | B22: O21202020080585951 Servicios de copia y reproducción O2120201003023212897 Papeles especiales para impresión n.c.p. | C22: 276475403 | D22: 172868231 | E22: 0.3747428193 | F22: Adopción de la estrategia de Cero Papel | G22: 1. Utilizar permanentemente el correo electrónico como medio de envío de documentos en borrador o preliminares para su revisión. 2. Fomentar el uso de documentos finales y sus aprobaciones en versiones digitales y el uso de firmas digitales y electrónicas. 3. Fomentar el uso de formatos digitales y radicación mediante correo electrónico o CRM, evitando impresiones para el soporte de actividades de los procesos. 4. Digitalizar los documentos generados por la gestión de la Entidad y fomentar la reutilización cuando sólo se haya impreso una cara de la hoja. 5. Limitar la impresión de documentos y utilizar el papel por ambas caras para las impresiones. 6. Utilizar los sitios de Share Point para el archivo electrónico de los documentos resultantes de la operación de los procesos. | H22: -0.052 | I22: 0.01 | J22: 0.01 | L22: 1
A23: Artículo 19 -. Publicidad distrital. | B23: O21202020080383619 Otros servicios de publicidad | C23: 1738997670 | D23: 999348000 | E23: 0.4253310299 | F23: Limitar la contratación de servicios asociados con publicidad únicamente para la realización de campañas de divulgación institucional orientadas al cumplimiento de la misionalidad de la entidad. | G23: 1. Realizar campañas de divulgación institucional orientadas al cumplimiento de la misión de la entidad priorizando el uso de medios de comunicación propios y, cuando se considere pertinente, hacer uso de medios masivos comerciales y comunitarios gestionados por una agencia o central de medios contratada, así como también por canales alternativos y digitales de carácter local y nacional. Harán parte de las temáticas de divulgación institucional la recordación de las fechas de vencimiento del pago de los impuestos distritales, eventos especiales de atención a la ciudadanía en general y a los contribuyentes en particular, avisos de prevención del fraude, campañas de beneficios para deudores morosos, la publicación de avisos de ley y edictos, entre otros. | H23: -0.052 | I23: 0 | J23: 0 | L23: 1
A24: Artículo 20 -. Cajas menores. | B24: O21202020070373311 Derechos de uso de programas informáticos O2180151 Impuesto sobre vehículos automotores O2120201004054516099 Máquinas y material de oficina n.c.p. O2120202008078715299 Otros servicios de mantenimiento y reparación de maquinaria y aparatos eléctricos n.c.p. O21202020080282199 Otros servicios jurídicos n.c.p. O21202020080383990 Otros servicios profesionales, técnicos y empresariales n.c.p. O2120202008078714199 Servicio de mantenimiento y reparación de vehículos automotores n.c.p. O2120201004054529001 Partes y accesorios para computadores y minicomputadores O21202020080585951 Servicios de copia y reproducción O21202020080282130 Servicios de documentación y certificación jurídica O2120202008098912197 Servicios de impresión litográfica n.c.p. O21202020080383117 Servicios de gestión de desarrollo empresarial O21202020060565115 Servicios de mudanza de muebles domésticos y de oficina y otros menajes O21202020060464112 Servicios de transporte terrestre local regular de pasajeros O21202020060868021 Servicios locales de mensajería nacional O21803 Tasas y derechos administrativos | C24: 130475387 | D24: 29152471 | E24: 0.776567277 | F24: Optimización en la gestión de los gastos que pueden legalizarse a través de la caja menor. | G24: 1. Excluir de la caja menor gastos como impuestos u otros que cuenten con contrato asociados con las posiciones presupuestales de constitución de la caja menor. 2. Definir línea de gasto directo para el pago de honorarios de secuestres. | H24: 0.01 | I24: 0 | J24: 0 | L24: 1
A25: Artículo 21 -. Mantenimiento o reparación de bienes inmuebles o muebles. | B25: O21202020080383939 Otros servicios de consultoría científica y técnica n.c.p. O2120202005040654699 Otros servicios de instalación n.c.p. O2120202005040654619 Otros servicios de instalaciones eléctricas O2120202008078715299 Otros servicios de mantenimiento y reparación de maquinaria y aparatos eléctricos n.c.p. O2120202005040654621 Servicios de fontanería y plomería O2120202005040754730 Servicios de pintura O2120202008078715701 Servicio de mantenimiento y reparación de ascensor O21202020080383443 Servicios de análisis y ensayo de sistemas integra O21202020080585230 Servicios de sistemas de seguridad O2120201004034392303 Equipos extintores de incendios O2120202008078714199 Servicio de mantenimiento y reparación de vehículo O2120202008078711001 Servicio de mantenimiento y reparación de producto O2120201004024299219 Rodachines metálicos con o sin revestimiento plást O2120201003063699098 Artículos n.c.p. de material plástico para uso elé O2120202008078712001 Servicio de mantenimiento y reparación de equipo d O21202020080787130 Servicios de mantenimiento y reparación de computadores O21202020080383117 Servicios de gestión de desarrollo empresarial O2120201004054529001 Partes y accesorios para computadores y minicomput O21202020080383132 Servicios de soporte en tecnologías de la informac | C25: 3800396898 | D25: 2648204236 | E25: 0.3031769294 | F25: Gestión eficiente del plan de mantenimiento de bienes inmuebles o muebles de la entidad, orientándolos en la realización de rutinas de mantenimiento preventivo. | G25: 1. Verificar que la formulación de los planes de mantenimiento preventivo de los bienes inmuebles y muebles de la entidad, asegure la frecuencia que permita su conservación y funcionalidad. 2. Realizar seguimiento a que la ejecución del plan de mantenimiento preventivo de los bienes inmuebles y muebles de la entidad se realice según lo programado. 3. Fomentar el uso de la mesa de servicios para el reporte de daños, averías y requerimientos de los servidores públicos de la entidad, para realizar trazabilidad sobre los mantenimientos correctivos. | H25: -0.052 | I25: 0 | J25: 0 | L25: 1
A26: Artículo 22 -. Suscripciones. | B26: O2120201003023230001 Periódicos impresos publicados cuatro o más veces O21202020070373311 Derechos de uso de programas informáticos | C26: 9365400 | D26: 2111700 | E26: 0.7745211096 | F26: Reducción del número de ejemplares por suscripción para acceder a más fuentes de publicación. | G26: 1. Reducir el número de ejemplares por suscripción con el fin de incrementar el acceso a otras fuentes de publicación. | H26: -0.052 | I26: 0 | J26: 0 | L26: 1
A27: Artículo 23 -. Servicios públicos. | B27: O21202020080686312 Servicios de distribución de electricidad (a comis O21202020090494110 Servicios de alcantarillado y tratamiento de aguas O21202020090494239 Servicios generales de recolección de otros desechos | C27: 2319662829 | D27: 2453697235 | E27: -0.05778184843 | F27: 1. Realización de mantenimientos preventivos en las instalaciones de infraestructura eléctrica e hidráulica de las sedes de la entidad. 2. Realización de inspecciones en sitio para la identificación de averías y fugas en las instalaciones eléctricas e hidráulicas de las sedes de la entidad. 2. Realización de campañas de sensibilización sobre el uso eficiente de los recursos hídrico y eléctrico. 3. Realización de campañas de sensibilización sobre la generación y separación de residuos sólidos. | G27: 1. Realizar inspecciones en sitio orientadas a la identificación de averías y fugas. 2. Continuar con la implementación de la dimerización en las sedes de la entidad (dimmer o atenuador de luz es un sensor que sirve para regular la intensidad de la luz o la luminosidad de acuerdo con la luz natural existente en el lugar). 3. Realizar el apagado de las carteleras digitales en horarios no hábiles 4. Mantener los equipos de impresión en modo ahorro de energía. 5. Fomentar el apagado de equipos al finalizar la jornada laboral. Para los teletrabajadores que deban conectarse por escritorio virtual, fomentar el apagado del monitor. 5. Realizar inspecciones en los puntos hidráulicos de las sedes para distribuir la cantidad de agua necesaria y evitar desperdicios y sobrepresiones. 6. Realizar el mantenimiento preventivo de las redes de recolección de aguas lluvias, optimizando su sistema de bombeo 7. Implementar la instalación de medidores de agua para independizar la lectura del consumo para cada entidad distrital que tiene su sede en el edificio Centro Administrativo Distrital, con el fin de mejorar el seguimiento al consumo y definir estrategias de ahorro. | H27: -0.052 | I27: 0 | J27: 0 | L27: 1

Sheet 0111-02 SDH
A1: PLAN DE AUSTERIDAD EN EL GASTO 2025-2027
A2: Entidad
A3: Valores en Pesos Corrientes
A4: CONCEPTO (Decreto 062 de 2024) | B4: Posiciones Presupuestales Asociadas (Funcionamiento e Inversión) | C4: LÍNEA BASE | F4: PLAN DE AUSTERIDAD EN EL GASTO 2025-2027 | K4: SEGUIMIENTO RESULTADOS PLAN DE AUSTERIDAD 2025-2027
F5: ESTRATEGIAS 2025-2027 | G5: ACCIONES 2025-2027 | H5: META INDICADOR DE AUSTERIDAD
C6: AÑO 2023 | D6: AÑO 2024 | K6: AÑO 2025 | M6: AÑO 2026 | O6: AÑO 2027
C7: Valor EJECUTADO a 31/12/2023 | D7: Valor EJECUTADO a 31/12/2024 | E7: Resultado Indicador Austeridad | H7: AÑO 2025 | I7: AÑO 2026 | J7: AÑO 2027 | K7: Valor EJECUTADO a 31/12/2025 | L7: Resultado Indicador Austeridad | M7: Valor EJECUTADO a 31/12/2026 | N7: Resultado Indicador Austeridad | O7: Valor EJECUTADO a 31/12/2027 | P7: Resultado Indicador Austeridad
A8: Servicios de personal
A9: Artículo 6°.- Reducción del gasto en CPS profesionales y de apoyo a la gestión. | B9: N.A. Se registran totales. Corresponde con lo reportado en SIDEAP y SIVICOF | E9: =1-(D9/C9) ->  | L9: =1-(K9/D9) ->  | N9: =1-(M9/K9) ->  | P9: =1-(O9/M9) -> 
A10: Artículo 7°.- Horas extras, dominicales y festivos. | L10: =1-(K10/D10) ->  | N10: =1-(M10/K10) -> 
A11: Artículo 8°.- Viáticos y gastos de viaje.
A12: Artículo 9°.- Compensación por vacaciones.
A13: Artículo 10°.- Bono navideño.
A14: Artículo 11 -. Capacitación.
A15: Artículo 12 -. Bienestar.
A16: Artículo 13 -. Eventos y conmemoraciones.
A17: Artículo 14 -. Fondos educativos.
A18: Servicios Administrativos
A19: Artículo 15. Telefonía. | E19: =1-(D19/C19) -> 
A20: Artículo 16 -. Vehículos oficiales.
A21: Artículo 17 -. Adquisición de vehículos y maquinaria.
A22: Artículo 18 -. Fotocopiado, multicopiado e impresión.
A23: Artículo 19 -. Publicidad distrital.
A24: Artículo 20 -. Cajas menores.
A25: Artículo 21 -. Mantenimiento o reparación de bienes inmuebles o muebles.
A26: Artículo 22 -. Suscripciones.
A27: Artículo 23 -. Servicios públicos.

Sheet 0111-04 SDH
A1: PLAN DE AUSTERIDAD EN EL GASTO 2025-2027
A2: Entidad
A3: Valores en Pesos Corrientes
A4: CONCEPTO (Decreto 062 de 2024) | B4: Posiciones Presupuestales Asociadas (Funcionamiento e Inversión) | C4: LÍNEA BASE | F4: PLAN DE AUSTERIDAD EN EL GASTO 2025-2027 | K4: SEGUIMIENTO RESULTADOS PLAN DE AUSTERIDAD 2025-2027
F5: ESTRATEGIAS 2025-2027 | G5: ACCIONES 2025-2027 | H5: META INDICADOR DE AUSTERIDAD
C6: AÑO 2023 | D6: AÑO 2024 | K6: AÑO 2025 | M6: AÑO 2026 | O6: AÑO 2027
C7: Valor EJECUTADO a 31/12/2023 | D7: Valor EJECUTADO a 31/12/2024 | E7: Resultado Indicador Austeridad | H7: AÑO 2025 | I7: AÑO 2026 | J7: AÑO 2027 | K7: Valor EJECUTADO a 31/12/2025 | L7: Resultado Indicador Austeridad | M7: Valor EJECUTADO a 31/12/2026 | N7: Resultado Indicador Austeridad | O7: Valor EJECUTADO a 31/12/2027 | P7: Resultado Indicador Austeridad
A8: Servicios de personal
A9: Artículo 6°.- Reducción del gasto en CPS profesionales y de apoyo a la gestión. | B9: N.A. Se registran totales. Corresponde con lo reportado en SIDEAP y SIVICOF | E9: =1-(D9/C9) ->  | L9: =1-(K9/D9) ->  | N9: =1-(M9/K9) ->  | P9: =1-(O9/M9) -> 
A10: Artículo 7°.- Horas extras, dominicales y festivos. | L10: =1-(K10/D10) ->  | N10: =1-(M10/K10) -> 
A11: Artículo 8°.- Viáticos y gastos de viaje.
A12: Artículo 9°.- Compensación por vacaciones.
A13: Artículo 10°.- Bono navideño.
A14: Artículo 11 -. Capacitación.
A15: Artículo 12 -. Bienestar.
A16: Artículo 13 -. Eventos y conmemoraciones.
A17: Artículo 14 -. Fondos educativos.
A18: Servicios Administrativos
A19: Artículo 15. Telefonía. | E19: =1-(D19/C19) -> 
A20: Artículo 16 -. Vehículos oficiales.
A21: Artículo 17 -. Adquisición de vehículos y maquinaria.
A22: Artículo 18 -. Fotocopiado, multicopiado e impresión.
A23: Artículo 19 -. Publicidad distrital.
A24: Artículo 20 -. Cajas menores.
A25: Artículo 21 -. Mantenimiento o reparación de bienes inmuebles o muebles.
A26: Artículo 22 -. Suscripciones.
A27: Artículo 23 -. Servicios públicos.

Sheet 0112-01 SDE
A1: PLAN DE AUSTERIDAD EN EL GASTO 2025-2027
A2: Entidad
A3: Valores en Pesos Corrientes
A4: CONCEPTO (Decreto 062 de 2024) | B4: Posiciones Presupuestales Asociadas (Funcionamiento e Inversión) | C4: LÍNEA BASE | F4: PLAN DE AUSTERIDAD EN EL GASTO 2025-2027 | K4: SEGUIMIENTO RESULTADOS PLAN DE AUSTERIDAD 2025-2027
F5: ESTRATEGIAS 2025-2027 | G5: ACCIONES 2025-2027 | H5: META INDICADOR DE AUSTERIDAD
C6: AÑO 2023 | D6: AÑO 2024 | K6: AÑO 2025 | M6: AÑO 2026 | O6: AÑO 2027
C7: Valor EJECUTADO a 31/12/2023 | D7: Valor EJECUTADO a 31/12/2024 | E7: Resultado Indicador Austeridad | H7: AÑO 2025 | I7: AÑO 2026 | J7: AÑO 2027 | K7: Valor EJECUTADO a 31/12/2025 | L7: Resultado Indicador Austeridad | M7: Valor EJECUTADO a 31/12/2026 | N7: Resultado Indicador Austeridad | O7: Valor EJECUTADO a 31/12/2027 | P7: Resultado Indicador Austeridad
A8: Servicios de personal
A9: Artículo 6°.- Reducción del gasto en CPS profesionales y de apoyo a la gestión. | B9: N.A. Se registran totales. Corresponde con lo reportado en SIDEAP y SIVICOF | E9: =1-(D9/C9) ->  | L9: =1-(K9/D9) ->  | N9: =1-(M9/K9) ->  | P9: =1-(O9/M9) -> 
A10: Artículo 7°.- Horas extras, dominicales y festivos. | L10: =1-(K10/D10) ->  | N10: =1-(M10/K10) -> 
A11: Artículo 8°.- Viáticos y gastos de viaje.
A12: Artículo 9°.- Compensación por vacaciones.
A13: Artículo 10°.- Bono navideño.
A14: Artículo 11 -. Capacitación.
A15: Artículo 12 -. Bienestar.
A16: Artículo 13 -. Eventos y conmemoraciones.
A17: Artículo 14 -. Fondos educativos.
A18: Servicios Administrativos
A19: Artículo 15. Telefonía. | B19: O2301160113000000781801003 | C19: 369119001 | D19: 312590122 | E19: =1-(D19/C19) -> 0.1531454053 | F19: La Dirección de Servicios Administrativos, realizará el control sobre las líneas en servicio a través de una matriz de seguimiento, que permite tener un control sobre el uso de las líneas telefónicas asignadas tanto a Nivel Institucional, Central y Local. Así mismo, se continuará con el proceso de depuración permanente de las líneas telefónicas en servicio, para asegurarse que se estén utilizando las estrictamente necesarias. | G19: El servicio móvil se entregará a cada una de las sedes educativas para que permita la comunicación de las Instituciones Educativas Distritales con los padres de familia y entre los colaboradores de la entidad, principalmente directivos, que, por las características de sus actividades, requieren del servicio. | H19: 0.0142 | I19: 0.0357 | J19: 0.037 | L19: 1
A20: Artículo 16 -. Vehículos oficiales.
A21: Artículo 17 -. Adquisición de vehículos y maquinaria.
A22: Artículo 18 -. Fotocopiado, multicopiado e impresión. | B22: O21202020080585951; O2120201003023212901; O2120201003023212801; O2120201003063699060 | C22: 107552065 | D22: 64546170 | E22: 0.3998611742 | F22: La Dirección de Servicios Administrativos mantendrá los lineamientos emitidos por la Oficina de las Tecnologías y las Comunicaciones, para el uso eficiente del suministro de papel apoyándose en los cupos asignados a todas las dependencias administrativas de la Entidad. | G22: Habilitación de un solo punto de servicio para la atención del personal que realiza trabajo presencial. Seguimiento periódico a los consumos de copias y definición de cupos para cada una de las dependencias. Implementación de carpetas de archivos en línea o de bases de datos afines a las áreas. | H22: 0.0322 | I22: 0.0486 | J22: 0.062 | L22: 1
A23: Artículo 19 -. Publicidad distrital.
A24: Artículo 20 -. Cajas menores. | B24: O2120201003023215306; O2120201004024294415; O21202020080282130; O21202020080383939; O21202020080585951; O2120202008078715399; O2120201004074721101; O2180501002; O21202020080383990 | C24: 8112000 | D24: 13245540 | E24: -0.6328328402 | F24: Aprobar los requerimientos de acuerdo con el estándar de consumo por dependencia establecido en el memorando de austeridad. De igual manera, se lleva a cabo la aprobación de pedidos teniendo en cuenta la trazabilidad y gasto con meses anteriores. | G24: Seguimiento a las variaciones de consumo de manera trimestral, para identificar incrementos y usos innecesarios. Implementación de carpetas de archivos en línea o de bases de datos afines a las áreas. | H24: 0.01 | I24: 0.013 | J24: 0.013 | L24: 1
A25: Artículo 21 -. Mantenimiento o reparación de bienes inmuebles o muebles.
A26: Artículo 22 -. Suscripciones. | B26: O21202020080383619 | C26: 9149200 | D26: 22583800 | E26: -1.468390679 | F26: Controlar mediante correos electrónicos entre el contratista y la entidad, uno a uno los avisos de ley solicitados al contratista, así como su contenido y valor. Realizar al contratista las solicitudes de publicación estrictamente necesarias que permitan cumplir con el objeto del contrato. | G26: Realizar actas de seguimiento que controlen el pago de los servicios y productos realmente prestados por el contratista. Solicitar, validar y aprobar mediante correo electrónico entre el contratista y el apoyo a la supervisión, las necesidades de publicación de los avisos de ley requeridos por la entidad, dentro de los parámetros técnicos y económicos del contrato. | H26: 0.01 | I26: 0.013 | J26: 0.013 | L26: 1
A27: Artículo 23 -. Servicios públicos. | B27: O2301160113000000781801002; O2301160113000000781801001; O2301160113000000781801003; O2301160113000000781801004; O21202020080686311; O21202020080686330; O21202020090494239; O21202020080484120; O21202020080686320 | C27: 52095614710 | D27: 58957968689 | E27: -0.1317261351 | F27: La Dirección de Servicios Administrativos realizará la revisión de los consumos y valores pagados presentados, con la revisión de las facturas, para establecer si hay aumentos que requieran revisión frente a los valores facturados. De igual manera, se coordina con las empresas de servicios públicos, para llevar a cabo visitas en las sedes de la entidad, para determinar posibles causas en las variaciones de consumo. | G27: Seguimiento y control a los consumos facturados de los servicios públicos de energía, acueducto, alcantarillado, aseo, telefonía y gas natural, así como el análisis de las variaciones superiores al 35% en los consumos, solicitando revisión de las facturas y verificar las posibles causas. Para esto, se coordinan reuniones y se emiten comunicaciones a las empresas prestadoras de los diferentes servicios informando, con base en facturaciones anteriores, las posibles variaciones que se pueden presentar. Coordinación de visitas con las Empresas de Servicios Públicos y demás áreas de la entidad encargadas del mantenimiento de la infraestructura para la prestación del servicio, para que se lleven a cabo las revisiones en los diferentes predios de la Entidad, para establecer medidas de control y causas en las variaciones de consumo. Nota 1: Dentro de las acciones se tendrá en cuenta los incrementos tarifarios de cada servicio, con el fin de verificar el comparativo de incremento vs el IPC. Nota 2: La puesta en marcha de los mega colegios, orientada a la prestación de servicio educativo con la mira de aumentar coberturas de atención tendrá un impacto directo en las variaciones de los consumos de servicios públicos. | H27: -0.0142 | I27: 0.0002 | J27: 0.001 | L27: 1

Sheet 0113-01 SDM
A1: PLAN DE AUSTERIDAD EN EL GASTO 2025-2027
A2: Entidad | B2: SECRETARIA DISTRITAL DE MOVILIDAD
A3: Valores en Pesos Corrientes
A4: CONCEPTO (Decreto 062 de 2024) | B4: Posiciones Presupuestales Asociadas (Funcionamiento e Inversión) | C4: LÍNEA BASE | F4: PLAN DE AUSTERIDAD EN EL GASTO 2025-2027 | K4: SEGUIMIENTO RESULTADOS PLAN DE AUSTERIDAD 2025-2027
F5: ESTRATEGIAS 2025-2027 | G5: ACCIONES 2025-2027 | H5: META INDICADOR DE AUSTERIDAD
C6: AÑO 2023 | D6: AÑO 2024 | K6: AÑO 2025 | M6: AÑO 2026 | O6: AÑO 2027
C7: Valor EJECUTADO a 31/12/2023 | D7: Valor EJECUTADO a 31/12/2024 | E7: Resultado Indicador Austeridad | H7: AÑO 2025 | I7: AÑO 2026 | J7: AÑO 2027 | K7: Valor EJECUTADO a 31/12/2025 | L7: Resultado Indicador Austeridad | M7: Valor EJECUTADO a 31/12/2026 | N7: Resultado Indicador Austeridad | O7: Valor EJECUTADO a 31/12/2027 | P7: Resultado Indicador Austeridad
A8: Servicios de personal
A9: Artículo 6°.- Reducción del gasto en CPS profesionales y de apoyo a la gestión. | B9: "O232020200883159 - Otros servicios de alojamiento y suministro de infraestructura en tecnología de la información (TI) O23202020088731001 - Servicio de instalación de productos metálicos estructurales y sus partes O232020200883129 - Otros servicios de consultoría empresarial O232020200664114 - Servicios de transporte terrestre especial local de pasajeros O232020200997990 - Otros servicios diversos n.c.p." Se registran totales. Corresponde con lo reportado en SIDEAP y SIVICOF | C9: 23670828445 | D9: 24685895310 | E9: =1-(D9/C9) -> -0.04288260833 | F9: "En la vigencia 2025 aumentarán los CPS por mayores controles y gestión en vía, conforme a las metas del PDD. Para 2026 y 2027, se espera realizar racionalización gradual de los recursos asignados para la contratación de prestación de servicios profesionales y de apoyo a la gestión, a través de la optimización de actividades y procesos al interior de las áreas, especialmente de aquellas que solicitan la mayor catidad de contratación bajo esta modalidad, ." | G9: 1. Revisar que cada solicitud de contratación de esta modalidad llegue debidamente justificada de acuerdo con la normatividad vigente. 2. Dentro de la planeación se incluirán y adoptarán todas las medidas de optimización de actividades, procesos y recursos necesarios para que la cantidad de contratos de prestación de servicios profesionales y de apoyo a la gestión sean los estrictamente necesarios para cumplir con los objetivos de cada áreas de la entidad. | H9: 0.052 | I9: 0.03 | J9: 0.03 | L9: =1-(K9/D9) -> 1 | N9: =1-(M9/K9) ->  | P9: =1-(O9/M9) -> 
A10: Artículo 7°.- Horas extras, dominicales y festivos. | B10: O211010100102 | C10: 1919960524 | D10: 4060839813 | E10: -1.115064223 | F10: No se tomó este concepto de gasto como elegible, teniendo en cuenta que para la vigencia 2025 se efectuará una ampliación de planta de agentes civiles de tránsito, los cuales tienen por necesidades del servicio y la actividad propia del cargo derecho al pago de horas extras, dominicales, festivos y recargos . | G10: 1. La autorización de horas extras se continuara reconociendo para atender asuntos del servicio reales e imprescindibles | H10: 0.0323 | I10: 0.03 | J10: 0.03 | L10: =1-(K10/D10) -> 1 | N10: =1-(M10/K10) -> 
A11: Artículo 8°.- Viáticos y gastos de viaje. | B11: O2120202010 | C11: 10396578 | D11: 3677172 | E11: 0.6463093914 | F11: Para este concepto no se tomó como gasto elegible, pero se seguirán implementando estrategías que permitan la disminusión del gasto en pago de viáticos | G11: 1. Priorizar la participación en eventos nacionales e internacionales de forma virtual, en atención al Decreto 062 del 2024. 2. Se continuará implementando la estrategía para que las autorizaciones de comisiones sean las que cuentan con financiación del organizador al 100%. | H11: 0.0323 | I11: 0.03 | J11: 0.03 | L11: 1
A12: Artículo 9°.- Compensación por vacaciones. | B12: O211010300102 | C12: 383787175 | D12: 1150460018 | E12: -1.997651024 | F12: Las vacaciones no quedaron como un gasto elegible; sin embargo, se continuarán implementando estrategías que contribuyan al disfrute de las vacaciones a las que tiene derecho los funcionarios de la entidad. | G12: 1. Expedir circular de programación y disfrute de vacaciones a los directivos de la entidad, con el fin de que programen las vacaciones de los funcionarios a su cargo y así evitar la acumulación de vacaciones. 2. Expedir memorando dirigido a los jefes de la dependencias para que los funcionarios a su cargo, toman los periodo de vacaciones acumulados. 4. Solo se continuará reconocienndo en dinero las vacaciones causadas y no disfrutadas en caso de retiro definitivo del servidor público. | H12: 0.0323 | I12: 0.03 | J12: 0.03 | L12: 1
A13: Artículo 10°.- Bono navideño. | B13: O21202020090696511 | C13: 0 | D13: 0 | F13: El bono navideño no se relacionó como un gasto elegible, dentro del plan de asuteridad 2025, pero se continuarán implementado acciones para racionalizar los recursos por este concepto. | G13: 1. Los bonos navideños, continuaran siendo entregados a los hijos de los funcionarios que sean menores de 13 años y no se superará el valor de seis (6) salarios mínimos diarios legales vigentes. Este beneficio se podrá extender unicamente a los hijos mayores de 13 años y menores de 18 años que se encuentren en condición de discapacidad y que adicionalmente, dependan económicamente de sus padres, siempre que se cuente con los recursos presupuestales para tal efecto. | H13: 0.0323 | I13: 0.03 | J13: 0.03
A14: Artículo 11 -. Capacitación. | B14: O21202020090292511 | C14: 386759909 | D14: 265229267 | E14: 0.3142276104 | F14: A pesar de no establecerse como un gasto elegible, se fortalcerán las alianzas interinstitucionales y administrativas a nivel Distrito, con el fin de optimizar recursos en las actividades del plan de capacitación institucional. | G14: 1. Dentro de las actividades establecidas en el PIC institucional, se propendrá por adelantar las capacitaciones en coordinación administrativa con el Departameto Administrativo del Servicio Civil Distrital, con el fin de disminuir el gasto en capacitación sin disminuir el fortalecimiento en las actividades de capacitación para los funcionarios. 2. Se propendrá por realizar las capacitaciones de forma virtual, disminuyendo los gastos relacionados con desplazamiento, uso de aulas y refrigerios para espacios de capacitación. 3. En atención a las especialidades de las entidades del Distrito, se propendrá por realizar alianzas administrativas que permitan realizar capacitaciones a los funcionarios sin dismunuir el impacto y disminuyendo el gasto. | H14: 0.0323 | I14: 0.03 | J14: 0.03 | L14: 1
A15: Artículo 12 -. Bienestar. | B15: O21202020090696511 | C15: 247228000 | D15: 435909000 | E15: -0.7631862087 | F15: Se eligió este concepto de gasto principalmente fortalceciendo las alianzas interinstitucionales y administrativas a nivel Distrito, con el fin de optimizar recursos en las actividades del plan de bienestar institucional dando como resultado un ahorro. | G15: 1 Abstenernos de efectuar conmemoraciones del día de la secretaría y día del conductor, ya que las mismas son reconocidas por el Departamento Administrativo del Servicio Civl Distrital - DASCD a nivel distrital 2. Realizar eventos deportivos y recreativos, mediante alianzas administrativas con el apoyo de la caja de compensación de la entidad. 3. Generar actividades de bienestar institucional por autogestión con la logistica del personal de la Dirección de Talento Humano. | H15: -0.01 | I15: -0.01 | J15: -0.01 | L15: 1
A16: Artículo 13 -. Eventos y conmemoraciones. | B16: O21202020090696511 | C16: 0 | D16: 0 | F16: Aunque no se haya tomado como un gasto elegible, todo evento que se realice debe cumplir con los criterios de sencillez, moderación y austeridad. | G16: 1.Todo evento que se realice debe cumplir con los criterios de sencillez, moderación y austeridad. | H16: 0.0323 | I16: 0.03 | J16: 0.03
A17: Artículo 14 -. Fondos educativos. | B17: O21202020090292511 | C17: 136759909 | D17: 0 | E17: 1 | F17: No se toma como gasto elegible, pero se realizará la implementación e incentivo del FRADEC | G17: 1. Se realizarán piezas comunicativas que incentiven la oferta distrital en el Fondo Educativo en Administración de Recursos para Capacitación Educativa de los Empleados Públicos del Distrito Capital - FRADEC y el Fondo Educativo del Distrito para hijos de empleados - FEDHE, para optimizar los recursos y evitar duplicar esfuerzos y recursos financieros e institucionales destinados a este fin. | H17: 0 | I17: 0 | J17: 0
A18: Servicios Administrativos
A19: Artículo 15. Telefonía. | B19: O21202020080484120 O21202020080484131 | C19: 458176500 | D19: 368680627 | E19: =1-(D19/C19) -> 0.1953305615 | F19: La telefonía no se toma como un gasto elegible, pero a pesar de ellos se continuará con la revisión de las líneas telefónicas fijas y móviles, con el fin de determinar si son indispensables para la prestación del servicio de la entidad | G19: 1. Abstenerse de adquiri o renovar o adqúirir teléfonos celulares y planes de telefonía móvil que no sean indispensables. 2. Priorizar el uso y fomentar la cultura de medios de comunicación como el correo institucional, el chat del correo, videollamadas por meet, para la comunicación interna de los colaboradores de la entidad. | H19: 0.0323 | I19: 0.03 | J19: 0.03 | L19: 1
A20: Artículo 16 -. Vehículos oficiales. | B20: O2120201003033331101 O2120201003033336103 | C20: 68301908 | D20: 97250000 | E20: -0.4238255248 | F20: Sin ser un gasto elegible para esta vigencia, se seguirá llevando un control eficiente y efectivo del suministro de combustible a los vehículos de propiedad de la SDM, destinados a realizar actividades administrativas y logísticas, así como también a los vehículos y motocicletas entregadas en comodato a las Policia Metropolitana de Bogotá-Seccional Transito y Transporte de Bogotá por la SDM. | G20: 1. Se determinó un tope máximo de galones de combustible para el suministro diario y semanal a cada uno de los vehículos de uso administrativo. 2. Instalación de un CHIP a cada uno de los vehículos oficiales de uso administrativo como mecanismo de control. | H20: 0.0323 | I20: 0.03 | J20: 0.03 | L20: 1
A21: Artículo 17 -. Adquisición de vehículos y maquinaria. | B21: N.A | C21: 0 | D21: 0 | F21: No se tiene programado para el periodo 2025-2027 la adquisición de vehículos en la entidad desde funcionamiento | G21: No se tiene programado para el periodo 2025-2027 la adquisición de vehículos en la entidad. | H21: 0 | I21: 0 | J21: 0
A22: Artículo 18 -. Fotocopiado, multicopiado e impresión. | B22: O2120201003023212901 | C22: 7470000 | D22: 5000000 | E22: 0.3306559572 | F22: Se toma como gasto elegible la papelería, con la permanentemente la socialización de las buenas prácticas para el uso del papel | G22: 1. Realizar campaña de sensibilización en la entidad, sobre el uso eficiente de papel 2. Impulsar la Política de “Cero Papel”, para que se priorice el uso de medios electrónicos en el envío de trámites y comunicaciones 3. Realizar entregas de papel para exclusivamente las actividades misionales y que estén debidamente justificadas 4. Se propone limitar la cuota de impresión por área o usuario con el objetivo de limitar la cantidad de impresiones. | H22: -0.01 | I22: -0.01 | J22: -0.01 | L22: 1
A23: Artículo 19 -. Publicidad distrital. | B23: N/A | C23: 0 | D23: 0 | F23: N/A | G23: N/A | H23: 0 | I23: 0 | J23: 0
A24: Artículo 20 -. Cajas menores. | B24: N/A | C24: 0 | D24: 0 | F24: N/A | G24: N/A | H24: 0 | I24: 0 | J24: 0
A25: Artículo 21 -. Mantenimiento o reparación de bienes inmuebles o muebles. | B25: O2120202005040754790 O23202020088731001 O232020200883129 | C25: 74769011 | D25: 72565000 | E25: 0.02947760002 | F25: Fortalecer el sentido de pertenencia entre los usuarios, empleados de las instalaciones de la secretaría, fomentando el cuidado y respeto por los espacios comunes y de trabajo.Se aplica ahorro del gasto correspondiente al Plan de Austeridad según Circular Externa No. SDH 000002 - 2025, en el mantenimiento y mejoramiento locativo de las instalaciones de la SDM, que formaba parte del Fortalecimiento Institucional. Por otro lado, se fortalecerá el sentido de pertenencia entre los usuarios, empleados de las instalaciones de la secretaría, fomentando el cuidado y respeto por los espacios comunes y de trabajo. | G25: 1. Lanzar campañas internas que refuercen la importancia del cuidado de los espacios. 2.Utilizar medios como carteles, mensajes en redes sociales o charlas informativas sobre cómo el buen mantenimiento contribuye a un entorno más agradable para todos. 3.Realizar una evaluación de los espacios e instalaciones para identificar áreas que requieran mantenimiento, reparaciones o mejoras. Este diagnóstico debe involucrar la participación activa de los usuarios para conocer sus necesidades y preocupaciones. | H25: 0.0323 | I25: 0.03 | J25: 0.03 | L25: 1
A26: Artículo 22 -. Suscripciones. | B26: N/A | C26: 0 | D26: 0 | F26: No aplica debido a que para el periodo 2025-2027 la entidad no tiene planeada contratación en lo que se relaciona con suscripción a periódicos y revistas, publicaciones y bases de datos. | G26: N.A | H26: 0 | I26: 0 | J26: 0
A27: Artículo 23 -. Servicios públicos. | B27: O21202020080686311 O21202020080686330 O21202020090494239 | C27: 1078359303 | D27: 1738734804 | E27: -0.6123891167 | F27: Como gasto elegible suceptible de ahorro, se mantendrá una permanentemente la socialización acerca del consumo eficiente de los servicios públicos domiciliarios (agua, y energìa) así como el aprovechamiento de los residuos, permitiendo la optimización de los recursos y reducción de gasto en un 1% para el periodo 2025-2027. | G27: 1. Divulgación de Campañas comunicativas de sensibilización para el consumo eficiente de Agua y Energía, para que todos los colaboradores de la SDM se comprometan con el Ahorro y el reporte de eventos que impliquen un mayor consumo. 2 Constante seguimiento a la facturación emitida por las empresas operadoras de los servicios públicos domiciliarios, verificando los consumos de cada una de las sedes de la entidad y generando alertas cuando se evidencien consumos elevados. 3. Efectuar la revisión y seguimiento constante de las instalaciones sanitarias, verificando que los sistemas ahorradores se encuentren en buen funcionamiento. 4. Mantener constante comunicación con las empresas operadoras de servicios de Energía , Acueducto y Aseo a fin de adelantar las recomendaciones para el uso eficiente de los recursos. | H27: -0.01 | I27: -0.01 | J27: -0.01 | L27: 1

Sheet 0113-02 SDM
A1: PLAN DE AUSTERIDAD EN EL GASTO 2025-2027
A2: Entidad | B2: SECRETARIA DISTRITAL DE MOVILIDAD
A3: Valores en Pesos Corrientes
A4: CONCEPTO (Decreto 062 de 2024) | B4: Posiciones Presupuestales Asociadas (Funcionamiento e Inversión) | C4: LÍNEA BASE | F4: PLAN DE AUSTERIDAD EN EL GASTO 2025-2027 | K4: SEGUIMIENTO RESULTADOS PLAN DE AUSTERIDAD 2025-2027
F5: ESTRATEGIAS 2025-2027 | G5: ACCIONES 2025-2027 | H5: META INDICADOR DE AUSTERIDAD
C6: AÑO 2023 | D6: AÑO 2024 | K6: AÑO 2025 | M6: AÑO 2026 | O6: AÑO 2027
C7: Valor EJECUTADO a 31/12/2023 | D7: Valor EJECUTADO a 31/12/2024 | E7: Resultado Indicador Austeridad | H7: AÑO 2025 | I7: AÑO 2026 | J7: AÑO 2027 | K7: Valor EJECUTADO a 31/12/2025 | L7: Resultado Indicador Austeridad | M7: Valor EJECUTADO a 31/12/2026 | N7: Resultado Indicador Austeridad | O7: Valor EJECUTADO a 31/12/2027 | P7: Resultado Indicador Austeridad
A8: Servicios de personal
A9: Artículo 6°.- Reducción del gasto en CPS profesionales y de apoyo a la gestión. | B9: O2320201003023262003 - Catálogos, folletos y otras impresiones publicitarias O232020200991119 - Otros servicios de la administración pública n.c.p. O23201010030807 - Otros equipos O232020200883111 - Servicios de consultoría en gestión estratégica O232020200883159 - Otros servicios de alojamiento y suministro de infraestructura en tecnología de la información (TI) O232020200884190 - Otros servicios de telecomunicaciones | C9: 94809244421 | D9: 101222778876 | E9: =1-(D9/C9) -> -0.06764672047 | F9: "En la vigencia 2025 aumentarán los CPS por mayores controles y gestión en vía, conforme a las metas del PDD. Para 2026 y 2027, se espera realizar racionalización gradual de los recursos asignados para la contratación de prestación de servicios profesionales y de apoyo a la gestión, a través de la optimización de actividades y procesos al interior de las áreas, especialmente de aquellas que solicitan la mayor catidad de contratación bajo esta modalidad, ." | G9: 1. Revisar que cada solicitud de contratación de esta modalidad llegue debidamente justificada de acuerdo con la normatividad vigente. 2. Dentro de la planeación se incluirán y adoptarán todas las medidas de optimización de actividades, procesos y recursos necesarios para que la cantidad de contratos de prestación de servicios profesionales y de apoyo a la gestión sean los estrictamente necesarios para cumplir con los objetivos de cada áreas de la entidad. | H9: 0.052 | I9: 0.03 | J9: 0.03 | L9: =1-(K9/D9) -> 1 | N9: =1-(M9/K9) ->  | P9: =1-(O9/M9) -> 
A10: Artículo 7°.- Horas extras, dominicales y festivos. | B10: N.A. | C10: 0 | D10: 0 | F10: Las estrategias de este concepto se determinan desde el presupuesto de funcionamiento, para la Unidad 2. Se precisa que en jun-25 ingresarán nuevos agentes de planta, por lo que es probable que el rubro aumente en valor superior al IPC proyectado | G10: Las acciones de este concepto se determinan desde el presupuesto de funcionamiento, para la Unidad 2. Se precisa que en jun-25 ingresarán nuevos agentes de planta, por lo que es probable que el rubro aumente en valor superior al IPC proyectado | H10: 0 | I10: 0 | J10: 0 | L10: =1-(K10/D10) ->  | N10: =1-(M10/K10) -> 
A11: Artículo 8°.- Viáticos y gastos de viaje. | B11: N.A. | C11: 0 | D11: 0 | F11: Las estrategias de este concepto se determinan desde el presupuesto de funcionamiento, para la Unidad 2. | G11: Las estrategias de este concepto se determinan desde el presupuesto de funcionamiento, para la Unidad 2. | H11: 0 | I11: 0 | J11: 0
A12: Artículo 9°.- Compensación por vacaciones. | B12: N.A. | C12: 0 | D12: 0 | F12: Las estrategias de este concepto se determinan desde el presupuesto de funcionamiento, para la Unidad 2. Se precisa que en jun-25 ingresarán nuevos agentes de planta, por lo que es probable que el rubro aumente en valor superior al IPC proyectado | G12: Las acciones de este concepto se determinan desde el presupuesto de funcionamiento, para la Unidad 2. Se precisa que en jun-25 ingresarán nuevos agentes de planta, por lo que es probable que el rubro aumente en valor superior al IPC proyectado | H12: 0 | I12: 0 | J12: 0
A13: Artículo 10°.- Bono navideño. | B13: N.A. | C13: 0 | D13: 0 | F13: Las estrategias de este concepto se determinan desde el presupuesto de funcionamiento, para la Unidad 2. Se precisa que en jun-25 ingresarán nuevos agentes de planta, por lo que es probable que el rubro aumente en valor superior al IPC proyectado | G13: Las acciones de este concepto se determinan desde el presupuesto de funcionamiento, para la Unidad 2. Se precisa que en jun-25 ingresarán nuevos agentes de planta, por lo que es probable que el rubro aumente en valor superior al IPC proyectado | H13: 0 | I13: 0 | J13: 0
A14: Artículo 11 -. Capacitación. | B14: N.A. | C14: 0 | D14: 0 | F14: Las estrategias de este concepto se determinan desde el presupuesto de funcionamiento, para la Unidad 2. Se precisa que en jun-25 ingresarán nuevos agentes de planta, por lo que es probable que el rubro aumente en valor superior al IPC proyectado | G14: Las acciones de este concepto se determinan desde el presupuesto de funcionamiento, para la Unidad 2. Se precisa que en jun-25 ingresarán nuevos agentes de planta, por lo que es probable que el rubro aumente en valor superior al IPC proyectado | H14: 0 | I14: 0 | J14: 0
A15: Artículo 12 -. Bienestar. | B15: N.A. | C15: 0 | D15: 0 | F15: Las estrategias de este concepto se determinan desde el presupuesto de funcionamiento, para la Unidad 2. Se precisa que en jun-25 ingresarán nuevos agentes de planta, por lo que es probable que el rubro aumente en valor superior al IPC proyectado | G15: Las acciones de este concepto se determinan desde el presupuesto de funcionamiento, para la Unidad 2. Se precisa que en jun-25 ingresarán nuevos agentes de planta, por lo que es probable que el rubro aumente en valor superior al IPC proyectado | H15: 0 | I15: 0 | J15: 0
A16: Artículo 13 -. Eventos y conmemoraciones. | B16: N.A. | C16: 0 | D16: 0 | F16: Las estrategias de este concepto se determinan desde el presupuesto de funcionamiento, para la Unidad 2. | G16: Las estrategias de este concepto se determinan desde el presupuesto de funcionamiento, para la Unidad 2. | H16: 0 | I16: 0 | J16: 0
A17: Artículo 14 -. Fondos educativos. | B17: N.A. | C17: 0 | D17: 0 | F17: Las estrategias de este concepto se determinan desde el presupuesto de funcionamiento, para la Unidad 2. | G17: Las estrategias de este concepto se determinan desde el presupuesto de funcionamiento, para la Unidad 2. | H17: 0 | I17: 0 | J17: 0
A18: Servicios Administrativos
A19: Artículo 15. Telefonía. | B19: N.A. | C19: 0 | D19: 0 | E19: =1-(D19/C19) ->  | F19: Las estrategias de este concepto se determinan desde el presupuesto de funcionamiento, para la Unidad 2. | G19: Las estrategias de este concepto se determinan desde el presupuesto de funcionamiento, para la Unidad 2. | H19: 0 | I19: 0 | J19: 0
A20: Artículo 16 -. Vehículos oficiales. | B20: N.A. | C20: 0 | D20: 0 | F20: Las estrategias de este concepto se determinan desde el presupuesto de funcionamiento, para la Unidad 2. | G20: Las estrategias de este concepto se determinan desde el presupuesto de funcionamiento, para la Unidad 2. | H20: 0 | I20: 0 | J20: 0
A21: Artículo 17 -. Adquisición de vehículos y maquinaria. | B21: N.A. | C21: 0 | D21: 0 | F21: Las estrategias de este concepto se determinan desde el presupuesto de funcionamiento, para la Unidad 2. | G21: Las estrategias de este concepto se determinan desde el presupuesto de funcionamiento, para la Unidad 2. | H21: 0 | I21: 0 | J21: 0
A22: Artículo 18 -. Fotocopiado, multicopiado e impresión. | B22: N.A. | C22: 0 | D22: 0 | F22: Las estrategias de este concepto se determinan desde el presupuesto de funcionamiento, para la Unidad 2. | G22: Las estrategias de este concepto se determinan desde el presupuesto de funcionamiento, para la Unidad 2. | H22: 0 | I22: 0 | J22: 0
A23: Artículo 19 -. Publicidad distrital. | B23: N.A. | C23: 0 | D23: 0 | F23: Las estrategias de este concepto se determinan desde el presupuesto de funcionamiento, para la Unidad 2. | G23: Las estrategias de este concepto se determinan desde el presupuesto de funcionamiento, para la Unidad 2. | H23: 0 | I23: 0 | J23: 0
A24: Artículo 20 -. Cajas menores. | B24: N.A. | C24: 0 | D24: 0 | F24: Las estrategias de este concepto se determinan desde el presupuesto de funcionamiento, para la Unidad 2. | G24: Las estrategias de este concepto se determinan desde el presupuesto de funcionamiento, para la Unidad 2. | H24: 0 | I24: 0 | J24: 0
A25: Artículo 21 -. Mantenimiento o reparación de bienes inmuebles o muebles. | B25: N.A. | C25: 0 | D25: 0 | F25: Las estrategias de este concepto se determinan desde el presupuesto de funcionamiento, para la Unidad 2. | G25: Las estrategias de este concepto se determinan desde el presupuesto de funcionamiento, para la Unidad 2. | H25: 0 | I25: 0 | J25: 0
A26: Artículo 22 -. Suscripciones. | B26: N.A. | C26: 0 | D26: 0 | F26: Las estrategias de este concepto se determinan desde el presupuesto de funcionamiento, para la Unidad 2. | G26: Las estrategias de este concepto se determinan desde el presupuesto de funcionamiento, para la Unidad 2. | H26: 0 | I26: 0 | J26: 0
A27: Artículo 23 -. Servicios públicos. | B27: N.A. | C27: 0 | D27: 0 | F27: Las estrategias de este concepto se determinan desde el presupuesto de funcionamiento, para la Unidad 2. | G27: Las estrategias de este concepto se determinan desde el presupuesto de funcionamiento, para la Unidad 2. | H27: 0 | I27: 0 | J27: 0

Sheet 0114-01 SDS
A1: PLAN DE AUSTERIDAD EN EL GASTO 2025-2027
A2: Entidad
A3: Valores en Pesos Corrientes
A4: CONCEPTO (Decreto 062 de 2024) | B4: Posiciones Presupuestales Asociadas (Funcionamiento e Inversión) | C4: LÍNEA BASE | F4: PLAN DE AUSTERIDAD EN EL GASTO 2025-2027 | K4: SEGUIMIENTO RESULTADOS PLAN DE AUSTERIDAD 2025-2027
F5: ESTRATEGIAS 2025-2027 | G5: ACCIONES 2025-2027 | H5: META INDICADOR DE AUSTERIDAD
C6: AÑO 2023 | D6: AÑO 2024 | K6: AÑO 2025 | M6: AÑO 2026 | O6: AÑO 2027
C7: Valor EJECUTADO a 31/12/2023 | D7: Valor EJECUTADO a 31/12/2024 | E7: Resultado Indicador Austeridad | H7: AÑO 2025 | I7: AÑO 2026 | J7: AÑO 2027 | K7: Valor EJECUTADO a 31/12/2025 | L7: Resultado Indicador Austeridad | M7: Valor EJECUTADO a 31/12/2026 | N7: Resultado Indicador Austeridad | O7: Valor EJECUTADO a 31/12/2027 | P7: Resultado Indicador Austeridad
A8: Servicios de personal
A9: Artículo 6°.- Reducción del gasto en CPS profesionales y de apoyo a la gestión. | B9: N.A. Se registran totales. Corresponde con lo reportado en SIDEAP y SIVICOF. Nota: Se registran los valores reportados en el formato CB-0014. | C9: 1237642597 | D9: 1031005425 | E9: =1-(D9/C9) -> 0.1669602941 | F9: Los contratos de prestación de servicios profesionales y de apoyo a la gestión se ajustará máximo con un incremento del IPC causado de cada vigencia. NOTA:Teniendo en cuenta que la reducción del 2023 frente al 2024 fue superior al 10% , se asume como meta para el 2025 que la linea base del año 2024 corresponde solo a una reducción del 10% frente al 2023, que llevado a precios corrientes cresponde a $1.147.294.687 , mas el incremento del IPC. | G9: Realizar seguimiento a la contratación de prestación de servicios profesionales de apoyo a la gestión para garantizar el cumplimiento de la estratégia. | H9: -0.052 | I9: -0.03 | J9: -0.03 | L9: =1-(K9/D9) -> 1 | N9: =1-(M9/K9) ->  | P9: =1-(O9/M9) -> 
A10: Artículo 7°.- Horas extras, dominicales y festivos. | B10: O211010100102 | C10: 943311205 | D10: 1431916611 | E10: -0.5179684111 | F10: Se realizará seguimiento trimestral en el Comité de Gestión y Desempeño para revisar el comportamiento de los topes autorizados frente a las horas extras. | G10: 1. Realizar seguimiento mensual al cause de horas extras por dependencias. 2.Presentar informe de monitoreo de horas extras por dependencias al Comité de Gestión y Desempeño | H10: 0.01 | I10: 0.01 | J10: 0.01 | L10: =1-(K10/D10) -> 1 | N10: =1-(M10/K10) -> 
A11: Artículo 8°.- Viáticos y gastos de viaje. | B11: O1202020060464241 O21202020060464119 O1202020060363311 O1202020060363220 | C11: 23738253 | D11: 3580671 | E11: 0.8491602984 | F11: Mantener los gastos de Viáticos y Gastos de Viaje en un incremento máximo del IPC. | G11: Solo se aprobaran gastos de viaticos y viajes para el Secretario de depacho o quien sea autorizado por el mismo. | H11: -0.052 | I11: -0.03 | J11: -0.03 | L11: 1
A12: Artículo 9°.- Compensación por vacaciones. | B12: O211010300102 | C12: 247967517 | D12: 1053537824 | E12: -3.24869288 | F12: Realizar seguimiento a las vacaciones causadas para que se realice la programación del disfrute de las mismas. | G12: Revisar la base de datos del personal para identificar los funcionarios con periodos cumplidos y gestionar el disfrute de las vacaciones para no acumular periodos. | H12: 0.01 | I12: 0.01 | J12: 0.01 | L12: 1
A13: Artículo 10°.- Bono navideño. | B13: 021202020090696990 | C13: 44751699 | D13: 32054338 | E13: 0.2837291384 | F13: Reducir el 1% del valor del bono navideño. | G13: Gestionar la entrega de los bonos por un valor de $170.000. | H13: 0.01 | I13: 0.01 | J13: 0.01 | L13: 1
A14: Artículo 11 -. Capacitación. | B14: O2120202009029291900 | C14: 254624800 | D14: 278900000 | E14: -0.09533713919 | F14: Fortalecer las alianzas con entidades educativas para el desarrollo de capacitaciones gratuitas. | G14: 1. Solicitar ofertas académicas gratuitas a las entidades educativas en los temas de interés. 2. Garantizar en los contratos la reducción del 1% | H14: 0.01 | I14: 0.01 | J14: 0.01 | L14: 1
A15: Artículo 12 -. Bienestar. | B15: 021202020090696990 | C15: =521000000-44751699 -> 476248301 | D15: =502920000-32054338 -> 470865662 | E15: 0.01130216945 | F15: Realizar la reducción del 1% en las actividades de Bienestar | G15: Revisar las actividades con menor impacto para garantizar la reducción del 1%. | H15: 0.01 | I15: 0.01 | J15: 0.01 | L15: 1
A16: Artículo 13 -. Eventos y conmemoraciones. | B16: N/A | C16: 0 | D16: 0 | F16: La entidad no realiza eventos y conmoraciones. | G16: La entidad no realizará eventos ni conmemoraciones en cumplimiento con la normatividad legal aplicable vigente en materia de austeridad del gasto. | H16: N/A | I16: N/A | J16: N/A
A17: Artículo 14 -. Fondos educativos. | B17: 021202020090696990 | C17: 98446520 | D17: 96804560 | E17: 0.01667870027 | F17: Optimizar los recursos orientados a apoyos educativos para que se ejecuten a través del Fondo Distrital. | G17: Comunicar a los funcionarios la oferta distrital del Fondo Educativo en Administración de Recursos para Capacitación Educativa de los Empleados Públicos del Distrito Capital - FRADEC y el Fondo Educativo del Distrito para hijos de empleados - FEDHE. | H17: 0.01 | I17: N/A | J17: N/A | L17: 1
A18: Servicios Administrativos
A19: Artículo 15. Telefonía. | B19: O2120202008084131 | C19: =53175901+216218206+2824535+11048305 -> 283266947 | D19: =49557685.55+143061783 -> 192619468.6 | E19: =1-(D19/C19) -> 0.3200072561 | F19: Como parte de las medidas de austeridad y optimización de los recursos, se establecerá continuar con las actividades para la disminución en los gastos de telefonia fija y celular. | G19: 1. Autorizar la linea movil a las dependencias que por la misionalidad lo requiera previa autorización de la Subsecretaria Corporativa (Dirección Administrativa). 2. Realizar campañas para el buen uso de la telefonía fija. | H19: 0.01 | I19: -0.03 | J19: -0.03 | L19: 1
A20: Artículo 16 -. Vehículos oficiales. | B20: O2120201003033331101 | C20: =117138895 -> 117138895 | D20: 121180453 | E20: -0.03450227185 | F20: Mantener un promedio de consumo anual de 10.000 para el año 2025, 9.500 para el año 2026 y 9.000 para el año 2027 en galones de combustible para el parque automotor de la entidad. | G20: Realizar el seguimiento al uso de los vehículos , teniendo en cuenta que su uso es exclusivo para actividades oficiales del nivel directivo. | H20: -0.052 | I20: -0.03 | J20: -0.03 | L20: 1
A21: Artículo 17 -. Adquisición de vehículos y maquinaria. | B21: O23011601070000007790 | C21: 180146650 | D21: 0 | E21: 1 | F21: No se asignará presupuesto para la adquisición de vehículos o maquinaria, en cumplimiento de lo establecido en el artículo 17 del Decreto 062 de 2024. | G21: En el PAA del año 2025 no esta prevista la adquisición de vehiculos o ampliar el parque automotor de la entidad. | H21: N/A | I21: N/A | J21: N/A
A22: Artículo 18 -. Fotocopiado, multicopiado e impresión. | B22: O21202020080585951 | C22: =17839007+10466510 -> 28305517 | D22: 22274539 | E22: 0.2130672264 | F22: Disminuir en 5% el consumo de fotocopias en la vigencia, comparado con el consumo de fotocopiado de la vigencia anterior | G22: Hacer seguimiento de consumo frente a los topes de fotocopiado, según el lineamiento definido por la entidad. | H22: 0.05 | I22: 0.05 | J22: 0.05 | L22: 1
A23: Artículo 19 -. Publicidad distrital. | B23: N/A | C23: 0 | D23: 0 | F23: La entidad no tiene contratos de publicidad o propaganda personalizada. | G23: Continuar aplicando la resolución de austeridad para no celebrar contratos de propaganda personalizada. | H23: N/A | I23: N/A | J23: N/A
A24: Artículo 20 -. Cajas menores. | B24: O2120202008078714199 O2120201004024299991 O2120201003023219996 O2120201004064693998 O2120202006046411200 O2120202008078715999 O2120201003083816099 O2120201003063627099 O2120201004064641007 O2120201003053514007 O2120202008028213000 O2120202008058595100 | C24: =3711198+1518772 -> 5229970 | D24: 1161341 | E24: 0.7779449978 | F24: Mantener un incremento de gastos por caja menor sobre el IPC de cada vigencia, teniendo en cuenta que las necesidades para los años 2025, 2026 y 2027 tienden a aumentar respecto al año 2024. | G24: Realizar un análisis de gastos para definir las estratégias a implementar y mantener la caja menor para los gastos con carácter de imprevistos, urgentes, imprescindibles e inaplazables. | H24: -0.052 | I24: -0.03 | J24: -0.03 | L24: 1
A25: Artículo 21 -. Mantenimiento o reparación de bienes inmuebles o muebles. | B25: O2120202008078711099 | C25: 1874141647 | D25: 1658585364 | E25: 0.1150160039 | F25: Realizar mantenimiento o reparación de bienes inmuebles o muebles solo cuando sea estrictamente necesario, salvo bienes de interes cultural. | G25: Garantizar la optimización de recursos y el cumplimiento de la normativa vigente. | H25: 0.01 | I25: 0.01 | J25: 0.01 | L25: 1
A26: Artículo 22 -. Suscripciones. | B26: O21202020080484612 | C26: 7045488 | D26: 0 | E26: 1 | F26: La entidad no tiene suscripciones activas en ninguna plataforma digital o impresa. | G26: Continuar aplicando la resolución de austeridad para realizar ninguna suscripción en plataformas digitales o impresas. | H26: N/A | I26: N/A | J26: N/A
A27: Artículo 23 -. Servicios públicos. | B27: Telfonía fija: O21202020080484120 Internet: O21202020080484210 Aseo: O21202020090494239 Energía: O21202020080686312 Gas: O21202020080686320 Acueducto: O21202020080686330 | C27: =127315990+2035596444+26396590+11604090+40729138+32512360+62389280+821336220+12393850+7748840+17942579+15908710 -> 3211874091 | D27: 2594370520 | E27: 0.1922564689 | F27: Realizar el control al consumo de energía de los equipos de cómputo, impresoras y otros aparatos eléctricos y electrónicos para el uso adecuado y su racionamiento. | G27: Realizar campañas incentivando el uso eficiente del agua y la energía, charlas y capacitaciones. Realizar actividades desarrolladas por el PIGA. | H27: -0.052 | I27: -0.03 | J27: -0.03 | L27: 1

Sheet 0117-01 SDDE
A1: PLAN DE AUSTERIDAD EN EL GASTO 2025-2027
A2: Entidad
A3: Valores en Pesos Corrientes
A4: CONCEPTO (Decreto 062 de 2024) | B4: Posiciones Presupuestales Asociadas (Funcionamiento e Inversión) | C4: LÍNEA BASE | F4: PLAN DE AUSTERIDAD EN EL GASTO 2025-2027 | K4: SEGUIMIENTO RESULTADOS PLAN DE AUSTERIDAD 2025-2027
F5: ESTRATEGIAS 2025-2027 | G5: ACCIONES 2025-2027 | H5: META INDICADOR DE AUSTERIDAD
C6: AÑO 2023 | D6: AÑO 2024 | K6: AÑO 2025 | M6: AÑO 2026 | O6: AÑO 2027
C7: Valor EJECUTADO a 31/12/2023 | D7: Valor EJECUTADO a 31/12/2024 | E7: Resultado Indicador Austeridad | H7: AÑO 2025 | I7: AÑO 2026 | J7: AÑO 2027 | K7: Valor EJECUTADO a 31/12/2025 | L7: Resultado Indicador Austeridad | M7: Valor EJECUTADO a 31/12/2026 | N7: Resultado Indicador Austeridad | O7: Valor EJECUTADO a 31/12/2027 | P7: Resultado Indicador Austeridad
A8: Servicios de personal
A9: Artículo 6°.- Reducción del gasto en CPS profesionales y de apoyo a la gestión. | B9: N.A. Se registran totales. Corresponde con lo reportado en SIDEAP y SIVICOF | C9: 53938047845 | D9: 51729770272 | E9: =1-(D9/C9) -> 0.04094099919 | F9: Optimizacion de los recursos priorizados para la contratacion de CPS de acuerdo a las necesidades estratégicas de las áreas Nota: Para la línea base del valor ejecutado en la vigencia fiscal 2024, se agregó la cifra de $8.510millones, correspondientes a 693 contratos de prestación de servicios suscritos en el último bimestre de la vigencia fiscal 2023, situación que afectó la carga presupuestal en prestación de servicios para el 2024, afectando la media historica en la contratación de prestación de servicios profesionales y de apoyo a la gestión. | G9: 1. Reduccion de tiempos de CPS 2. Unificacion y agregación de necesidades contractuales. 3. Fortalecimiento de habilidades y competencias del talento humano para desarrollar nuevas y mejores actividades complementarias. 4. Fortalecimiento del uso de tecnologías de la información para optimizar procesos | H9: -0.052 | I9: -0.03 | J9: -0.03 | L9: =1-(K9/D9) -> 1 | N9: =1-(M9/K9) ->  | P9: =1-(O9/M9) -> 
A10: Artículo 7°.- Horas extras, dominicales y festivos. | B10: O211010100102 | C10: 68482197 | D10: 96500570 | E10: -0.409133676 | F10: Racionalización de autorización de horas extras, | G10: La autorización de horas extras en la SDDE, sólo se hará efectiva cuando sea estrictamente necesario para atender asuntos del servicio reales e imprescindibles y en ningún caso de carácter permanente. | H10: 0 | I10: 0 | J10: 0 | L10: =1-(K10/D10) -> 1 | N10: =1-(M10/K10) -> 
A11: Artículo 8°.- Viáticos y gastos de viaje. | B11: O2120202010 | C11: 51562891 | D11: 20882300 | E11: 0.5950130104 | F11: Racionalización en la autorización de viáticos y gastos de viaje | G11: Incentivar la comunicación vía redes para potenciar la comunicación y diminución de desplazamientos, autorizando los desplazamientos estrictamente necesarios. | H11: 0 | I11: 0 | J11: 0 | L11: 1
A12: Artículo 9°.- Compensación por vacaciones. | B12: O211010300102 | C12: 98927131 | D12: 509895989 | E12: -4.15425833 | F12: Control de vacaciones anual y no capitalización de periodos sin disfrute de las mismas. | G12: Revisión de las medidas para que los servidores disfruten sus periodos de vacaciones al siguiente año de cumplirlas y así evitar que al momento del retiro el servidor tenga periodos acumulados. | H12: 0 | I12: 0 | J12: 0 | L12: 1
A13: Artículo 10°.- Bono navideño. | B13: O21202020090191191 | C13: 10222371 | D13: 14075059 | E13: -0.3768879059 | F13: Depuración de listado de beneficiarios. | G13: Actualización de las bases de datos. | H13: 0 | I13: 0 | J13: 0 | L13: 1
A14: Artículo 11 -. Capacitación. | B14: O212020200992913 | C14: 62400000 | D14: 73472000 | E14: -0.1774358974 | F14: Aprovechamiento de capacitaciones con otras entidades. | G14: Búsqueda de capacitaciones gratuitas ofrecidas por entidades públicas. | H14: 0 | I14: 0 | J14: 0 | L14: 1
A15: Artículo 12 -. Bienestar. | B15: O21202020090191191 | C15: 238650000 | D15: 119191318 | E15: 0.5005601592 | F15: Control efectivo de las actividades de bienestar autorizadas y realizar procesos de selección para operadores. | G15: Adherencia a la invitación de las actividades que realiza el Departamento Administrativo del Servicio Civil- DASC que permite que se amplie la oferta de eventos, sin incrementar el costo ni hacer uso de los recursos de la SDDE. | H15: 0 | I15: 0 | J15: 0 | L15: 1
A16: Artículo 13 -. Eventos y conmemoraciones. | B16: N/A | C16: 0 | D16: 0
A17: Artículo 14 -. Fondos educativos. | B17: N/A | C17: 0 | D17: 0
A18: Servicios Administrativos
A19: Artículo 15. Telefonía. | B19: O21202020080484120 O21202020080484131 O21202020080484133 O21202020080484190 | C19: 49930549 | D19: 25869354 | E19: =1-(D19/C19) -> 0.4818932594 | F19: Realizar la modalidad de contratación. | G19: Pasar de contrato de telefonia a un servicio público. | H19: 0.01 | I19: 0 | J19: 0 | L19: 1
A20: Artículo 16 -. Vehículos oficiales. | B20: O21202020060464114 O21202020080484133 O2120202008078714101 O2120201003033331101 | C20: 58587489.66 | D20: 135752727 | E20: -1.317094106 | F20: Actualizar el Plan de Mantenimiento de la SDDE. | G20: *. Asignación de un cupo máximo de consumo mensual de galones, con seguimiento a través del chip instalado en cada vehículo y con este se registran los datos de tanqueo en la SDDE. *. Control al sistema de ratsreo satelital de los vehículos. | H20: 0 | I20: 0 | J20: 0 | L20: 1
A21: Artículo 17 -. Adquisición de vehículos y maquinaria. | B21: N/A | C21: 0 | D21: 0
A22: Artículo 18 -. Fotocopiado, multicopiado e impresión. | B22: N/A | C22: 0 | D22: 0
A23: Artículo 19 -. Publicidad distrital. | B23: N/A | C23: 0 | D23: 0
A24: Artículo 20 -. Cajas menores. | B24: O21202020060565115 O21202020080787151 O2120202008098912102 O2120202008098912197 | C24: 120000 | D24: 0 | E24: 1 | F24: Fortalecer los esquemas de planeación para que las urgencias, casos fortuitos y hechos sobrevinientes cada vez disminuyan. | G24: Realizar seguimiento al PAA, fortaleciendo el anteproyecto de presupuesto que cubra las necesidade sde bienes y servicio sde la entidad. Solo serán autorizables las causlaes incluidas en el acto admistrativo de la Caja Menor. | H24: 0 | I24: 0.03 | J24: 0.03
A25: Artículo 21 -. Mantenimiento o reparación de bienes inmuebles o muebles. | B25: O21202020080787151 O2120202008078715202 O2120202008078715203 O2120202008078715602 O2120202008078715402 | C25: 52375063 | D25: 60317399 | E25: -0.1516434644 | F25: Gestón eficiente del Plan de Mantenimiento de la SDDE. | G25: Se ejecutará el Plan de Mantenimiento de acuerdo con lo establecido por la Entidad. | H25: 0 | I25: 0 | J25: 0 | L25: 1
A26: Artículo 22 -. Suscripciones. | B26: N/A | C26: 0 | D26: 0
A27: Artículo 23 -. Servicios públicos. | B27: O21202020080686312 O21202020080686320 O21202020080686330 O21202020090494239 | C27: 132916072 | D27: 127680372 | E27: 0.03939102263 | F27: La estrategia se enfocaria en el servicio público de Agua: *Uso de agua lluvia en la sede principal para el lavado de pisos. *Inspecciones hidrosanitarias para identificar fugas. *Piezas comunicativas sobre el uso eficiente del agua. *Fomentar el uso de pocillo, botellas reutilizables y evitar desperdiciar agua al servirse más de la necesaria. *En los contratos de arrendamiento especificar el requerimiento de sistemas ahorradores de agua en baterías de baño y grifos. | G27: *Coordinar con el arrendandor la colocación de ahorradores en los suministros . *Coordinar con los arrendadores y con el área de PIGA que permite dentro de las cláusulas de los contratos de arrendamiento, que podemos realizar para ahorrar en el servicio de agua. | H27: 0 | I27: 0.01 | J27: 0.01 | L27: 1

Sheet 0118-01 SDHT
A1: PLAN DE AUSTERIDAD EN EL GASTO 2025-2027
A2: Entidad
A3: Valores en Pesos Corrientes
A4: CONCEPTO (Decreto 062 de 2024) | B4: Posiciones Presupuestales Asociadas (Funcionamiento e Inversión) | C4: LÍNEA BASE | F4: PLAN DE AUSTERIDAD EN EL GASTO 2025-2027 | K4: SEGUIMIENTO RESULTADOS PLAN DE AUSTERIDAD 2025-2027
F5: ESTRATEGIAS 2025-2027 | G5: ACCIONES 2025-2027 | H5: META INDICADOR DE AUSTERIDAD
C6: AÑO 2023 | D6: AÑO 2024 | K6: AÑO 2025 | M6: AÑO 2026 | O6: AÑO 2027
C7: Valor EJECUTADO a 31/12/2023 | D7: Valor EJECUTADO a 31/12/2024 | E7: Resultado Indicador Austeridad | H7: AÑO 2025 | I7: AÑO 2026 | J7: AÑO 2027 | K7: Valor EJECUTADO a 31/12/2025 | L7: Resultado Indicador Austeridad | M7: Valor EJECUTADO a 31/12/2026 | N7: Resultado Indicador Austeridad | O7: Valor EJECUTADO a 31/12/2027 | P7: Resultado Indicador Austeridad
A8: Servicios de personal
A9: Artículo 6°.- Reducción del gasto en CPS profesionales y de apoyo a la gestión. | B9: N.A. Se registran totales. Corresponde con lo reportado en SIDEAP y SIVICOF | C9: 63694077979 | D9: 52455873944 | E9: =1-(D9/C9) -> 0.1764403284 | F9: La reducción del gasto en contratos de prestación de servicios profesionales y de apoyo a la gestión se logrará a través de un análisis continuo de las necesidades, la optimización de los contratos existentes y la búsqueda de alternativas más eficientes, en línea con la meta de reducción definida para cada vigencia. | G9: *Revisar los procesos manuales que requieren actividades operativas, con el fin de poder automatizar e incluir herramientas que agilicen la gestión, permitiendo la generacion de controles automaticos que conlleven optimizar el recurso humano. * Realizar una revisión de las necesidades de contratación con cada una de las áreas, una vez sea aprobado e implementado el rediseño institucional. | H9: 0.052 | I9: 0.031 | J9: 0.03 | L9: =1-(K9/D9) -> 1 | N9: =1-(M9/K9) ->  | P9: =1-(O9/M9) -> 
A10: Artículo 7°.- Horas extras, dominicales y festivos. | B10: O211010100102 Horas extras, dominicales, festivos y recargos | C10: 55783671 | D10: 60929049 | E10: -0.0922380673 | F10: Limitar las horas extras solo a situaciones del servicio reales e imprescindibles y en ningun caso de carácter permanente. | G10: Establecer controles para identificar alertas tempranas en el incremento de horas extras por funcionario. Promover que los funcionarios con horas extras disfruten de los compensatorios a los que tienen derecho. Generar mecanismos que permitan disminuir y evitar actividades extralaborales de los funcionarios en la Entidad, lo cual propende por mejorar la calidad de vida laboral. | H10: 0 | I10: 0 | J10: 0 | L10: =1-(K10/D10) -> 1 | N10: =1-(M10/K10) -> 
A11: Artículo 8°.- Viáticos y gastos de viaje. | B11: O2120202010 Viáticos de los funcionarios en comisión | C11: 77007569 | D11: 34536128 | E11: 0.5515229419 | F11: Los viáticos y gastos de viaje estarán restringidos únicamente aquellas actividades de relevancia estrategica, en el marco de los planes, programas y proyectos misionales, y en virtud de las funciones propias de la entidad en donde sea requerida la presencia de la SDHT. | G11: Realizar el analisis de la importancia e impacto de la asistencia presencial al evento por parte de la SDHT. Propender por el uso de los medios virtuales, en los eventos que lo permitan | H11: 0 | I11: 0 | J11: 0 | L11: 1
A12: Artículo 9°.- Compensación por vacaciones. | B12: O211010300102 Indemnización por vacaciones | C12: 77007569 | D12: 34536128 | E12: 0.5515229419 | F12: Implementación de controles administrativos que permitan dar cumplimiento a las programaciones de vacaciones de los funcionarios en la vigencia en la cual se generan. | G12: Definir lineamientos y socializarlos a todos los funcionarios sobre el disfrute de vacaciones al cumplimineto de requisitos. Realizar seguimiento mensual sobre el cumplimiento a la programación de vacaciones en cada vigencia. Generar alertas con anticipación del disfrute de las vacaciones programadas para cada mes | H12: 0.052 | I12: 0.031 | J12: 0.03 | L12: 1
A13: Artículo 10°.- Bono navideño. | B13: O21202020090696990 Otros servicios de diversión y entretenimiento n.c.p. | C13: 10294800 | D13: 13061360 | E13: -0.2687337296 | F13: Cumplir el objetivo requerido en el Decreto 1083 del 2015, | G13: Dar cumplimiento a lo estipulado en la normatividad vigente para cada anualidad | H13: 0 | I13: 0 | J13: 0 | L13: 1
A14: Artículo 11 -. Capacitación. | B14: O21202020090292913 Servicios de educación para la formación y el trabajo | C14: 31977100 | D14: 33022900 | E14: -0.03270465427 | F14: Continuar con el fortalecimiento de habilidades y competencias de servidores de la entidad a traves de la oferta gratuita de capacitacion que ofrecen las entidades del orden nacional y distrital | G14: Enviar por medios de comunicación de la Entidad la difusion de los cursos virtuales ofertados en el Aula del Saber Distrital, Plataforma PAO de la Alcaldia Mayor de Bogota, Plataforma del DNP y Funcion Publica y ofertas gratuitas de la ESAP | H14: 0 | I14: 0 | J14: 0 | L14: 1
A15: Artículo 12 -. Bienestar. | B15: O21202020090696990 Otros servicios de diversión y entretenimiento n.c.p. | C15: 192418974 | D15: 199535403 | E15: -0.03698402944 | F15: Establecer alianzas interinstitucionales sólidas y efectivas que permitan la optimización de recursos a través de la colaboración en actividades similares, contribuyendo al cumplimiento de los objetivos trazados en el PETH para cada vigencia. | G15: *Establecer acuerdos de colaboración claros y detallados que especifiquen los roles, responsabilidades y recursos que cada institución aportará. *Desarrollar e implementar planes de trabajo conjuntos que incluyan actividades específicas, cronogramas y responsables. *Realizar evaluaciones periódicas del impacto de las alianzas en la reducción de recursos y el cumplimiento de objetivos. | H15: 0 | I15: 0 | J15: 0 | L15: 1
A16: Artículo 13 -. Eventos y conmemoraciones. | C16: 0 | D16: 0 | F16: Dar continuidad a las actividades conmemorativas ofrecidas por el DASCD y la Caja de Compensación Familiar para la vigencia 2025, teniendo en cuenta que van a costo cero (0). | G16: Generar alianzas interinstitucionales con el fin de dar continuidad a los eventos y conmemoraciones. Vincular en la mayor cantidad de actividades de bienestar al DASC, para no generar costo en las actividades. Generar campañas de sensibilización y aprovechamiento de las diferentes actividades de bienestar y convenios con entes estales y gubernamentales en el 2025. | H16: 0 | I16: 0 | J16: 0
A17: Artículo 14 -. Fondos educativos. | C17: 0 | F17: El rubro de Fondos Educativos no contempla recursos ni valor ejecutado en la Entidad, por cuanto estos fondos educativos se gestionan a través del Departamento Administrativo del Servicio Civil Distrital-DASCD, siendo estos los que cuentan con el recurso en el Distrito. | G17: Se realizarán convocatorias a los servidores de carrera administrativa para que conozcan los beneficios y servicios de los fondos educativos mediante los medios institucionales, para su inscripcion al DASCD | H17: 0 | I17: 0 | J17: 0
A18: Servicios Administrativos
A19: Artículo 15. Telefonía. | B19: O21202020080484120 Servicios de telefonía fija (acceso) O21202020080484131 Servicios móviles de voz | C19: 109077835 | D19: 92877687 | E19: =1-(D19/C19) -> 0.1485191561 | F19: Negociar con el operador de telefonía móvil actual para mantener u obtener un plan más económico y que responda de mejor manera con los criterios de calidad. Garantizar que el nuevo plan cumpla con las necesidades de la entidad, es decir, que tenga la cantidad de líneas requeridas y que ofrezca un servicio de calidad. | G19: Reunir información sobre los planes disponibles en el mercado. Evaluar las necesidades de la entidad. Realizar una propuesta de negociación. Monitorear el servicio de manera constante. Reducir el número de líneas activas en cumplimiento del decreto 062 del 2024. | H19: 0 | I19: 0 | J19: 0 | L19: 1
A20: Artículo 16 -. Vehículos oficiales. | B20: O2120202008078714102 Servicio de mantenimiento y reparación de vehículos automóviles | C20: 150924134 | D20: 57722331 | E20: 0.6175407506 | F20: Reducir el costo de mantenimiento del parque automotor de la entidad, con la adquisición de vehículos híbridos. | G20: Renovación del parque automotor de la entidad para dar cumplimiento al artículo 9 del Acuerdo Distrital 811 de 2021 en materia de ascenso tecnológico de la flota de transporte oficial | H20: 0.052 | I20: 0.031 | J20: 0.03 | L20: 1
A21: Artículo 17 -. Adquisición de vehículos y maquinaria. | C21: 0 | D21: 0 | F21: De acuerdo con las disposiciones generales del Presupuesto Anual del Distrito Capital en cada vigencia, la adquisición de vehículos, maquinaria u otros medios de transporte, requieren concepto de viabilidad presupuestal de la Secretaría Distrital de Hacienda | G21: Realizar las gestiones administrativas y presupuestales para la renovación del parque automotor. | H21: 0 | I21: 0 | J21: 0
A22: Artículo 18 -. Fotocopiado, multicopiado e impresión. | B22: O23202020088912197-SERVICIOS DE IMPRESIÓN LITOGRÁFICA N.C.P. | C22: 664410371 | D22: 550402082 | E22: 0.1715931809 | F22: Implementar en conjunto con Gestión Documental el archivo electrónico de documentos para disminuir el consumo de papel. | G22: Asignar cupo de impresión por usuario para el control del tope establecido. Asignar clave de impresión a cada usuario. Seguimiento a las áreas que consumen más papel por fotocopiado e impresión. Fomentar la reproducción de documentos por scanner y su entrega vía electrónica. Contratar el servicio de fotocopiadoras, impresoras multifuncionales con tecnología avanzada | H22: 0.052 | I22: 0.031 | J22: 0.03 | L22: 1
A23: Artículo 19 -. Publicidad distrital. | C23: 0 | D23: 0 | F23: Reducir los recursos presupuestales en los procesos relacionados con la edición e impresión de productos de comunicación en el marco de sus programas, proyectos y políticas institucionales | G23: Realizar la difusión de piezas comunicativas de manera digital a través de los canales de comunicación propios de la Entidad (X, Instagram, Facebook y YouTube), apostándole a la interacción directa con los diferentes públicos de interés para la Entidad | H23: 0 | I23: 0 | J23: 0
A24: Artículo 20 -. Cajas menores. | C24: 3015578 | D24: 2583505 | E24: 0.1432803264 | F24: Para las vigencias 2025-2027 no se utilizarán los recursos para la caja menor | G24: Para las vigencias 2025-2027 no se utilizarán los recursos para la caja menor debido a que los recursos utilizados en este ítem serán suplidos, si es posible por una concertación con los entes con los cuales desarrollaremos las labores | H24: 0 | I24: 0 | J24: 0 | L24: 1
A25: Artículo 21 -. Mantenimiento o reparación de bienes inmuebles o muebles. | C25: 0 | D25: 0 | F25: Propender por la optimización de la gestión de activos bienes e inmuebles de uso de la Entidad a través de intervenciones de mantenimiento y/o reparación según sea el caso | G25: La SDHT continuará gestinando las actividades de mantenimineto de los inmuebles de las sedes de archivo, atención al ciudadano y sede principal por medio de los arrendadores, en el entendido que dichos inmuebles no son de propiedad de la Entidad. | H25: 0 | I25: 0 | J25: 0
A26: Artículo 22 -. Suscripciones. | C26: 0 | D26: 0 | F26: Acceder a contenidos temáticos de injerencia de la misionalidad de la Entidad procurando el uso de herramientas digitales | G26: La SDHT continuará sin relizar suscripciones físicas y/o electrónicas a publicaciones de contenidos, teniendo en cuenta la facilidad en la búsqueda de información a través de medios virtuales y digitales | H26: 0 | I26: 0 | J26: 0
A27: Artículo 23 -. Servicios públicos. | C27: 203714460 | D27: 194479280 | E27: 0.04533394438 | F27: Incentivar campañas que fomenten el desarrollo de prácticas que contribuyan al eficiente uso del agua y la energía dentro de las actividades cotidianas. Realizar mantenimiento preventivo a los lavamanos, lavaplatos y sanitarios con el fin de identificar fugas de agua y buscar los mecanismos necesarios para el cambio y renovación de sanitarios en busca de las medidas correctivas de forma oportuna. Realizar jornadas de apagado en las noches de las oficinas, televisores y computadores. | G27: Realizar la mejora del Sistemas de iluminación. Cambiar luminarias halógenas a Led. Realizar campañas sobre el uso eficiente del agua y la energía. Instalar reductores de agua en los grifos. Realizar inspecciones periódicas según el plan de mantenimiento a la grifería de los lavamanos, lavaplatos y sanitarios para identificar fugas de agua. Promover la desconexión de elementos como cargadores de equipos de comunicación y tecnológicos cuando no estén uso. Seguimiento del consumo de energía durante los apagones programados, tomando el registro de los kilovatios antes del apagón y después del apagón. | H27: 0.052 | I27: 0.031 | J27: 0.03 | L27: 1

Sheet 0119-01 SDCRD
A1: PLAN DE AUSTERIDAD EN EL GASTO 2025-2027
A2: Entidad
A3: Valores en Pesos Corrientes
A4: CONCEPTO (Decreto 062 de 2024) | B4: Posiciones Presupuestales Asociadas (Funcionamiento e Inversión) | C4: LÍNEA BASE | F4: PLAN DE AUSTERIDAD EN EL GASTO 2025-2027 | K4: SEGUIMIENTO RESULTADOS PLAN DE AUSTERIDAD 2025-2027
F5: ESTRATEGIAS 2025-2027 | G5: ACCIONES 2025-2027 | H5: META INDICADOR DE AUSTERIDAD
C6: AÑO 2023 | D6: AÑO 2024 | K6: AÑO 2025 | M6: AÑO 2026 | O6: AÑO 2027
C7: Valor EJECUTADO a 31/12/2023 | D7: Valor EJECUTADO a 31/12/2024 | E7: Resultado Indicador Austeridad | H7: AÑO 2025 | I7: AÑO 2026 | J7: AÑO 2027 | K7: Valor EJECUTADO a 31/12/2025 | L7: Resultado Indicador Austeridad | M7: Valor EJECUTADO a 31/12/2026 | N7: Resultado Indicador Austeridad | O7: Valor EJECUTADO a 31/12/2027 | P7: Resultado Indicador Austeridad
A8: Servicios de personal
A9: Artículo 6°.- Reducción del gasto en CPS profesionales y de apoyo a la gestión. | B9: N.A. Se registran totales. Corresponde con lo reportado en SIDEAP y SIVICOF | E9: =1-(D9/C9) ->  | L9: =1-(K9/D9) ->  | N9: =1-(M9/K9) ->  | P9: =1-(O9/M9) -> 
A10: Artículo 7°.- Horas extras, dominicales y festivos. | L10: =1-(K10/D10) ->  | N10: =1-(M10/K10) -> 
A11: Artículo 8°.- Viáticos y gastos de viaje.
A12: Artículo 9°.- Compensación por vacaciones.
A13: Artículo 10°.- Bono navideño.
A14: Artículo 11 -. Capacitación.
A15: Artículo 12 -. Bienestar.
A16: Artículo 13 -. Eventos y conmemoraciones.
A17: Artículo 14 -. Fondos educativos.
A18: Servicios Administrativos
A19: Artículo 15. Telefonía. | E19: =1-(D19/C19) -> 
A20: Artículo 16 -. Vehículos oficiales.
A21: Artículo 17 -. Adquisición de vehículos y maquinaria.
A22: Artículo 18 -. Fotocopiado, multicopiado e impresión.
A23: Artículo 19 -. Publicidad distrital.
A24: Artículo 20 -. Cajas menores.
A25: Artículo 21 -. Mantenimiento o reparación de bienes inmuebles o muebles.
A26: Artículo 22 -. Suscripciones.
A27: Artículo 23 -. Servicios públicos.

Sheet 0120-01 SDP
A1: PLAN DE AUSTERIDAD EN EL GASTO 2025-2027
A2: Entidad
A3: Valores en Pesos Corrientes
A4: CONCEPTO (Decreto 062 de 2024) | B4: Posiciones Presupuestales Asociadas (Funcionamiento e Inversión) | C4: LÍNEA BASE | F4: PLAN DE AUSTERIDAD EN EL GASTO 2025-2027 | K4: SEGUIMIENTO RESULTADOS PLAN DE AUSTERIDAD 2025-2027
F5: ESTRATEGIAS 2025-2027 | G5: ACCIONES 2025-2027 | H5: META INDICADOR DE AUSTERIDAD
C6: AÑO 2023 | D6: AÑO 2024 | K6: AÑO 2025 | M6: AÑO 2026 | O6: AÑO 2027
C7: Valor EJECUTADO a 31/12/2023 | D7: Valor EJECUTADO a 31/12/2024 | E7: Resultado Indicador Austeridad | H7: AÑO 2025 | I7: AÑO 2026 | J7: AÑO 2027 | K7: Valor EJECUTADO a 31/12/2025 | L7: Resultado Indicador Austeridad | M7: Valor EJECUTADO a 31/12/2026 | N7: Resultado Indicador Austeridad | O7: Valor EJECUTADO a 31/12/2027 | P7: Resultado Indicador Austeridad
A8: Servicios de personal
A9: Artículo 6°.- Reducción del gasto en CPS profesionales y de apoyo a la gestión. | B9: N.A. Se registran totales. Corresponde con lo reportado en SIDEAP y SIVICOF | E9: =1-(D9/C9) ->  | L9: =1-(K9/D9) ->  | N9: =1-(M9/K9) ->  | P9: =1-(O9/M9) -> 
A10: Artículo 7°.- Horas extras, dominicales y festivos. | B10: O211010100102 | C10: 194342622 | D10: 208652916 | E10: -0.07363435696 | F10: 1. Realizar gestiones con las áreas de la SDP con el fin de dar cumplimiento a lo establecido en la normativa distrital y nacional. 2. Optimizar el uso del parque automotor administrado por la Dirección Administrativa, garantizando una adecuada programación y un control efectivo en el uso del servicio de transporte, con el ánimo de disminuir las horas extras de los conductores y mejorar la eficiencia en la ejecución de estos recursos. | G10: 1. Realizar mesas de trabajo con las áreas que realizan los reportes de horas extras. 2.1. Elaborar una programación diaria de la flota vehicular del parque automotor administrado por la Dirección Administrativa, con el fin de verificar las horas de servicio prestadas en cada jornada. 2.2. Presentar un reporte mensual sobre el uso del servicio de transporte de los vehículos asignados a los Directivos de la SDP, con el objetivo de reflejar su utilización y fomentar la optimización del servicio, reduciendo las horas de uso. | H10: 0 | I10: 0 | J10: 0 | L10: =1-(K10/D10) -> 1 | N10: =1-(M10/K10) -> 
A11: Artículo 8°.- Viáticos y gastos de viaje. | B11: O21202020060464241 O2120202010 | C11: 63123889 | D11: 65306780 | E11: -0.03458106011 | F11: 1. Se dará aplicación a lo establecido en la normatividad vigente en la SDP para autorizar los viáticos y gastos de viaje estrictamente necesarios atendiendo a las Necesidades del servicio, así como las actividades de relevancia para la ciudad y la Entidad. | G11: 1. Garantizar que los criterios evaluados para la aprobación de los viáticos estén justificados y ajustados a la misionalidad de la entidad. | H11: 0 | I11: 0 | J11: 0 | L11: 1
A12: Artículo 9°.- Compensación por vacaciones. | B12: O211010300102 | C12: 559043583 | D12: 1003058867 | E12: -0.7942409098 | F12: 1. Continuar con el cumplimiento de la programación de vacaciones de los servidores de la SDP. | G12: 1.1. Se realizarán campañas con los Directivos y jefes de área para concertar vacaciones en los equipos de trabajo y llevar control de acumulación propendiendo a que tomen su descanso de vacaciones una vez completada la causación del periodo. | H12: 0 | I12: 0 | J12: 0 | L12: 1
A13: Artículo 10°.- Bono navideño. | B13: O21202020090696620 | C13: 51641850 | D13: 59083200 | E13: -0.1440953413 | F13: 1. Establecer las medidas de control enfocadas en garantizar que, en ejercicio de la autonomía administrativa y presupuestal de la SDP, el valor asignado para cada uno de los hijos de los funcionarios no supere el valor de seis (6) salarios mínimos diarios legales vigentes como lo dispone la norma. 2. Control de los criterios establecidos para el otorgamiento del bono a las hijas e hijos beneficiarios de los servidores. | G13: 1.1. Realizar la verificación en los aplicativos internos en aras de garantizar la cobertura de los hijos de los funcionarios que tengan acceso a dicho beneficio. 2.1. Se realizará una estrategia comunicativa con el fin de socializar los criterios para el otorgamiento del bono navideño. | H13: 0 | I13: 0 | J13: 0 | L13: 1
A14: Artículo 11 -. Capacitación. | B14: O21202020090292913 | C14: 44879319 | D14: 59656300 | E14: -0.329260366 | F14: 1. Fortalecer y desarrollar competencias funcionales y comportamentales a los servidores de la Secretaría Distrital de Planeación, a partir de procesos de formación en los ejes del Plan Nacional de Formación y Capacitación. 2. Promover la actualización de conocimientos de los servidores de la SDP, en temáticas relacionadas con los procesos misionales, estratégicos, de apoyo y evaluación, a través del plan de capacitación interna. | G14: 1.1. Garantizar que los costos asociados cubran las necesidades del desarrollo los programas de capacitación. 2.1. Mantener la política de uso del formato carta de compromiso con los servidores, que permite garantizar que la persona que se inscribe al programa de formación asista. 2.2. Incluir en el documento técnico de la contratación del servicio de formación los perfiles académicos con alta calidad quienes van a desarrollar la formación. | H14: 0 | I14: 0 | J14: 0 | L14: 1
A15: Artículo 12 -. Bienestar. | B15: "O23011605560000007636 O21202020090292913 O21202020090696620 O212020200701030371332 O23011745992024016209019" | C15: 605324636 | D15: 1070360005 | E15: -0.7682412731 | F15: 1. Fortalecer la planeación y la gestión de recursos de las actividades de bienestar. | G15: 1.1. Mantener el uso del formato carta compromiso para las inscripciones a las actividades de bienestar garantizando que la persona que se inscribe asista. 1.2. Realizar depuración de elementos esenciales y no esenciales para el desarrollo de cada actividad, en aras de disminuir el costo de las actividades. 1.3. No se destinarán recursos para la conmemoración del día de los secretarios, conductores y otras actividades que sean coordinadas por el DASCD. | H15: 0 | I15: 0 | J15: 0 | L15: 1
A16: Artículo 13 -. Eventos y conmemoraciones. | B16: NA | C16: 0 | D16: 0 | F16: No se cuenta con recursos asignados para este concepto. | G16: No se cuenta con recursos asignados para este concepto. | H16: 0 | I16: 0 | J16: 0
A17: Artículo 14 -. Fondos educativos. | B17: NA | C17: 0 | D17: 0 | F17: La SDP, no administra los fondos educativos FRADEC Y FEDHE, estos dependen del Departamento Administrativo del Servicio Civil Distrital | G17: N/A | H17: 0 | I17: 0 | J17: 0
A18: Servicios Administrativos
A19: Artículo 15. Telefonía. | B19: O21202020080484120 O21202020080484131 | C19: 325871149 | D19: 213644043 | E19: =1-(D19/C19) -> 0.3443910464 | F19: 1. Monitorear el comportamiento del servicio de telefonía celular en el mercado, con el fin de establecer los planes más favorables para la entidad y de esta manera reducir los costos asociados a este rubro. | G19: 1.1. Gestionar con los diferentes proveedores de telefonía o con la misma ETB, un plan de telefonía celular más económico, sin desmejorar las condiciones contratadas actualmente. 1.2. La SDP se abstendrá de renovar o adquirir nuevos teléfonos celulares y planes de telefonía móvil, internet y datos para los servidores públicos de cualquier nivel. | H19: 0.05 | I19: 0.05 | J19: 0.05 | L19: 1
A20: Artículo 16 -. Vehículos oficiales. | B20: O2120202008078714102 O21202020080585230 O2120201003033331101 | C20: 291297093 | D20: 282773931 | E20: 0.02925934451 | F20: 1. Establecer las medidas de control de consumo de combustible y servicios de mantenimiento, así como la optimización del servicio de monitoreo de los vehículos de la Secretaría Distrital de Planeación. | G20: 1.1. Hacer un análisis del kilometraje por vehículo trimestralmente, a través del chip de combustible con el ánimo de establecer variaciones de consumo. 1.2. Diseñar un acuerdo de servicios que permita optimizar el uso del parque automotor según las necesidades de la entidad. | H20: 0 | I20: 0 | J20: 0 | L20: 1
A21: Artículo 17 -. Adquisición de vehículos y maquinaria. | B21: O23201010030701 | C21: 0 | D21: 0 | F21: 1. Realizar un plan de mantenimiento preventivo del parque automotor de acuerdo con los recursos disponibles. | G21: 1.1. Dar cumplimiento al plan de mantenimiento preventivo. | H21: 0 | I21: 0 | J21: 0
A22: Artículo 18 -. Fotocopiado, multicopiado e impresión. | B22: O21202020080585951 | C22: 72385424 | D22: 50066948 | E22: 0.3083283176 | F22: 1. Ejecutar acciones encaminadas al cumplimiento del lineamiento establecido en la Guía No. 1 “Cero Papel en la Administración Pública”, expedida por el Ministerio de las TIC. | G22: 1.1. Fortalecer el uso de herramientas virtuales para el intercambio de documentos, como son el correo electrónico y la herramienta de gestión documental SIPA. 1.2. Sustitución de los documentos en físico por soportes y medios electrónicos, que no implica la eliminación del 100% del uso de documentos en físico, utilizando lo estrictamente lo necesario. | H22: 0.02 | I22: 0.02 | J22: 0.02 | L22: 1
A23: Artículo 19 -. Publicidad distrital. | B23: NA | C23: 0 | D23: 0 | F23: No se cuenta con recursos asignados para este concepto. | G23: No se cuenta con recursos asignados para este concepto. | H23: 0 | I23: 0 | J23: 0
A24: Artículo 20 -. Cajas menores. | B24: O21202020060464112 O21202020080282130 O2120202008078712001 | C24: 1003680 | D24: 1311809 | E24: -0.3069992428 | F24: 1. Continuar con la utilización de los recursos de caja menor estrictamente para los gastos urgentes, imprevistos, inaplazables, imprescindibles y necesarios para el buen funcionamiento de la entidad. | G24: 1.1. Aplicar controles en las solicitudes, identificando si cuenta con la debida justificación para clasificarla como imprevistos, urgentes, imprescindibles e inaplazables y enmarcados dentro de las políticas de racionalización del gasto | H24: 0 | I24: 0 | J24: 0 | L24: 1
A25: Artículo 21 -. Mantenimiento o reparación de bienes inmuebles o muebles. | B25: O2120201003053542007 O2120201003063622007 O2120201003063622007 O2120201003063632009 O2120201003063633007 O2120201003073711301 O2120201003083812199 O2120201004024291101 O2120201004024291239 O2120201004024292199 O2120201004024292299 O2120201004024299991 O2120201004034391402 O2120201004064693998 O2120202008078715299 O23011745992024016209007 O23011745992024016210011 | C25: 331331867 | D25: 973253300 | E25: -1.937397205 | F25: 1. Enmarcar las acciones de mantenimiento locativo y de mobiliario de conformidad con la normatividad vigente en materia de seguridad y salud en el trabajo. | G25: 1.1. Elaborar y ejecutar el plan de mantenimiento de acuerdo con la normatividad vigente. | H25: 0 | I25: 0 | J25: 0 | L25: 1
A26: Artículo 22 -. Suscripciones. | B26: O232010100502030101 | C26: 0 | D26: 62000000 | F26: 1. Renovar las licencias de Software de acuerdo con el monitoreo del uso y adquirir nuevas de acuerdo con un análisis de necesidad. | G26: 1.1. Realizar el análisis de necesidades de las áreas en términos de funcionalidad del software y cantidad de licencias que requieren. 1.2. Elaborar procesos de contratación óptimos y eficientes para obtener ahorros y economías de escala. | H26: 0 | I26: 0 | J26: 0 | L26: 1
A27: Artículo 23 -. Servicios públicos. | B27: O21202020080686312 O21202020080686330 O21202020090494239 | C27: 70084092 | D27: 61221200 | E27: 0.1264608237 | F27: 1. Desarrollar las acciones necesarias enmarcadas en el plan institucional ambiental-PIGA. | G27: 1.1. Ejecutar las acciones contempladas en programa de uso eficiente del agua, uso eficiente de energía, gestión integral de residuos, consumo sostenible y gestión del cambio climático y programa de comunicación, formación y sensibilización. | H27: 0 | I27: 0 | J27: 0 | L27: 1

Sheet 0121-01 SDM
A1: PLAN DE AUSTERIDAD EN EL GASTO 2025-2027
A2: Entidad
A3: Valores en Pesos Corrientes
A4: CONCEPTO (Decreto 062 de 2024) | B4: Posiciones Presupuestales Asociadas (Funcionamiento e Inversión) | C4: LÍNEA BASE | F4: PLAN DE AUSTERIDAD EN EL GASTO 2025-2027 | K4: SEGUIMIENTO RESULTADOS PLAN DE AUSTERIDAD 2025-2027
F5: ESTRATEGIAS 2025-2027 | G5: ACCIONES 2025-2027 | H5: META INDICADOR DE AUSTERIDAD
C6: AÑO 2023 | D6: AÑO 2024 | K6: AÑO 2025 | M6: AÑO 2026 | O6: AÑO 2027
C7: Valor EJECUTADO a 31/12/2023 | D7: Valor EJECUTADO a 31/12/2024 | E7: Resultado Indicador Austeridad | H7: AÑO 2025 | I7: AÑO 2026 | J7: AÑO 2027 | K7: Valor EJECUTADO a 31/12/2025 | L7: Resultado Indicador Austeridad | M7: Valor EJECUTADO a 31/12/2026 | N7: Resultado Indicador Austeridad | O7: Valor EJECUTADO a 31/12/2027 | P7: Resultado Indicador Austeridad
A8: Servicios de personal
A9: Artículo 6°.- Reducción del gasto en CPS profesionales y de apoyo a la gestión. | B9: N.A. Se registran totales. Corresponde con lo reportado en SIDEAP y SIVICOF | E9: =1-(D9/C9) ->  | L9: =1-(K9/D9) ->  | N9: =1-(M9/K9) ->  | P9: =1-(O9/M9) -> 
A10: Artículo 7°.- Horas extras, dominicales y festivos. | L10: =1-(K10/D10) ->  | N10: =1-(M10/K10) -> 
A11: Artículo 8°.- Viáticos y gastos de viaje.
A12: Artículo 9°.- Compensación por vacaciones.
A13: Artículo 10°.- Bono navideño.
A14: Artículo 11 -. Capacitación.
A15: Artículo 12 -. Bienestar.
A16: Artículo 13 -. Eventos y conmemoraciones.
A17: Artículo 14 -. Fondos educativos.
A18: Servicios Administrativos
A19: Artículo 15. Telefonía. | E19: =1-(D19/C19) -> 
A20: Artículo 16 -. Vehículos oficiales.
A21: Artículo 17 -. Adquisición de vehículos y maquinaria.
A22: Artículo 18 -. Fotocopiado, multicopiado e impresión.
A23: Artículo 19 -. Publicidad distrital.
A24: Artículo 20 -. Cajas menores.
A25: Artículo 21 -. Mantenimiento o reparación de bienes inmuebles o muebles.
A26: Artículo 22 -. Suscripciones.
A27: Artículo 23 -. Servicios públicos.

Sheet 0125-01 DASCD
A1: PLAN DE AUSTERIDAD EN EL GASTO 2025-2027
A2: Entidad
A3: Valores en Pesos Corrientes
A4: CONCEPTO (Decreto 062 de 2024) | B4: Posiciones Presupuestales Asociadas (Funcionamiento e Inversión) | C4: LÍNEA BASE | F4: PLAN DE AUSTERIDAD EN EL GASTO 2025-2027 | K4: SEGUIMIENTO RESULTADOS PLAN DE AUSTERIDAD 2025-2027
F5: ESTRATEGIAS 2025-2027 | G5: ACCIONES 2025-2027 | H5: META INDICADOR DE AUSTERIDAD
C6: AÑO 2023 | D6: AÑO 2024 | K6: AÑO 2025 | M6: AÑO 2026 | O6: AÑO 2027
C7: Valor EJECUTADO a 31/12/2023 | D7: Valor EJECUTADO a 31/12/2024 | E7: Resultado Indicador Austeridad | H7: AÑO 2025 | I7: AÑO 2026 | J7: AÑO 2027 | K7: Valor EJECUTADO a 31/12/2025 | L7: Resultado Indicador Austeridad | M7: Valor EJECUTADO a 31/12/2026 | N7: Resultado Indicador Austeridad | O7: Valor EJECUTADO a 31/12/2027 | P7: Resultado Indicador Austeridad
A8: Servicios de personal
A9: Artículo 6°.- Reducción del gasto en CPS profesionales y de apoyo a la gestión. | B9: N.A. Se registran totales. Corresponde con lo reportado en SIDEAP y SIVICOF | C9: 3809505185 | D9: 3577503995 | E9: =1-(D9/C9) -> 0.06090061011 | F9: Dentro de este componente, se ha fijado una meta de austeridad que busca un crecimiento máximo estimado del 5.20% para la vigencia 2025, del 3,23% para la viegncia 2026, y del 3,00% para la viegncia 2027 frente a la ejecución del año inmediatamente anterior. Sin embargo, de acuerdo a los compromisos y metas fijadas en el marco del Plan de Desarrollo “Bogotá Camina Segura”, el Departamento Administrativo del Servicio Civil Distrital presentará ante la próxima Comisión para la Calidad del Gasto, las apuestas y necesidades especificas que garanticen el funcionamiento y ejecución de los proyectos de inversión programados para la vigencia 2025-2027, con miras a replantear la meta solicitada. | G9: Implementar un seguimiento de los gastos de los contratos adjudicados para la prestación de servicios profesionales y de apoyo a la gestión de personas naturales. | H9: 0.052 | I9: 0.0323 | J9: 0.03 | L9: =1-(K9/D9) -> 1 | N9: =1-(M9/K9) ->  | P9: =1-(O9/M9) -> 
A10: Artículo 7°.- Horas extras, dominicales y festivos. | B10: O211010100102 - Horas extras, dominicales, festivos y recargos | C10: 29811068 | D10: 31781611 | E10: -0.06610105347 | F10: Se aplicara una reducción del 2% sobre el valor pagado respecto a la vigencia anterior, hasta llegar a 2027 | G10: Se autorizaran horas extras sólo cuando así lo impongan las necesidades del servicio del Departamento, ajustándose a las estrictamente necesarias y procurando que las actividades se desarrollen dentro de la jornada laboral ordinaria. | H10: 0.02 | I10: 0.02 | J10: 0.02 | L10: =1-(K10/D10) -> 1 | N10: =1-(M10/K10) -> 
A11: Artículo 8°.- Viáticos y gastos de viaje. | B11: O21 | C11: 0 | D11: 0 | F11: En el Departamento Administrativo no se han otorgado comisiones de servicios que implique el pago de viáticos y gastos de viaje por lo que no se contempla el pago de estas. | G11: En el Departamento Administrativo no se han otorgado comisiones de servicios que implique el pago de viáticos y gastos de viaje por lo que no se contempla el pago de estas. | H11: 0 | I11: 0 | J11: 0
A12: Artículo 9°.- Compensación por vacaciones. | B12: O211010300102 - Indemnización por vacaciones | C12: 52824493 | D12: 152844456 | E12: -1.893439148 | F12: Se aplicara una reducción del 1% sobre el valor pagado respecto a la vigencia anterior, hasta llegar a 2027 | G12: Se efectuara el pago de compensación por vacaciones en dinero, únicamente a los(as) funcionarios(as) que se retiren definitivamente de la entidad Se mantedrán controles de seguimiento para que los(as) funcionarios(as) tomen su periodo de vacaciones dentro de la anualidad correspondiente. | H12: 0.01 | I12: 0.01 | J12: 0.01 | L12: 1
A13: Artículo 10°.- Bono navideño. | B13: O21202020090696511 - Servicios de promoción de eventos deportivos y recreativos | C13: 4250000 | D13: 0 | E13: 1 | F13: Se contempla como uno de los items del contrato, los bonos navideños para los hijos de los servidores, menores de 12 años, activos al 31 de diciembre. Para el año 2024 se hizo uso del factor de calidad que hace parte del contrato; por lo que se buscará este tipo de estrategias o apoyos para cumplir con este artículo. | G13: Se contempla como un ítem dentro del contrato, sin embargo se buscará apoyo contractual o por medio de gestión para dar este bono. | H13: 0.002 | I13: 0.002 | J13: 0.002
A14: Artículo 11 -. Capacitación. | B14: O21202020090292913 - Servicios de educación para la formación y el trabajo | C14: 27000000 | D14: 29489000 | E14: -0.09218518519 | F14: Se establecen las actividades a desarrollar en el PIC para ser contratados, sin embargo se buscará usar alternativas por medio de ofertas institucionales de las diferentes entidades. | G14: Se establecen las actividades a desarrollar en el PIC, se buscarán ofertas de la Subdirección de Bienestar del DASCD, de Secretaría de la mujer, Secretaría de Planeación, Secretaría General, Veeduría distrital, el DAFP, etc. | H14: 0.001 | I14: 0.001 | J14: 0.001 | L14: 1
A15: Artículo 12 -. Bienestar. | B15: O21202020090696511 - Servicios de promoción de eventos deportivos y recreativos | C15: 6251729 | D15: 5105454 | E15: 0.1833532771 | F15: Se establecen las actividades a desarrollar en el PETH para ser contratados, sin embargo se buscará usar alternativas por medio de ofertas institucionales de las diferentes entidades. | G15: Se establecen las actividades a desarrollar en el PETH, se buscarán ofertas de la Subdirección de Bienestar del DASCD, de Secretaría de Ambiente, del IDRD, el DAFP, etc. | H15: 0.001 | I15: 0.001 | J15: 0.001 | L15: 1
A16: Artículo 13 -. Eventos y conmemoraciones. | B16: O21202020090696511 - Servicios de promoción de eventos deportivos y recreativos | C16: 21398271 | D16: 44894546 | E16: -1.098045492 | F16: Se contempla como uno de los items del contrato con el fin de realizar el cierre de gestión y reconocimiento a los mejores servidores, se propondrán diferentes tipos de eventos para disminuir los precios y obtar por el más barato. | G16: Realizar la cotización de diferentes formas de realizar el reconocimiento y cierre de gestión para optar por el más barato. | H16: 0.001 | I16: 0.001 | J16: 0.001 | L16: 1
A17: Artículo 14 -. Fondos educativos. | B17: O21202020090292512 - Servicios de educación superior nivel pregrado universitaria | C17: 0 | D17: 0 | F17: Difundir e incentivar a los servidores a participar de las convocatorias a los fondos educativos FRADEC y FEDHE, administrados por la Subdirección de Bienestar del DASCD. | G17: Difundir e incentivar a los servidores a participar de las convocatorias a los fondos educativos FRADEC y FEDHE, administrados por la Subdirección de Bienestar del DASCD. | H17: 0 | I17: 0 | J17: 0
A18: Servicios Administrativos
A19: Artículo 15. Telefonía. | B19: O21202020080484131 - Servicios móviles de voz O21202020080484133 - Servicios móviles de datos, excepto los servicios | C19: 0 | D19: 0 | E19: =1-(D19/C19) ->  | F19: No se tiene contemplada la adquisición de planes de celular para directivos (voz y/o datos) | G19: No se tiene contemplada la adquisición de planes de celular para directivos (voz y/o datos) | H19: 0 | I19: 0 | J19: 0
A20: Artículo 16 -. Vehículos oficiales. | B20: O2120201003033331101 - Gasolina motor corriente O2120202008078714199 - Servicio de mantenimiento y reparación de vehículos automotores n.c.p. | C20: 24552000 | D20: 31345359 | E20: -0.2766926931 | F20: Reducir el número desplazamientos que realiza cada uno de los vehículos. Reducir el número de horas de trabajo de cada vehículo. con lo que además de disminuir la cantidad de combustible y del costo del mismo, el número de mantenimientos preventivos y correctivos tenderá a la baja y por ende su valor. | G20: Realizar programación semanal de los vehículos Priorizar los eventos y actividades institucionales que requieran servicio de transporte | H20: 0.03 | I20: 0.02 | J20: 0.01 | L20: 1
A21: Artículo 17 -. Adquisición de vehículos y maquinaria. | B21: O23201010030701 - Vehículos automotores, remolques y semirremolques; y sus partes, piezas y accesorios | C21: 0 | D21: 0 | F21: No se tiene presupuestada la adquisición de vehículos, maquinaria u otros medios de transporte | G21: No se tiene presupuestada la adquisición de vehículos, maquinaria u otros medios de transporte | H21: 0 | I21: 0 | J21: 0
A22: Artículo 18 -. Fotocopiado, multicopiado e impresión. | B22: O2120201003023212901 - Papel bond O21202020080585951 - Servicios de copia y reproducción | C22: 11471748 | D22: 7257000 | E22: 0.367402422 | F22: 1. Fomentar el uso de la tecnología en lugar de papel. 2. Reutilización de papel 3. Sensibilización y capacitación 4. Implementación de políticas verdes 5. Optimización de los procesos internos | G22: Impresión a doble cara: Fomentar la impresión a doble cara (duplex) para reducir el uso de papel. Impresión bajo demanda: Establecer controles de impresión bajo demanda, es decir, imprimir solo lo necesario. Establecer límites de impresión: Crear políticas que limiten la cantidad de papel que se puede imprimir por usuario y dependencia. Concienciar al personal: Promover campañas de concienciación sobre el uso eficiente del papel y su impacto ambiental. Formación sobre herramientas digitales: Capacitar a los funcionarios y contratistas sobre el uso de herramientas digitales y soluciones tecnológicas que permitan reducir la dependencia del papel. Políticas de compra sostenible: Adquirir papel reciclado o de bajo impacto ambiental, y preferir proveedores que fomenten la sostenibilidad. Uso de formularios electrónicos: Reemplazar los formularios físicos por formularios electrónicos que se puedan completar y enviar sin necesidad de imprimir. | H22: 0.05 | I22: 0.05 | J22: 0.05 | L22: 1
A23: Artículo 19 -. Publicidad distrital. | B23: O21 | C23: 0 | D23: 0 | F23: No se tiene contemplado la celebración de contratos de publicidad | G23: No se tiene contemplado la celebración de contratos de publicidad | H23: 0 | I23: 0 | J23: 0
A24: Artículo 20 -. Cajas menores. | B24: O21 | C24: 0 | D24: 0 | F24: Se mantendrá la política adoptada por el Departamento desde el año 2021 de no constituir caja menor | G24: Se mantendrá la política adoptada por el Departamento desde el año 2021 de no constituir caja menor | H24: 0 | I24: 0 | J24: 0
A25: Artículo 21 -. Mantenimiento o reparación de bienes inmuebles o muebles. | B25: O2120202005040754790 - Otros servicios de terminación y acabado de edificios O2120202008078715999 - Servicio de mantenimiento y reparación de otros equipos n.c.p. | C25: 64482000 | D25: 38229936 | E25: 0.4071223597 | F25: Se ponderaran y priorizaran las actividades del plan de mantenimiento que se llevaran a cabo en cada vigencia, buscando que con su ejecución se genere el mayor impacto posible. Se realizaran actividades de orden y limpieza, en pro de generar una cultura del cuidado y apropiación institucional. | G25: Priorización de las actividades de mantenimiento a realizar por cada vigencia. Adelantar una jornada institucional de ornato y limpieza por vigencia | H25: 0.03 | I25: 0.02 | J25: 0.01 | L25: 1
A26: Artículo 22 -. Suscripciones. | B26: O21 | C26: 0 | D26: 0 | F26: No se tiene contemplada la suscripciones a bases de datos electrónicas, periódicos o revistas especializadas | G26: No se tiene contemplada la suscripciones a bases de datos electrónicas, periódicos o revistas especializadas | H26: 0 | I26: 0 | J26: 0
A27: Artículo 23 -. Servicios públicos. | B27: O21202020080686312 - Servicios de distribución de electricidad (a comisión o por contrato) O21202020080686330 - Servicios de distribución de agua por tubería (a comisión o por contrato) O21202020090494110 - Servicios de alcantarillado y tratamiento de aguas residuales O21202020090494239 - Servicios generales de recolección de otros desechos | C27: 3165052 | D27: 3020309 | E27: 0.04573163411 | F27: 1. Implementación de los programas del Plan Institucional de Gestión Ambiental (PIGA) Uso eficiente del agua. Uso eficiente de la energía. 2. Monitoreos a los consumos 3. Campañas de comunicación interna. | G27: Inspección general: Revisión de sistemas hidrosanitarios y eléctricos garantizando correcto funcionamiento. Inspección comportamental: Revisión y seguimiento al uso de energía en computadores y tomas eléctricas. Seguimiento a los registros: Seguimiento y control de los registros de facturación de agua y energía. Capacitación y sensibilización: Ejecución de actividades de educación ambiental en la promoción de implementación de buenas prácticas dirigidas a funcionarios y contratistas. Participación activa: Fomentar que los funcionarios y contratistas propongan ideas y participen en iniciativas que mejoren el desempeño ambiental del departamento. | H27: 0.01 | I27: 0.01 | J27: 0.01 | L27: 1

Sheet 0122-01 SDIS
A1: PLAN DE AUSTERIDAD EN EL GASTO 2025-2027
A2: Entidad
A3: Valores en Pesos Corrientes
A4: CONCEPTO (Decreto 062 de 2024) | B4: Posiciones Presupuestales Asociadas (Funcionamiento e Inversión) | C4: LÍNEA BASE | F4: PLAN DE AUSTERIDAD EN EL GASTO 2025-2027 | K4: SEGUIMIENTO RESULTADOS PLAN DE AUSTERIDAD 2025-2027
F5: ESTRATEGIAS 2025-2027 | G5: ACCIONES 2025-2027 | H5: META INDICADOR DE AUSTERIDAD
C6: AÑO 2023 | D6: AÑO 2024 | K6: AÑO 2025 | M6: AÑO 2026 | O6: AÑO 2027
C7: Valor EJECUTADO a 31/12/2023 | D7: Valor EJECUTADO a 31/12/2024 | E7: Resultado Indicador Austeridad | H7: AÑO 2025 | I7: AÑO 2026 | J7: AÑO 2027 | K7: Valor EJECUTADO a 31/12/2025 | L7: Resultado Indicador Austeridad | M7: Valor EJECUTADO a 31/12/2026 | N7: Resultado Indicador Austeridad | O7: Valor EJECUTADO a 31/12/2027 | P7: Resultado Indicador Austeridad
A8: Servicios de personal
A9: Artículo 6°.- Reducción del gasto en CPS profesionales y de apoyo a la gestión. | B9: N.A. Se registran totales. Corresponde con lo reportado en SIDEAP y SIVICOF | E9: =1-(D9/C9) ->  | L9: =1-(K9/D9) ->  | N9: =1-(M9/K9) ->  | P9: =1-(O9/M9) -> 
A10: Artículo 7°.- Horas extras, dominicales y festivos. | L10: =1-(K10/D10) ->  | N10: =1-(M10/K10) -> 
A11: Artículo 8°.- Viáticos y gastos de viaje.
A12: Artículo 9°.- Compensación por vacaciones.
A13: Artículo 10°.- Bono navideño.
A14: Artículo 11 -. Capacitación.
A15: Artículo 12 -. Bienestar.
A16: Artículo 13 -. Eventos y conmemoraciones.
A17: Artículo 14 -. Fondos educativos.
A18: Servicios Administrativos
A19: Artículo 15. Telefonía. | E19: =1-(D19/C19) -> 
A20: Artículo 16 -. Vehículos oficiales.
A21: Artículo 17 -. Adquisición de vehículos y maquinaria.
A22: Artículo 18 -. Fotocopiado, multicopiado e impresión.
A23: Artículo 19 -. Publicidad distrital.
A24: Artículo 20 -. Cajas menores.
A25: Artículo 21 -. Mantenimiento o reparación de bienes inmuebles o muebles.
A26: Artículo 22 -. Suscripciones.
A27: Artículo 23 -. Servicios públicos.

Sheet 0126-01 SDA
A1: PLAN DE AUSTERIDAD EN EL GASTO 2025-2027
A2: Entidad: SECRETARIA DISTRITAL DE AMBIENTE SDA
A3: Valores en Pesos Corrientes
A4: CONCEPTO (Decreto 062 de 2024) | B4: Posiciones Presupuestales Asociadas (Funcionamiento e Inversión) | C4: LÍNEA BASE | F4: PLAN DE AUSTERIDAD EN EL GASTO 2025-2027 | K4: SEGUIMIENTO RESULTADOS PLAN DE AUSTERIDAD 2025-2027
F5: ESTRATEGIAS 2025-2027 | G5: ACCIONES 2025-2027 | H5: META INDICADOR DE AUSTERIDAD
C6: AÑO 2023 | D6: AÑO 2024 | K6: AÑO 2025 | M6: AÑO 2026 | O6: AÑO 2027
C7: Valor EJECUTADO a 31/12/2023 | D7: Valor EJECUTADO a 31/12/2024 | E7: Resultado Indicador Austeridad | H7: AÑO 2025 | I7: AÑO 2026 | J7: AÑO 2027 | K7: Valor EJECUTADO a 31/12/2025 | L7: Resultado Indicador Austeridad | M7: Valor EJECUTADO a 31/12/2026 | N7: Resultado Indicador Austeridad | O7: Valor EJECUTADO a 31/12/2027 | P7: Resultado Indicador Austeridad
A8: Servicios de personal
A9: Artículo 6°.- Reducción del gasto en CPS profesionales y de apoyo a la gestión. | B9: N.A. Se registran totales. Corresponde con lo reportado en SIDEAP y SIVICOF | C9: 74969182646 | D9: 68846564189 | E9: =1-(D9/C9) -> 0.08166847018 | F9: Mantener el presupuesto asignado para la contratación de prestación de servicios profesionales y de apoyo a la gestión sin presentar para este concepto un crecimiento máximo equivalente al IPC causado en la vigencia anterior. | G9: Establecer para cada área un techo presupuestal de contratación de prestación de servicios profesionales y de apoyo a la gestión, equivalente a la ejecución más inflación causada en la vigencia anterior | H9: -0.052 | I9: -0.03 | J9: -0.03 | L9: =1-(K9/D9) -> 1 | N9: =1-(M9/K9) ->  | P9: =1-(O9/M9) -> 
A10: Artículo 7°.- Horas extras, dominicales y festivos. | B10: O211010100102 Horas extras domicales y festivos | C10: 207674682 | D10: 178292211 | E10: 0.1414831636 | F10: Se mantendrán los controles determinados en el procedimiento y los requisitos establecidos artículos 34 al 37 del Decreto 1042 de 1978 para generación de horas extras. | G10: 1. Controles estrictos en el seguimiento para causar horas extras por parte de los servidores de la SDA, el reconocimiento de las horas extras solo debe presentarse en caso necesario plenamente justificado. 2.La autorización por los jefes inmediatos se genera y sustenta con la verificación de las planillas, reportes y entregables realizados en el horario fuera de la jornada laboral. 3.Gestionar el cronograma correspondiente a los descansos compensados con el fin de que los funcionarios de la SDA a terminar la vigencia tengan agotado dicho tiempo y así evitar la generación de un pago por el no disfrute de este tiempo. | H10: -0.6347 | I10: -0.03 | J10: -0.03 | L10: =1-(K10/D10) -> 1 | N10: =1-(M10/K10) -> 
A11: Artículo 8°.- Viáticos y gastos de viaje. | B11: prospe O232020200664241- Servicio de transporte aereo prospe O232020200663111-Servicios de alojamiento prospe O2120202010 Viacticos | C11: 28893084 | D11: 27102856 | E11: 0.06196043316 | F11: Adelantará las comisiones de servicio de servidores públicos, conforme a la normatividad vigente, las cuales deberán estar debidamente justificadas y cumplir con los requisitos preceptuados en las normas. Racionalización en la autorización de viáticos y gastos de viaje. | G11: Requerir autorización del Alcalde Mayor, previa verificación de la disponibilidad presupuestal para el reconocimiento de viáticos y gastos de viaje; para las comisiones del servicio al exterior del (la) Secretaria(o) de Despacho y de los demás servidores públicos de cualquier nivel jerárquico. Aprobar las comisiones de servicios al interior y exterior del país o autorizaciones de desplazamiento, sólo cuando respondan a necesidades del servicio de la entidad, previamente valoradas y autorizadas por el jefe de la dependencia, según corresponda. Los gastos por concepto los viáticos y pasajes nacionales e internacionales, serán estrictamente autorizadas bajo las condiciones y tarifas establecidas de la normatividad vigente. Autorizar viáticos, gastos de viaje y gastos de desplazamiento solo si no están cubiertos por la entidad que organiza el evento. 0,00% | H11: 0 | I11: 0 | J11: 0 | L11: 1
A12: Artículo 9°.- Compensación por vacaciones. | B12: Prospe O21101010010802 Prima de Vacaciones Prospe O21101010010802 Bonificación Especial de recreación | C12: 610034064 | D12: 828751821 | E12: -0.3585336785 | F12: Control de vacaciones de cumplimiento anual. | G12: Adoptar medidas para que los servidores disfruten sus periodos de vacaciones al siguiente año de cumplirlas y así evitar que al momento del retiro el servidor tenga periodos acumulados. | H12: 0.1149 | I12: 0 | J12: 0 | L12: 1
A13: Artículo 10°.- Bono navideño. | B13: O2120200090696511 Servicios de recreación y eventos deportivos | C13: 0 | D13: $ 4.450.000 | F13: Establecer las medidas de control enfocadas en garantizar que el valor asignado para cada uno de los hijos de los funcionarios no supere el valor de seis (6) salarios mínimos diarios legales vigentes como lo dispone la norma. | G13: La ejecución del gasto está asociada al número de niños beneficiarios, el cual fluctúa con los movimientos de la planta de personal. | H13: -0.1236 | I13: 0 | J13: 0
A14: Artículo 11 -. Capacitación. | B14: O21202020090292913 Servicios de educación para la formación y el trabajo O232020200992913 SERVICIOS DE EDUCACIÓN PARA LA FORMACIÓN Y EL TRABAJO | C14: 220410000 | D14: 78400000 | E14: 0.6442992605 | F14: Incrementar controles y seguimiento para que los servidores que se inscriban a los cursos contratados y asistan cumplidamente. | G14: Mantener la política de uso del formato Acta de compromiso y autorización de actividades con los servidores, que permite garantizar que la persona que se inscribe al programa de formación asista. Búsqueda de capacitaciones gratuitas ofrecidas por entidades gubernamentales. | H14: -0.064 | I14: -0.0323 | J14: -0.03 | L14: 1
A15: Artículo 12 -. Bienestar. | B15: O2120200090696511 Servicios de recreación y eventos deportivos O232020200663391 SERVICIOS DE CATERING PARA EVENTOS | C15: 298099000 | D15: 318109346 | E15: -0.06712651166 | F15: Realizar actividades de bienestar a cero costos. | G15: No se destinarán recursos para la conmemoración del día de los secretarios, conductores y otras actividades que sean coordinadas por el DASCD. Adherencia a la invitación de las actividades que realiza el Departamento Administrativo del Servicio Civil- DASC que permite que se amplie la oferta de eventos sin incrementar el costo ni hacer uso de los recursos de la entidad. Optimizar el presupuesto confirmando únicamente los inscritos a la actividad y los saldos son utilizados para ampliar coberturas o números de actividades. | H15: -0.052 | I15: 0 | J15: 0 | L15: 1
A16: Artículo 13 -. Eventos y conmemoraciones. | B16: O232020200663391 SERVICIOS DE CATERING PARA EVENTOS O232020200885961 SERVICIOS DE ORGANIZACIÓN Y ASISTENCIA DE CONVENCIONES O232020200883619 OTROS SERVICIOS DE PUBLICIDAD | C16: 975512434 | D16: 454176484 | E16: 0.5344226602 | F16: A través de la Oficina Asesora de Comunicaciones (OAC), no se ejecuta ninguna recepción, fiesta, agasajo o conmemoración con cargo al presupuesto de la entidad. La OAC tiene a cargo la supervisión del contrato de operador logístico de la Secretaría Distrital de Ambiente, el cual cuenta con presupuesto de diferentes proyectos de inversión para la ejecución de eventos institucionales que responden a la misión de la entidad y a las metas del Plan de Desarrollo. | G16: En cumplimiento del decreto de Austeridad del Gasto, no se realizará la producción de material promocional, ni de carácter impreso. | H16: 0 | I16: 0 | J16: 0 | L16: 1
A17: Artículo 14 -. Fondos educativos. | B17: O2120200090696511 Servicios de recreación y eventos deportivos | C17: 6000000 | D17: 7000000 | E17: -0.1666666667 | F17: La SDA, no administra los fondos educativos FRADEC Y FEDHE, estos dependen del Departamento Administrativo del Servicio Civil Distrital | G17: Los fondos educativos solo se tendran en cuenta para educación no formal (cursos, talleres cortos) | H17: 0 | I17: 0 | J17: 0 | L17: 1
A18: Servicios Administrativos
A19: Artículo 15. Telefonía. | B19: Servicio público Telefonía fija O21202020080484120 Servicio público de Telefonía móvil O21202020080484190 | C19: 97467806 | D19: 57627288 | E19: =1-(D19/C19) -> 0.4087556665 | F19: Control efectivo de consumo de planes y verificación del uso racional y finalidad de estos. | G19: Gestionar con los diferentes proveedores de telefonía, un plan de celular más económico, sin desmejorar las condiciones contratadas actualmente. La SDA se abstendrá de renovar o adquirir nuevos teléfonos celulares y planes de telefonía móvil, internet y datos para los servidores públicos de cualquier nivel. Asignar el servicio de teléfono celular con cargo al presupuesto asignado para el nivel directivo que, debido a las funciones desempeñadas requieren disponibilidad inmediata y comunicación ágil y permanente. | H19: 0 | I19: 0 | J19: 0 | L19: 1
A20: Artículo 16 -. Vehículos oficiales. | B20: O2120201003033331101 Gasolina Motor Corriente. O2120201003033336103 Disel OIL Acpm | C20: 71715208 | D20: 54457776 | E20: 0.2406383873 | F20: Control efectivo del consumo de combustible parque automotor. | G20: Control a través de chip para registrar el consumo de combustible en las estaciones de combustible contratadas. Control al sistema de rastreo satelital de los vehículos. Mediante el aplicativo del GPS se verifica como delimitación el perímetro urbano de la ciudad de Bogotá. | H20: -0.052 | I20: -0.03 | J20: -0.03 | L20: 1
A21: Artículo 17 -. Adquisición de vehículos y maquinaria. | B21: N/A | C21: 0 | D21: 0 | F21: La entidad no tiene prevista la compra de vehículos y maquinaria. Realizar un plan de mantenimiento preventivo del parque automotor de acuerdo con los recursos disponibles. | G21: Dar cumplimiento al plan de mantenimiento preventivo | H21: 0 | I21: 0 | J21: 0
A22: Artículo 18 -. Fotocopiado, multicopiado e impresión. | B22: O21202020080585951 | C22: 9524760 | D22: 2876296 | E22: 0.6980190577 | F22: Controlar el consumo de resmas de papel en el marco de las acciones de la política de “Cero papel”, utilizando las herramientas de revisión electrónica y fortaleciendo los sistemas de información. | G22: Imprimir y propender por la utilización de las hojas por ambas caras, imprimir a un solo espacio, revisar, validar, corregir y diseñar antes de imprimir; en el envío de los documentos de manera electrónica y la impresión en calidad borrador para minimizar el gasto de tinta, con el fin de reducir el uso de las impresoras, tinta y papel. Socializaciones de concientización a todo el personal de la SDA sobre la importancia del uso eficiente del papel, así como el seguimiento respectivo a todas las actividades gestionadas desde cada área de la entidad. | H22: 0 | I22: 0 | J22: 0 | L22: 1
A23: Artículo 19 -. Publicidad distrital. | B23: O232020200883620 SERVICIOS DE VENTA O ALQUILER DE ESPACIO O TIEMPO PUBLICITARIO A COMISIÓN | C23: 0 | D23: 0 | F23: La Secretaría Distrital de Ambiente no destinada erogaciones ni presupuesto para publicidad, la entidad ejecuta campañas, acciones y actividades de divulgación institucional y de comunicación pública en torno al tema ambiental, con el objetivo de dar a conocer las actuaciones institucionales, garantizando el derecho ciudadano de acceso a la información. | G23: Se fortalecerá la divulgación de mesajes institucionales, a través de los canales de comunicación con que cuenta la entidad y las redes sociales. | H23: 0 | I23: 0 | J23: 0
A24: Artículo 20 -. Cajas menores. | B24: O2120201002072719002 Estandartes y banderas O2120201003013191499 Artículos de madera n.c.p. O2120201003023219997 Artículos n.c.p. de cartón y papel O2120201003053549999 Productos químicos n.c.p. O2120201003063627099 Artículos de caucho n.c.p. O2120201003073719998 Productos de vidrio n.c.p. O2120201003083899997 Artículos n.c.p. para protección O2120201004024299991 Artículos n.c.p. de ferretería y cerrajería O2120201004064693999 Accesorios eléctricos n.c.p. O21202020060868021 Servicios locales de mensajería nacional O21202020080282130 Servicios de documentación y certificación jurídica O21202020080585330 Servicios de limpieza general O2120202008078711099 Servicio de mantenimiento y reparación de otros productos metálicos elaborados n.c.p. O2120202008078715299 Otros servicios de mantenimiento y reparación de maquinaria y aparatos eléctricos n.c.p. | C24: 3427912 | D24: 1057195 | E24: 0.6915921412 | F24: Optimización en la gestión de gastos incluidos en la caja menor. | G24: Aplicar controles en las solicitudes, identificando si cuenta con la debida justificación para clasificarla como imprevistos, urgentes, imprescindibles e inaplazables y enmarcados dentro de las políticas de racionalización del gasto. | H24: 0 | I24: 0 | J24: 0 | L24: 1
A25: Artículo 21 -. Mantenimiento o reparación de bienes inmuebles o muebles. | B25: SERVICIOS DE MANTENIMIENTO Y CUIDADO DEL PAISAJE1-100-F001 VA-RECURSOS DISTRITO SERVICIO DE MANTENIMIENTO Y REPARACIÓN DE OTROS EQUIPOS N.C.P.1-100-F001 VA-RECURSOS DISTRITO | C25: 252316200 | D25: 2636239251 | E25: -9.44815692 | F25: Gestión eficiente del plan de mantenimiento de la entidad, focalizados en lo preventivo. | G25: Realizar los mantenientos preventivos correspondientes en las instalaciones de la SDA, las cuales fueron intervenidas dureante la vigencia 2024 con el fin de no requerir mantenimineto de tipo correctivo que genere costos adicionales. | H25: -0.052 | I25: -0.03 | J25: -0.03 | L25: 1
A26: Artículo 22 -. Suscripciones. | B26: N/A | C26: 0 | D26: 0 | F26: La Oficina Asesora de Comunicaciones no realiza ningún contrato de suscripción a periódicos o revistas de carácter físico o virtual. | H26: 0 | I26: 0 | J26: 0
A27: Artículo 23 -. Servicios públicos. | B27: Servicio público energía O21202020080686312 Servicio público Acueducto O21202020080686330 Servicio público Aseo O21202020090494239 | C27: 414286816 | D27: 467193469 | E27: -0.1277053745 | F27: Control de consumo y corrección de fugas por cada uno de los servicios públicos. | G27: Ejecutar las acciones contempladas en los programas uso eficiente del agua y uso eficiente de energía implementados a través del PIGA. | H27: 0 | I27: 0 | J27: 0 | L27: 1

Sheet 0127-01 DADEP
A1: PLAN DE AUSTERIDAD EN EL GASTO 2025-2027
A2: Entidad
A3: Valores en Pesos Corrientes
A4: CONCEPTO (Decreto 062 de 2024) | B4: Posiciones Presupuestales Asociadas (Funcionamiento e Inversión) | C4: LÍNEA BASE | F4: PLAN DE AUSTERIDAD EN EL GASTO 2025-2027 | K4: SEGUIMIENTO RESULTADOS PLAN DE AUSTERIDAD 2025-2027
F5: ESTRATEGIAS 2025-2027 | G5: ACCIONES 2025-2027 | H5: META INDICADOR DE AUSTERIDAD
C6: AÑO 2023 | D6: AÑO 2024 | K6: AÑO 2025 | M6: AÑO 2026 | O6: AÑO 2027
C7: Valor EJECUTADO a 31/12/2023 | D7: Valor EJECUTADO a 31/12/2024 | E7: Resultado Indicador Austeridad | H7: AÑO 2025 | I7: AÑO 2026 | J7: AÑO 2027 | K7: Valor EJECUTADO a 31/12/2025 | L7: Resultado Indicador Austeridad | M7: Valor EJECUTADO a 31/12/2026 | N7: Resultado Indicador Austeridad | O7: Valor EJECUTADO a 31/12/2027 | P7: Resultado Indicador Austeridad
A8: Servicios de personal
A9: Artículo 6°.- Reducción del gasto en CPS profesionales y de apoyo a la gestión. | B9: N.A. Se registran totales. Corresponde con lo reportado en SIDEAP y SIVICOF | C9: 19795997318 | D9: 19103610605 | E9: =1-(D9/C9) -> 0.03497609652 | F9: La contratación de servicios personales en 2023 fue 89% del presupuesto de inversión y la de 2024 fue el 77%. Para 2025, la entidad propone reducir el porcentaje de contratación de servicios personales al 74% del total del presupuesto de inversión. | G9: Realizar contratación de servicios personales que no sobrepase el porcentaje del año anterior | L9: =1-(K9/D9) -> 1 | N9: =1-(M9/K9) ->  | P9: =1-(O9/M9) -> 
A10: Artículo 7°.- Horas extras, dominicales y festivos. | B10: O211010100102 Horas extras, dominicales, festivos y recargos | C10: 10123668 | D10: 4209431 | E10: 0.5841990275 | F10: Racionalización de las horas extras de todo el personal, solamente aprobadas para los conductores. | G10: Los conductores se programan en el horario laboral, no se programan actividades adicionales. | H10: 0.02 | I10: 0.02 | J10: 0.02 | L10: =1-(K10/D10) -> 1 | N10: =1-(M10/K10) -> 
A11: Artículo 8°.- Viáticos y gastos de viaje. | B11: O2120202010 Viáticos de los funcionarios en comisión O21202020060464241 Servicios de transporte aéreo de pasajeros, excepto los servicios de aerotaxi O21202020060464220 Servicios de transporte terrestre de pasajeros, diferente del transporte local y turístico de pasajeros | C11: 20081727 | D11: 2128498 | E11: 0.8940082195 | F11: Planificación previa de los desplazamientos. Dar aplicación a lo establecido en la normatividad vigente para autorizar los viáticos y gastos de viaje estrictamente necesarios atendiendo a las necesidades del servicio. | G11: Los viajes nacionales e internacionales se harán solamente en clase económica Programar los desplazamientos con suficiente anticipación para acceder a mejores tarifas de transporte y desarrollar otras estrategias que permitan ahorrar en la compra de tiquetes. Autorizar viáticos, gastos de viaje y gastos de desplazamiento solo si no están cubiertos por la entidad que organiza el evento | H11: 0 | I11: 0 | J11: 0 | L11: 1
A12: Artículo 9°.- Compensación por vacaciones. | B12: O211010300102 Indemnización por vacaciones | C12: 47939675 | D12: 261195089 | E12: -4.448411759 | F12: Las vacaciones no deben ser acumuladas, ni interrumpidas, solo por necesidades del servicio; la indemnización de vacaciones se pagará únicamente por retiro del funcionario. | G12: Programar las vacaciones de todos los servidores y no se autorizan que se acumulen. | H12: 0.5 | I12: 0.1 | J12: 0.1 | L12: 1
A13: Artículo 10°.- Bono navideño. | B13: O21202020090696620 Servicios de apoyo relacionados con el deporte y la recreación | C13: 6714000 | D13: 7273500 | E13: -0.08333333333 | F13: Solamente otorgarán con cargo a su presupuesto un bono navideño por un valor máximo de seis (6) salarios mínimos diarios legales vigentes por cada hijo o hija de los servidores públicos que a 31 de diciembre del año en curso sea menor de 13 años. | G13: Aplicar la normatividad vigente con relación a la entrega de bonos. | H13: 0 | I13: 0 | J13: 0 | L13: 1
A14: Artículo 11 -. Capacitación. | B14: O21202020090292913 Servicios de educación para la formación y el trabajo | C14: 31607913 | D14: 0 | E14: 1 | F14: Se coordinan las capacitaciones con otras entidades y organismos distritales para disminuir costos y no se han causado gastos por alquileres de auditorios o espacios. Adicionalmente se han privilegiado el uso de tecnologías de la información y las telecomunicaciones TICS, para restringir uso de papelería y otros elementos. | G14: Realizar las capacitaciones de manera virtual , realizar gestiones con las entidades distritales y nacionales para que no se generen costos. Difundir la información sobre las capacitaciones que se realicen gratuitas en plataformas como Soy 10. Cultivar una cultura de intercambio de conocimientos | H14: 0 | I14: 0.05 | J14: 0.05
A15: Artículo 12 -. Bienestar. | B15: O21202020090696620 Servicios de apoyo relacionados con el deporte y la recreación | C15: 33043978 | D15: 46094222 | E15: -0.3949356219 | F15: Dentro del plan de bienestar formulado por la entidad, se incluyen las actividades programadas por el Departamento Administrativo del Servicio Civil Distrital -DASCD; como son la conmemoración día de los secretarios y conductores y se promueve la participación de los funcionarios de la entidad en ellas. | G15: Usar eficientemente los recursos y gestionar aportes por parte de la Caja de Compensación. Programar actividades que generen bienestar pero que no generen costos | H15: 0.05 | I15: 0.05 | J15: 0.05 | L15: 1
A16: Artículo 13 -. Eventos y conmemoraciones. | C16: 0 | D16: 0 | F16: No se realizan eventos o conmemoraciones | G16: No se programan eventos o conmemoraciones | H16: 0 | I16: 0 | J16: 0
A17: Artículo 14 -. Fondos educativos. | C17: 0 | D17: 0 | F17: No se realizan gastos relacionados con fondos educativos | G17: No se tiene previsto programar gastos por este rubro | H17: 0 | I17: 0 | J17: 0
A18: Servicios Administrativos
A19: Artículo 15. Telefonía. | B19: O21202020080484131 Servicios móviles de voz | C19: 1308554 | D19: 1147688 | E19: =1-(D19/C19) -> 0.1229341701 | F19: El servicio de teléfono fijo se encuentra controlado para llamadas a larga distancia y celular con asignación de códigos, el valor pagado se ha mantenido estable por varias vigencias. En la vigencia 2024 se eliminó una línea celular por lo cual solamente se cuenta con una línea celular asignada a la Oficina de Atención al Ciudadano, con plan cerrado. | G19: Revisar tarifas pagadas y renegociar planes y tarifas con las empresas que prestan el servicio. | H19: 0.02 | I19: 0.02 | J19: 0.02 | L19: 1
A20: Artículo 16 -. Vehículos oficiales. | B20: O2120201003033331101 Gasolina motor corriente O2120202008078714102 Servicio de mantenimiento y reparación de vehículos automóviles | C20: 11244664 | D20: 6400879 | E20: 0.4307629823 | F20: La Entidad tiene dos vehículos oficiales, que tienen instalado sistema de monitoreo satelital para realizar controles. Se tienen instalados chips para registrar el consumo de combustible y se tienen establecieron topes semanales y mensuales. | G20: Realizar controles mensuales a los consumos de combustibre. Realizar controles a los recorridos realizados por los vehículos. Presentar para aprobación la posiilidad de sacar del servicio el vehículo más antiguo que genera los mayores costos de mantenimiento. | H20: 0.1 | I20: 0.02 | J20: 0.02 | L20: 1
A21: Artículo 17 -. Adquisición de vehículos y maquinaria. | C21: 0 | D21: 0 | F21: No se adquieren vehículos o maquinaria | G21: No se tiene previsto programar gastos por este rubro | H21: 0 | I21: 0 | J21: 0
A22: Artículo 18 -. Fotocopiado, multicopiado e impresión. | B22: O21202020080585951 Servicios de copia y reproducción | C22: 323071 | D22: 0 | E22: 1 | F22: Se tienen asignados topes para el número de copias de cada una de las dependencias, las fotocopias han venido disminuido. Se evitan al máximo las impresiones. En la vigencia 2024 no se suscribió contrato de fotocopiado | G22: No se tiene previsto programar gastos por este rubro | H22: 0 | I22: 0 | J22: 0
A23: Artículo 19 -. Publicidad distrital. | C23: 0 | D23: 0 | F23: No se realizan gastos de publicidad | G23: No se tiene previsto programar gastos por este rubro | H23: 0 | I23: 0 | J23: 0
A24: Artículo 20 -. Cajas menores. | B24: O2120201003023212899 Papeles n.c.p. O2120201003063627098 Artículos de caucho n.c.p. para escritorio O2120201003083812199 Muebles metálicos n.c.p. para oficina O2120201004024299994 Artículos de aluminio n.c.p. O21202020060464112 Servicios de transporte terrestre local regular de pasajeros O21202020080282130 Servicios de documentación y certificación jurídica O21202020080585951 Servicios de copia y reproducción O2120202008078715999 Servicio de mantenimiento y reparación de otros equipos n.c.p. O230117450120240059 Fortalecimiento del proceso de actualización del inventario de uso Público y Bienes Fiscales en Bogotá D.C | C24: 3794695 | D24: 1946252 | E24: 0.487112403 | F24: Los gastos de caja menor se han disminuido, se ciñe estrictamente a los gastos que tiene carácter de imprevistos, urgentes, imprescindibles e inaplazables. | G24: Revisar y analizar los gastos autorizados para caja menor para determinar los rubros en los cuales se pueden disminuir los gastos. Aplicar controles verificando que tenga la debida justificación . | H24: 0.02 | I24: 0.02 | J24: 0.02 | L24: 1
A25: Artículo 21 -. Mantenimiento o reparación de bienes inmuebles o muebles. | B25: O2120201004024299991 Artículos n.c.p. de ferretería y cerrajería | C25: 8957449 | D25: 5552747 | E25: 0.3800972799 | F25: Los gastos para mantenimiento y reparaciones locativas son mínimas, no se tiene previsto realizar reparaciones, solamente las que puedan afectar el normal funcionamiento de la Entidad. | G25: Revisar detalladamente los insumos que se requerien para realizar las adecuaciones para determinar estrictamente lo que se requiera. | H25: 0 | I25: 0 | J25: 0 | L25: 1
A26: Artículo 22 -. Suscripciones. | C26: 0 | D26: 0 | F26: No se tienen suscripciones | G26: No se tiene previsto programar gastos por este rubro
A27: Artículo 23 -. Servicios públicos. | B27: O21202020060969112 Servicios de distribución de electricidad (por cuenta propia) O21202020090494110 Servicios de alcantarillado y tratamiento de aguas residuales | C27: 5345940 | D27: 5228340 | E27: 0.02199800222 | F27: Se realizan campañas de sensibilización que promueven el uso eficiente y el consumo de los servicios públicos de agua y energía y la gestión integral de residuos sólidos. | G27: Realizar inspecciones de seguimiento y/o mantenimiento general a los sistemas hidrosanitarios del DADEP. Realizar seguimiento y mantenimiento general a las redes eléctricas y luminarias de las áreas administradas por el DADEP. | H27: 0 | I27: 0 | J27: 0 | L27: 1

Sheet 0131-01 UAECOB
A1: PLAN DE AUSTERIDAD EN EL GASTO 2025-2027
A2: Entidad
A3: Valores en Pesos Corrientes
A4: CONCEPTO (Decreto 062 de 2024) | B4: Posiciones Presupuestales Asociadas (Funcionamiento e Inversión) | C4: LÍNEA BASE | F4: PLAN DE AUSTERIDAD EN EL GASTO 2025-2027 | K4: SEGUIMIENTO RESULTADOS PLAN DE AUSTERIDAD 2025-2027
F5: ESTRATEGIAS 2025-2027 | G5: ACCIONES 2025-2027 | H5: META INDICADOR DE AUSTERIDAD
C6: AÑO 2023 | D6: AÑO 2024 | K6: AÑO 2025 | M6: AÑO 2026 | O6: AÑO 2027
C7: Valor EJECUTADO a 31/12/2023 | D7: Valor EJECUTADO a 31/12/2024 | E7: Resultado Indicador Austeridad | H7: AÑO 2025 | I7: AÑO 2026 | J7: AÑO 2027 | K7: Valor EJECUTADO a 31/12/2025 | L7: Resultado Indicador Austeridad | M7: Valor EJECUTADO a 31/12/2026 | N7: Resultado Indicador Austeridad | O7: Valor EJECUTADO a 31/12/2027 | P7: Resultado Indicador Austeridad
A8: Servicios de personal
A9: Artículo 6°.- Reducción del gasto en CPS profesionales y de apoyo a la gestión. | B9: N.A. Se registran totales. Corresponde con lo reportado en SIDEAP y SIVICOF | E9: =1-(D9/C9) ->  | L9: =1-(K9/D9) ->  | N9: =1-(M9/K9) ->  | P9: =1-(O9/M9) -> 
A10: Artículo 7°.- Horas extras, dominicales y festivos. | L10: =1-(K10/D10) ->  | N10: =1-(M10/K10) -> 
A11: Artículo 8°.- Viáticos y gastos de viaje.
A12: Artículo 9°.- Compensación por vacaciones. | B12: O211010300102 | C12: 149787749 | D12: 126637787 | E12: 0.1545517718 | F12: Implementar estrategia orientada a que los funcionarios de la Unidad programen vacaciones dentro de la anualidad. | G12: Mantener el principio de anualidad presupuestal solicitando a los funcionarios la programación de las vacaciones dentro de la misma anualidad | H12: 0.05 | L12: 1
A13: Artículo 10°.- Bono navideño.
A14: Artículo 11 -. Capacitación.
A15: Artículo 12 -. Bienestar.
A16: Artículo 13 -. Eventos y conmemoraciones.
A17: Artículo 14 -. Fondos educativos.
A18: Servicios Administrativos
A19: Artículo 15. Telefonía. | B19: O21202020080484120 / O21202020080484131 | C19: =84368974+6400446 -> 90769420 | D19: =71697356+18836236 -> 90533592 | E19: =1-(D19/C19) -> 0.002598099668 | F19: Dar el uso eficiente a las lineas que se encuentran en uso. | G19: Hacer seguimiento a las lineas de uso misional. Disminuir los planes de datos de las lineas vigentes. | H19: 0.05% | I19: 0.05% | J19: 0.05% | L19: 1
A20: Artículo 16 -. Vehículos oficiales.
A21: Artículo 17 -. Adquisición de vehículos y maquinaria.
A22: Artículo 18 -. Fotocopiado, multicopiado e impresión. | B22: O2120201003053513001 / O2120201003023212801 | C22: 151557887 | D22: 277238499 | E22: -0.8292581435 | L22: 1
A23: Artículo 19 -. Publicidad distrital.
A24: Artículo 20 -. Cajas menores.
A25: Artículo 21 -. Mantenimiento o reparación de bienes inmuebles o muebles.
A26: Artículo 22 -. Suscripciones.
A27: Artículo 23 -. Servicios públicos. | B27: O21202020080686311 /O21202020080686320 / O21202020080686330 | C27: =805687310+252498455+187808617 -> 1245994382 | D27: =894700000+206801994+128103130 -> 1229605124 | E27: 0.0131535569 | F27: Implementar una estrategia para racionalizar el uso de servicios públicos en las sedes de la Unidad | G27: 1. Desarrollar una campaña de sensibilización frente al uso y ahorro eficiente del agua y de la energía en el 100% de las sedes de la Unidad 2. Inspección del estado de las redes hidrosanitarias y eléctricas del 100% de las sedes BOMBEROS DE BOGOTÁ 3. Sustituir el 92% de los sistemas no ahorradores de agua y de baja eficiencia identificados en la inspección del estado de las redes hidrosanitarias y eléctricas de las sedes de la UAE CUERPO OFICIAL DE BOMBEROS DE BOGOTÁ. 4. Implementar un sistema piloto de aprovechamiento de agua lluvia en una estación de bomberos. 5. Implementar un sistema de energía alternativa en una de las sedes de la entidad. | H27: 0.01 | I27: 0.01 | J27: 0.01 | L27: 1

Sheet 0136-01 SJD
A1: PLAN DE AUSTERIDAD EN EL GASTO 2025-2027
A2: Entidad
A3: Valores en Pesos Corrientes
A4: CONCEPTO (Decreto 062 de 2024) | B4: Posiciones Presupuestales Asociadas (Funcionamiento e Inversión) | C4: LÍNEA BASE | F4: PLAN DE AUSTERIDAD EN EL GASTO 2025-2027 | K4: SEGUIMIENTO RESULTADOS PLAN DE AUSTERIDAD 2025-2027
F5: ESTRATEGIAS 2025-2027 | G5: ACCIONES 2025-2027 | H5: META INDICADOR DE AUSTERIDAD
C6: AÑO 2023 | D6: AÑO 2024 | K6: AÑO 2025 | M6: AÑO 2026 | O6: AÑO 2027
C7: Valor EJECUTADO a 31/12/2023 | D7: Valor EJECUTADO a 31/12/2024 | E7: Resultado Indicador Austeridad | H7: AÑO 2025 | I7: AÑO 2026 | J7: AÑO 2027 | K7: Valor EJECUTADO a 31/12/2025 | L7: Resultado Indicador Austeridad | M7: Valor EJECUTADO a 31/12/2026 | N7: Resultado Indicador Austeridad | O7: Valor EJECUTADO a 31/12/2027 | P7: Resultado Indicador Austeridad
A8: Servicios de personal
A9: Artículo 6°.- Reducción del gasto en CPS profesionales y de apoyo a la gestión. | B9: O21202020080282199 / O21202020080383111 / O21202020080383112 / O21202020080383113 / O21202020080383121 / O21202020080383611 / O21202020080383990 / O232020200991199 / O232020200883129 | C9: 7914771659 | D9: 7649340616 | E9: =1-(D9/C9) -> 0.03353615928 | F9: Optimizar la contratación de servicios profesionales y apoyo a la gestión, en los proyectos que tengan definidos productos de fortalecimiento institucional según la herramienta PMR o en aquellos que incluyan la contratación de acciones relacionadas con su equivalente en el presupuesto de Gastos de Inversión. | G9: Para la vigencia 2025, se expiden CDPs con destino a la Secretaría de Hacienda Distrital - Dirección Distrital de Presupuesto, en cumplimiento de la Circular SDH-000002 del 10 de enero de 2025. Esto respalda el ahorro correspondiente al 5% en la contratación de acciones incluidas en el presupuesto de Gastos de Inversión del proyecto 8175, así como el 1% en el rubro “Adquisición de Bienes y Servicios” del Presupuesto de Gastos de Funcionamiento. Parte de dicho porcentaje se ha derivado de los contratos de prestación de servicios dentro del Presupuesto de Funcionamiento. Adicionalmente, para las vigencias 2026 y 2027, se contempla fortalecer la capacitación y eficiencia del personal interno, con el objetivo de disminuir la necesidad de contratar servicios externos. | H9: 0.01 | I9: 0 | J9: 0 | L9: =1-(K9/D9) -> 1 | N9: =1-(M9/K9) ->  | P9: =1-(O9/M9) -> 
A10: Artículo 7°.- Horas extras, dominicales y festivos. | B10: O211010100102 | C10: 48920211 | D10: 59589350 | E10: -0.2180926611 | F10: Aprobar horas extras solo cuando sea estrictamente necesario y no haya forma de realizar el trabajo dentro del horario regular | G10: Se ha implementado un procedimiento más estricto para la autorización de horas extras, las cuales ahora deberán contar con una segunda aprobación por parte del Director de Gestión Corporativa. | H10: 0 | I10: 0 | J10: 0 | L10: =1-(K10/D10) -> 1 | N10: =1-(M10/K10) -> 
A11: Artículo 8°.- Viáticos y gastos de viaje. | B11: O2120202010 | C11: 14063671 | D11: 1713087 | E11: 0.8781906232 | F11: Incentivar la participación en eventos y reuniones de manera virtual siempre que sea posible, evitando los viajes innecesarios. | G11: Solo autorizar viajes cuando sean absolutamente necesarios para el cumplimiento de metas o proyectos clave | H11: 0 | I11: 0 | J11: 0 | L11: 1
A12: Artículo 9°.- Compensación por vacaciones. | B12: O211010300102 | C12: 131702278 | D12: 538314240 | E12: -3.087357092 | F12: Fomentar la planificación anticipada de las vacaciones de los servidores públicos, evitando la acumulación de compensaciones de vacaciones no tomadas | G12: Mediante la Circular 028 de 2024, se impartieron directrices a los funcionarios con tres o más periodos de vacaciones causadas y no disfrutadas, instándolos a programar el disfrute de las mismas. Además, se les exhorta a los demas funcionarios a tomar sus días de descanso antes de que se acumulen periodos con el diligenciamiento de la programacion de vacaciones. | H12: 0 | I12: 0 | J12: 0 | L12: 1
A13: Artículo 10°.- Bono navideño. | B13: NA | C13: 0 | D13: 0 | F13: NA | G13: NA | H13: 0 | I13: 0 | J13: 0
A14: Artículo 11 -. Capacitación. | B14: O21202020090292920 | C14: 165741530 | D14: 99717648 | E14: 0.398354486 | F14: Priorizar la capacitación a través de plataformas en línea, lo que reduce costos logísticos y de desplazamiento | G14: Se comunica e invita a los funcionarios a acceder a la oferta educativa del DASC y el Aula Saber, adicionalmente, se continuara fomentando acuerdos con instituciones educativas que permitan un acceso más económico a programas de formación. | H14: 0 | I14: 0 | J14: 0 | L14: 1
A15: Artículo 12 -. Bienestar. | B15: O21202020090292919 / O21202020090696990 | C15: 225221633 | D15: 301112815 | E15: -0.3369622225 | F15: Optimizar los recursos destinados a bienestar sin sacrificar el bienestar de los servidores | G15: Se continuará fortaleciendo la colaboración con la Manzana Liévano para optimizar los recursos de la Secretaría General, la Secretaría de Gobierno y la Secretaría Jurídica, con el fin de incorporar actividades de bienestar de manera conjunta. | H15: 0 | I15: 0 | J15: 0 | L15: 1
A16: Artículo 13 -. Eventos y conmemoraciones. | C16: 0 | D16: 0 | F16: NA | G16: NA | H16: 0 | I16: 0 | J16: 0
A17: Artículo 14 -. Fondos educativos. | C17: 0 | D17: 0 | F17: NA | G17: NA | H17: 0 | I17: 0 | J17: 0
A18: Servicios Administrativos
A19: Artículo 15. Telefonía. | B19: O21202020080484131 | C19: 3320060 | D19: 1247796 | E19: =1-(D19/C19) -> 0.6241646235 | F19: Incentivar el uso de aplicaciones y plataformas digitales para reducir la dependencia de la telefonía móvil tradicional. | G19: Se promoverá el uso de aplicaciones y plataformas digitales como alternativa a la telefonía móvil tradicional. | H19: 0.0323 | I19: 0.03 | J19: 0.03 | L19: 1
A20: Artículo 16 -. Vehículos oficiales. | B20: O2120201003033331101 / O2120201003063611101 / O2120202008078714199 / O2180151 | C20: 38342071 | D20: 36730972 | E20: 0.04201909177 | F20: Continuar implementando un mantenimiento preventivo para evitar reparaciones costosas que surgen debido a la falta de mantenimiento regular. | G20: Realizar inspecciones regulares para asegurarse de que los vehículos están en buenas condiciones y no presentan fallas costosas que puedan surgir de un mantenimiento deficiente | H20: 0 | I20: 0 | J20: 0 | L20: 1
A21: Artículo 17 -. Adquisición de vehículos y maquinaria. | C21: 0 | D21: 0 | F21: NA | G21: NA | H21: 0 | I21: 0 | J21: 0
A22: Artículo 18 -. Fotocopiado, multicopiado e impresión. | B22: O21202020070373290 | C22: 10413403 | D22: 5992870 | E22: 0.4245041703 | F22: Continuar con la política de “0 papel” y fomentar aún más el uso de herramientas digitales para evitar la impresión innecesaria. | G22: Se seguirá promoviendo el uso de impresiones a doble cara, limitándolas a los casos estrictamente necesarios. Las revisiones se realizarán de manera digital, no se aprobarán impresiones a color y se mantendrá el monitoreo del consumo según las claves asignadas. Además, se continuará incentivando la reducción de impresiones innecesarias, favoreciendo el uso de documentos digitales siempre que sea posible. | H22: 0 | I22: 0 | J22: 0 | L22: 1
A23: Artículo 19 -. Publicidad distrital. | C23: 0 | D23: 0 | F23: NA | G23: NA | H23: 0 | I23: 0 | J23: 0
A24: Artículo 20 -. Cajas menores. | B24: O2120201003063633011 / O21202020060464112 / O21202020080282130 / O21202020080383151 / O2120202008038363202 / O21202020080585951 / O2120202008078711001 / O2120202008098911001 | C24: 907221 | D24: 147600 | E24: 0.8373053534 | F24: Autorizar la caja menor únicamente para gastos urgentes e imprescindibles. | G24: Implementar una revisión de los gastos hechos con caja menor para asegurarse de que se ajusten a los criterios de austeridad | H24: 0 | I24: 0 | J24: 0 | L24: 1
A25: Artículo 21 -. Mantenimiento o reparación de bienes inmuebles o muebles. | C25: 0 | D25: 0 | F25: NA | G25: NA | H25: 0 | I25: 0 | J25: 0
A26: Artículo 22 -. Suscripciones. | B26: O2120202008098911001 | C26: 563900 | D26: 8170000 | E26: -13.48838447 | F26: Validar que la suscripcion sea relevante y útil. | G26: Para el año 2024, se procedió con la suscripción a una herramienta de consulta juridica en el marco de los acuerdos sindicales. No obstante, se evaluarán nuevas opciones en el mercado con el fin de optimizar la suscripción para las vigencias 2026 y 2027. | H26: 0.01 | I26: 0 | J26: 0 | L26: 1
A27: Artículo 23 -. Servicios públicos. | C27: 0 | D27: 0 | F27: NA | G27: NA | H27: 0 | I27: 0 | J27: 0

Sheet 0137-01 SDSCJ
A1: PLAN DE AUSTERIDAD EN EL GASTO 2025-2027
A2: Entidad | B2: Secretaría Distrital de Seguridad Convivencia y Justicia
A3: Valores en Pesos Corrientes
A4: CONCEPTO (Decreto 062 de 2024) | B4: Posiciones Presupuestales Asociadas (Funcionamiento e Inversión) | C4: LÍNEA BASE | F4: PLAN DE AUSTERIDAD EN EL GASTO 2025-2027 | K4: SEGUIMIENTO RESULTADOS PLAN DE AUSTERIDAD 2025-2027
F5: ESTRATEGIAS 2025-2027 | G5: ACCIONES 2025-2027 | H5: META INDICADOR DE AUSTERIDAD
C6: AÑO 2023 | D6: AÑO 2024 | K6: AÑO 2025 | M6: AÑO 2026 | O6: AÑO 2027
C7: Valor EJECUTADO a 31/12/2023 | D7: Valor EJECUTADO a 31/12/2024 | E7: Resultado Indicador Austeridad | H7: AÑO 2025 | I7: AÑO 2026 | J7: AÑO 2027 | K7: Valor EJECUTADO a 31/12/2025 | L7: Resultado Indicador Austeridad | M7: Valor EJECUTADO a 31/12/2026 | N7: Resultado Indicador Austeridad | O7: Valor EJECUTADO a 31/12/2027 | P7: Resultado Indicador Austeridad
A8: Servicios de personal
A9: Artículo 6°.- Reducción del gasto en CPS profesionales y de apoyo a la gestión. | B9: N.A. Se registran totales. Corresponde con lo reportado en SIDEAP y SIVICOF | C9: 82086382613 | D9: 78450088572 | E9: =1-(D9/C9) -> 0.0442983833 | F9: 1. Cumplir con los lineamientos establecidos en el Decreto 062 de 2024 y la Circular Externa 000002 del 10 de enero de 2025, emitida por la Secretaría de Hacienda Distrital, garantizando su aplicación en todos los procesos pertinentes. | G9: 1.1. Asegurar que cualquier incremento se limite al porcentaje máximo equivalente al IPC estimado para cada año, conforme a los supuestos macroeconómicos definidos, con el fin de mantener el equilibrio financiero y la sostenibilidad presupuestaria. | H9: 0.0323 | I9: 0.03 | J9: 0.03 | K9: 80984026433 | L9: =1-(K9/D9) -> -0.0323 | M9: 83413547226 | N9: =1-(M9/K9) -> -0.03 | O9: 85915953643 | P9: =1-(O9/M9) -> -0.03
A10: Artículo 7°.- Horas extras, dominicales y festivos. | B10: O211010100102 | C10: 9020657961 | D10: 10033526612 | E10: -0.1122832343 | F10: 1. Mantener el valor pagado de horas extras de los servidores del nivel asistencial de la parte administrativa. | G10: 1. 1. Modificar la circular de autorización de horas extras autorizando máximo 30 horas extras a los servidores que desarrollen actividades prioritarias de la entidad. 1.2. Recomendar a la Dirección de Recursos Físicos y Gestión Documental que la prestación de los servicios de los conductores sea especialmente en el apoyo de actividades misionales de la entidad. 1.3. Establecer controles periódicos de las horas extras causadas, informando a los responsables de cada una de las dependencias. 1.4. Enviar periódicamente a la Dirección de Recursos Físicos y Gestión Documental la relación de compensatorios causados por los conductores, con el fin de realizar la programación de estos descansos o que se tengan en cuenta en la compensación de los tiempos de descanso de semana santa y fin de año. | H10: 0.0323 | I10: 0.03 | J10: 0.03 | K10: 10357609522 | L10: =1-(K10/D10) -> -0.03230000004 | M10: 10668337807 | N10: =1-(M10/K10) -> -0.02999999994 | O10: 10988387941 | P10: -0.02999999998
A11: Artículo 8°.- Viáticos y gastos de viaje. | B11: O2120202010 | C11: 16873740 | D11: 87318484 | E11: -4.174815068 | F11: 1. Fortalecer los controles de viáticos priorizando las comisiones de servicios de los servidores del Cuerpo de Custodia y Vigilancia. | G11: 1.1. Solicitar al inicio de cada vigencia a la Dirección de la Cárcel Distrital de Varones y Anexo Mujeres y a la Dirección del Centro Especial de Reclusión la programación de cursos para la acreditación ACA, con el fin de realizar la proyección de viáticos en la vigencia. 1.2. Recomendar que los servidores del Cuerpo de Custodia y Vigilancia que se encuentren en comisión cerca de las sedes de la entidad se desplacen en vehículos del parque automotor de la entidad. 1.3. Continuar realizando acuerdos para que el alojamiento de las comisiones del Cuerpo de Custodia y Vigilancia sea proporcionado por la Escuela de Penitenciaria Nacional – EPN – INPEC. 1.4. Reconocer a los servidores públicos en comisión, viáticos hasta del 50%, de acuerdo con lo establecido en el artículo 2 del Decreto 303 del 5 de marzo de 2024, revisando que el valor de los viáticos sea acorde a lo que devengan en promedio los servidores en el sistema de turnos. 1.5. Realizar acuerdos con las entidades externas para que cubran los gastos de transporte y estadía de los servidores públicos, para aquellas comisiones con destino internacional. 1.6. Cuando los gastos de las comisiones al exterior por asistencia indispensable de servidores públicos de la entidad sean asumidos por la entidad, requerir de la autorización de la Secretaría General de la Alcaldía Mayor de Bogotá D. C., de acuerdo con el artículo 8 del Decreto 062 del 9 de febrero de 2024. | H11: 0.0323 | I11: 0.03 | J11: 0.03 | K11: 90138871 | L11: -0.03229999962 | M11: 92843037 | N11: -0.02999999856 | O11: 95628328 | P11: -0.02999999882
A12: Artículo 9°.- Compensación por vacaciones. | B12: O211010300102 | C12: 276963649 | D12: 639425609 | E12: -1.308698673 | F12: 1. Promover la reducción en la acumulación de periodos de vacaciones de los servidores públicos de la entidad. | G12: 1.1. Sugerir a los responsables de las dependencias que los servidores públicos programen el periodo de vacaciones causado para el siguiente periodo. 1.2. Autorizar a los servidores públicos la acumulación máxima de dos (2) periodos de vacaciones, solamente por necesidades del servicio. | H12: 0.0323 | I12: 0.03 | J12: 0.03 | K12: 660079056 | L12: -0.03229999973 | M12: 679881428 | N12: -0.03000000048 | O12: 700277871 | P12: -0.03000000024
A13: Artículo 10°.- Bono navideño. | B13: O21202020090696511 | C13: 58500000 | D13: 79896600 | E13: -0.3657538462 | F13: 1. Mantener el valor asignado de bonos navideños, los cuales actualmente no superan los seis (6) salarios mínimos legales diarios vigentes. | G13: 1.1. Otorgar bonos a los hijos o hijas de los servidores, que se encuentren debidamente caracterizados en la Dirección de Talento Humano. 1. 2. Realizar control de los criterios establecidos para el otorgamiento del bono a las hijas e hijos beneficiarios de los servidores soportados con los documentos necesarios en los que se demuestre el parentesco, edad y condición de discapacidad cuando aplique este último. 1.3. Abrir convocatoria de inscripción que permita establecer el número real de beneficiarios de los bonos. | H13: 0.0323 | I13: 0.03 | J13: 0.03 | K13: 82477260 | L13: -0.03229999775 | M13: 84951578 | N13: -0.03000000242 | O13: 87500125 | P13: -0.029999996
A14: Artículo 11 -. Capacitación. | B14: O21202020090292913 | C14: 486437718 | D14: 0 | E14: 1 | F14: 1. Desarrollar la oferta de capacitación al interior de la entidad, mediante las alianzas de capacitaciones que ofrecen las diferentes entidades del Estado. | G14: 1.1. Articular la oferta de capacitaciones con diferentes entidades, como el Departamento Administrativo del Servicio Civil Distrital – DASCD, la Secretaría General, El Departamento Administrativo de la Función Pública, la Comisión Nacional del Servicio Civil – CNSC, el SENA, entre otros, evitando la duplicidad y optimizando recursos. 1.2. Conservar el uso del acta de compromiso y autorización de descuento por nomina, como requisito para la inscripción en las actividades de capacitación, garantizando la asistencia de los servidores al programa de formación en el cual se inscribieron. | H14: 0.0323 | I14: 0.03 | J14: 0.03 | K14: 0 | M14: 0 | O14: 0
A15: Artículo 12 -. Bienestar. | B15: O21202020090696511 | C15: 280965780 | D15: 513638895 | E15: -0.8281190507 | F15: 1. Desarrollar la oferta de actividades con diferentes entidades distritales, evitando la duplicidad y optimizando recursos. | G15: 1. Realizar eventos deportivos y recreativos, mediante alianzas administrativas con el Departamento Administrativo del Servicio Civil Distrital DASCD y la Caja de Compensación Familiar. 2. Conservar el uso del acta de compromiso y autorización de descuento por nomina como requisito para los servidores que se inscriban para participar en las actividades de bienestar garantizando que la persona que se inscribe asista. 3. Proponer la contratación de las actividades de bienestar mediante vigencias futuras. | H15: 0.0323 | I15: 0.03 | J15: 0.03 | K15: 530229431 | L15: -0.0322999994 | M15: 546136314 | N15: -0.03000000013 | O15: 562520404 | P15: -0.03000000106
A16: Artículo 13 -. Eventos y conmemoraciones. | B16: O21202020090696511 | C16: 160522496 | D16: 53218672 | E16: 0.6684659576 | F16: 1. Propender por la disminución de costos de los eventos sin deteriorar la calidad de los servicios del Plan de Bienestar e incentivos de la entidad. | G16: 1. 1. Procurar la unificación de varios eventos que se presenten en fechas cercanas, para así disminuir costos y gastos administrativos. 1. 2. Seguir buscando convenios con la Caja de Compensación Familiar para la financiación de eventos. 1. 3. No asignar recursos para la conmemoración del día del secretario, día del conductor y otras actividades que sean coordinadas por el DASCD. | H16: 0.0323 | I16: 0.03 | J16: 0.03 | K16: 54937635 | L16: -0.03229999802 | M16: 56585764 | N16: -0.02999999909 | O16: 58283337 | P16: -0.03000000141
A17: Artículo 14 -. Fondos educativos. | B17: O21202020090292511 O21202020090292512 O21202020090292521 O21202020090292522 | C17: 287628132 | D17: 298562825 | E17: -0.0380167716 | F17: 1. Mantener el programa de financiación de la educación formal para los servidores públicos a los cuales se les ha otorgado este estímulo, procurando la reducción presupuestal del 5% en cada vigencia. | G17: 1. 1. Continuar con la financiación educativa solamente de los servidores públicos que actualmente han sido beneficiarios del estímulo en el último semestre de la vigencia anterior, siempre y cuando continúen cumpliendo con la condición del nivel sobresaliente en la evaluación de desempeño del último año de servicio. 1. 2. Iniciar la gestión con el Fondo Educativo de Administración de Recursos para Capacitación Educativa de los Empleados Públicos del Distrito Capital – FRADEC para la promoción de la capacitación formal de los servidores de la entidad, a través de los servicios que ellos prestan. | H17: 0.0323 | I17: 0.03 | J17: 0.03 | K17: 308206404 | L17: -0.03229999917 | M17: 317452596 | N17: -0.02999999961 | O17: 326976174 | P17: -0.03000000038
A18: Servicios Administrativos
A19: Artículo 15. Telefonía. | B19: O23011605540000007777 O21202020080484150 O230117459920240314 | C19: 352440235 | D19: 387964543 | E19: =1-(D19/C19) -> -0.1007952682 | F19: Mantener restricciones y realizar seguimiento mensual a la actividad de las extensiones que tienen habilitado el servicio de llamadas a celular, LDN y/o LDI para evitar que el uso no autorizado de estos servicios genere gastos innecesarios. Únicamente se habilitan llamadas a celular y LDN mediante el uso de clave a extensiones de colaboradores con temas misionales críticos por autorización justificada del jefe de la dependencia. Fomentar el uso más extendido de Microsoft Teams como solución de comunicación para llamadas internas y externas, reduciendo la necesidad de utilizar la línea telefónica fija para llamadas que pueden hacerse a través de esta plataforma, promoviendo esta herramienta como el canal principal para la mayoría de las comunicaciones, especialmente entre empleados y sedes diferentes. | G19: Realizar revisiones mensuales de los informes de llamadas de las extensiones para asegurarse de que no se estén realizando llamadas no autorizadas. Realizar capacitaciones periódicas a los colaboradores para familiarizarlos con todas las funcionalidades de Microsoft Teams. | H19: 0.032 | I19: 0.03 | J19: 0.03 | K19: 400495798 | L19: -0.03230000067 | M19: 412510672 | N19: -0.03000000015 | O19: 424885992 | P19: -0.02999999961
A20: Artículo 16 -. Vehículos oficiales. | B20: No aplica | C20: 0 | D20: 0 | F20: Aplicar acciones que permitan el uso eficiente de los vehículos institucionales al servicio de la Entidad. | G20: Actualización de Resolución de administración del parque automotor institucional y procedimiento de servicio de transporte, en los cuales se incluyen acciones para optimizar el uso de los vehículos institucionales. | H20: 0 | I20: 0 | J20: 0 | K20: 0 | M20: 0 | O20: 0
A21: Artículo 17 -. Adquisición de vehículos y maquinaria. | B21: No aplica | C21: 0 | D21: 0 | F21: Renovar el parque automotor de la Entidad, mediante procesos de permuta, que permitan ofrecer los bienes dados de baja, catalogados como servibles a cambio de vehículos con las características técnicas requeridas para el funcionamiento de la Entidad, sin generar gastos por adquisición a la Secretaría. | G21: Adelantar procesos de permuta que permitan actualizar el parque automotor de la Entidad. | H21: 0 | I21: 0 | J21: 0 | K21: 0 | M21: 0 | O21: 0
A22: Artículo 18 -. Fotocopiado, multicopiado e impresión. | B22: O23011605540000007777 021202020070373124 | C22: 149979309 | D22: 85615066 | E22: 0.4291541509 | F22: Mantener restricciones de impresión a color, generar reportes de impresión por usuario/dependencia, y realizar seguimiento trimestral a las impresiones para evitar que el uso no autorizado de estos servicios genere gastos innecesarios. Se habilita el servicio mediante cuotas de impresión y el uso de clave a colaboradores, y los requerimientos de cuotas de impresión superior para temas misionales críticos por autorización justificada del jefe de la dependencia. Los reportes de impresión se remitirán a la OAP para su análisis y articulación con el PIGA y la política de uso eficiente de papel. Fomentar el uso más extendido de herramientas colaborativas como Microsoft SharePoint y Microsoft Teams como solución para compartir y colaborar en documentos de manera digital en procesos en los cuales sea viable por temas normativos, reduciendo la necesidad de utilizar el servicio de impresión. | G22: Realizar revisiones trimestrales de los reportes de impresión para asegurarse de que no se estén realizando impresiones superiores a las autorizadas, y remitir a la OAP para su análisis y articulación con el PIGA y la política de uso eficiente de papel. Realizar capacitaciones periódicas a los colaboradores para familiarizarlos con todas las funcionalidades de las herramientas colaborativas como Microsoft SharePoint y Microsoft Teams para reducir la necesidad de utilizar el servicio de impresión | H22: 0.032 | I22: 0.03 | J22: 0.03 | K22: 88380433 | L22: -0.0323000043 | M22: 91031846 | N22: -0.03000000011 | O22: 93762801 | P22: -0.02999999583
A23: Artículo 19 -. Publicidad distrital. | B23: No aplica | C23: 0 | D23: 0 | F23: No aplica | G23: No aplica | H23: 0 | I23: 0 | J23: 0 | K23: 0 | M23: 0 | O23: 0
A24: Artículo 20 -. Cajas menores. | B24: O21201010030106 O21201010030208 O21201010030404 O21201010030405 O21201010030406 O2120101004010106 O2120201002072791108 O2120201003013191499 O2120201003023212999 O2120201003023219999 O2120201003023222004 O2120201003023262005 O2120201003033331101 O2120201003033338004 O2120201003053542009 | C24: 488600 | D24: 0 | E24: 1 | F24: No aplica. La ejecución de la Cajas Menores en la entidad en las últimas vigencias no ha alcanzado siquiera el 3% de lo destinado para su constitución. Este hecho demuestra la naturaleza ocasional de los gastos a realizar, por lo que no aplican estrategias de reducción de gastos, salvo tratar de garantizar que en los contratos a suscribir de adquisición de bienes y servicios se incluyan el mayor número de ítems que garanticen la menor probabilidad de ocurrencia de gastos imprevistos. | G24: No aplica | H24: 0 | I24: 0 | J24: 0 | K24: 0 | M24: 0 | O24: 0
